Workbook

Sheet mapping (hidden)
B1: Mapping Sheet | G1: Source: Xrates on 6/21/2012 | H1: and xe.com
B2: Currency Mapping | K2: Country Mapping
B3: Currency | C3: in USD | F3: 51 | G3: Value of 1 American Dollar | K3: Actual | L3: Mapping
B4: USD | C4: 1 | F4: =CONCATENATE(" ", TRIM(G4), " - ",H4) -> Argentine Peso - ARS | G4: Argentine Peso | H4: ARS | I4: 4.49273 | K4: USA | L4: USA
B5: EUR | C5: =1/INDEX($I$4:$I$64,MATCH(tblXrate[[#This Row],[Currency]],$H$4:$H$64,0)) -> 1.270399439 | F5: Australian Dollar - AUD | G5: Australian Dollar | H5: AUD | I5: 0.980479 | K5: India | L5: India
B6: PKR | C6: =1/INDEX($I$4:$I$64,MATCH(tblXrate[[#This Row],[Currency]],$H$4:$H$64,0)) -> 0.01061408872 | F6: Bangladesh Takha - BDT | G6: Bangladesh Takha | H6: BDT | I6: 81.8274 | K6: UK | L6: UK
B7: INR | C7: =1/INDEX($I$4:$I$64,MATCH(tblXrate[[#This Row],[Currency]],$H$4:$H$64,0)) -> 0.01780791669 | F7: Botswana Pula - BWP | G7: Botswana Pula | H7: BWP | I7: 7.65697 | K7: Australia | L7: Australia
B8: GBP | C8: =1/INDEX($I$4:$I$64,MATCH(tblXrate[[#This Row],[Currency]],$H$4:$H$64,0)) -> 1.576178272 | F8: Brazilian Real - BRL | G8: Brazilian Real | H8: BRL | I8: 2.02314 | K8: Canada | L8: Canada
B9: AUD | C9: =1/INDEX($I$4:$I$64,MATCH(tblXrate[[#This Row],[Currency]],$H$4:$H$64,0)) -> 1.019909656 | F9: British Pound - GBP | G9: British Pound | H9: GBP | I9: 0.634446 | K9: Pakistan | L9: Pakistan
B10: CAD | C10: =1/INDEX($I$4:$I$64,MATCH(tblXrate[[#This Row],[Currency]],$H$4:$H$64,0)) -> 0.983361523 | F10: Brunei dollar - BND | G10: Brunei dollar | H10: BND | I10: 1.2687 | K10: South Africa | L10: South Africa
B11: PHP | C11: =1/INDEX($I$4:$I$64,MATCH(tblXrate[[#This Row],[Currency]],$H$4:$H$64,0)) -> 0.02370505226 | F11: Bulgarian Lev - BGN | G11: Bulgarian Lev | H11: BGN | I11: 1.53952 | K11: Germany | L11: Germany
B12: AED | C12: =1/INDEX($I$4:$I$64,MATCH(tblXrate[[#This Row],[Currency]],$H$4:$H$64,0)) -> 0.2722192127 | F12: Canadian Dollar - CAD | G12: Canadian Dollar | H12: CAD | I12: 1.01692 | K12: UAE | L12: UAE
B13: MXN | C13: =1/INDEX($I$4:$I$64,MATCH(tblXrate[[#This Row],[Currency]],$H$4:$H$64,0)) -> 0.07304655257 | F13: Chilean Peso - CLP | G13: Chilean Peso | H13: CLP | I13: 497.268 | K13: Brazil | L13: Brazil
B14: SEK | C14: =1/INDEX($I$4:$I$64,MATCH(tblXrate[[#This Row],[Currency]],$H$4:$H$64,0)) -> 0.1436552504 | F14: Chinese Yuan - CNY | G14: Chinese Yuan | H14: CNY | I14: 6.36091 | K14: Netherlands | L14: Netherlands
B15: BDT | C15: =1/INDEX($I$4:$I$64,MATCH(tblXrate[[#This Row],[Currency]],$H$4:$H$64,0)) -> 0.01222084534 | F15: Colombian Peso - COP | G15: Colombian Peso | H15: COP | I15: 1769.79 | K15: Singapore | L15: Singapore
B16: COSTARICAN | C16: =1/INDEX($I$4:$I$64,MATCH(tblXrate[[#This Row],[Currency]],$H$4:$H$64,0)) -> 0.002007830539 | F16: Costarican CRC - Costarican | G16: Costarican CRC | H16: Costarican | I16: 498.05 | K16: Philippines | L16: Philippines
B17: ZAR | C17: =1/INDEX($I$4:$I$64,MATCH(tblXrate[[#This Row],[Currency]],$H$4:$H$64,0)) -> 0.1219217799 | F17: Croatian Kuna - HRK | G17: Croatian Kuna | H17: HRK | I17: 5.93671 | K17: Portugal | L17: Portugal
B18: NZD | C18: =1/INDEX($I$4:$I$64,MATCH(tblXrate[[#This Row],[Currency]],$H$4:$H$64,0)) -> 0.7975880936 | F18: Danish Krone - DKK | G18: Danish Krone | H18: DKK | I18: 5.85123 | K18: Spain | L18: Spain
B19: CNY | C19: =1/INDEX($I$4:$I$64,MATCH(tblXrate[[#This Row],[Currency]],$H$4:$H$64,0)) -> 0.1572102105 | F19: Dominican Peso - DOP | G19: Dominican Peso | H19: DOP | I19: 38.95 | K19: New Zealand | L19: New Zealand
B20: EGYPT | C20: =1/INDEX($I$4:$I$64,MATCH(tblXrate[[#This Row],[Currency]],$H$4:$H$64,0)) -> 0.1652619402 | F20: Egyptian Pound - Egypt | G20: Egyptian Pound | H20: Egypt | I20: 6.051 | K20: Russia | L20: Russia
B21: NAIRA | C21: =1/INDEX($I$4:$I$64,MATCH(tblXrate[[#This Row],[Currency]],$H$4:$H$64,0)) -> 0.006163328197 | F21: Ethiopian Birr - ETB | G21: Ethiopian Birr | H21: ETB | I21: 17.68 | K21: Saudi Arabia | L21: Saudi Arabia
B22: AED | C22: =1/INDEX($I$4:$I$64,MATCH(tblXrate[[#This Row],[Currency]],$H$4:$H$64,0)) -> 0.2722192127 | F22: Euro - EUR | G22: Euro | H22: EUR | I22: 0.787154 | K22: Mexico | L22: Mexico
B23: BRL | C23: =1/INDEX($I$4:$I$64,MATCH(tblXrate[[#This Row],[Currency]],$H$4:$H$64,0)) -> 0.4942811669 | F23: Hong Kong Dollar - HKD | G23: Hong Kong Dollar | H23: HKD | I23: 7.75889 | K23: Indonesia | L23: Indonesia
B24: RON | C24: =1/INDEX($I$4:$I$64,MATCH(tblXrate[[#This Row],[Currency]],$H$4:$H$64,0)) -> 0.2846132391 | F24: Hungarian Forint - HUF | G24: Hungarian Forint | H24: HUF | I24: 225.874 | K24: Norway | L24: Norway
B25: USD | C25: 1 | F25: Iceland Krona - ISK | G25: Iceland Krona | H25: ISK | I25: 124.697 | K25: malaysia | L25: malaysia
B26: MYR | C26: =1/INDEX($I$4:$I$64,MATCH(tblXrate[[#This Row],[Currency]],$H$4:$H$64,0)) -> 0.3168005677 | F26: Indian Rupee - INR | G26: Indian Rupee | H26: INR | I26: 56.1548 | K26: The Netherlands | L26: Netherlands
B27: LKR | C27: =1/INDEX($I$4:$I$64,MATCH(tblXrate[[#This Row],[Currency]],$H$4:$H$64,0)) -> 0.007524058176 | F27: Indonesian Rupiah - IDR | G27: Indonesian Rupiah | H27: IDR | I27: 9443.81 | K27: Romania | L27: Romania
B28: SGD | C28: =1/INDEX($I$4:$I$64,MATCH(tblXrate[[#This Row],[Currency]],$H$4:$H$64,0)) -> 0.7888239424 | F28: Israeli New Shekel - ILS | G28: Israeli New Shekel | H28: ILS | I28: 3.86721 | K28: Poland | L28: Poland
B29: GBP | C29: =1/INDEX($I$4:$I$64,MATCH(tblXrate[[#This Row],[Currency]],$H$4:$H$64,0)) -> 1.576178272 | F29: Japanese Yen - JPY | G29: Japanese Yen | H29: JPY | I29: 78.9043 | K29: italy | L29: italy
B30: DOP | C30: =1/INDEX($I$4:$I$64,MATCH(tblXrate[[#This Row],[Currency]],$H$4:$H$64,0)) -> 0.02567394095 | F30: Kazakhstani Tenge - KZT | G30: Kazakhstani Tenge | H30: KZT | I30: 148.88 | K30: Hungary | L30: Hungary
B31: PLN | C31: =1/INDEX($I$4:$I$64,MATCH(tblXrate[[#This Row],[Currency]],$H$4:$H$64,0)) -> 0.3003147298 | F31: Kenyan Shilling - Kenya | G31: Kenyan Shilling | H31: Kenya | I31: 83.5 | K31: Denmark | L31: Denmark
B32: KENYA | C32: =1/INDEX($I$4:$I$64,MATCH(tblXrate[[#This Row],[Currency]],$H$4:$H$64,0)) -> 0.0119760479 | F32: Kuwaiti Dinar - KWD | G32: Kuwaiti Dinar | H32: KWD | I32: 0.2794 | K32: Ireland | L32: Ireland
B33: DKK | C33: =1/INDEX($I$4:$I$64,MATCH(tblXrate[[#This Row],[Currency]],$H$4:$H$64,0)) -> 0.1709042372 | F33: Latvian Lat - LVL | G33: Latvian Lat | H33: LVL | I33: 0.548489 | K33: Israel | L33: Israel
B34: IDR | C34: =1/INDEX($I$4:$I$64,MATCH(tblXrate[[#This Row],[Currency]],$H$4:$H$64,0)) -> 0.0001058894662 | F34: Libyan Dinar - LYD | G34: Libyan Dinar | H34: LYD | I34: 1.9324 | K34: France | L34: France
B35: MONGOLIAN | C35: =1/INDEX($I$4:$I$64,MATCH(tblXrate[[#This Row],[Currency]],$H$4:$H$64,0)) -> 0.000756429652 | F35: Lithuanian Litas - LTL | G35: Lithuanian Litas | H35: LTL | I35: 2.71788 | K35: Colombia | L35: Colombia
B36: JPY | C36: =1/INDEX($I$4:$I$64,MATCH(tblXrate[[#This Row],[Currency]],$H$4:$H$64,0)) -> 0.01267358053 | F36: =CONCATENATE(" ", TRIM(G36), " - ",H36) -> Malaysian Ringgit - MYR | G36: Malaysian Ringgit | H36: MYR | I36: 3.15656 | K36: Switzerland | L36: Switzerland
B37: SAR | C37: =1/INDEX($I$4:$I$64,MATCH(tblXrate[[#This Row],[Currency]],$H$4:$H$64,0)) -> 0.2666666667 | F37: Mauritius Rupee - MUR | G37: Mauritius Rupee | H37: MUR | I37: 30.7159 | K37: Sri Lanka | L37: Sri Lanka
B38: MAD | C38: =1/INDEX($I$4:$I$64,MATCH(tblXrate[[#This Row],[Currency]],$H$4:$H$64,0)) -> 0.1145475372 | F38: Mexican Peso - MXN | G38: Mexican Peso | H38: MXN | I38: 13.6899 | K38: Belgium | L38: Belgium
B39: MUR | C39: =1/INDEX($I$4:$I$64,MATCH(tblXrate[[#This Row],[Currency]],$H$4:$H$64,0)) -> 0.03255642843 | F39: Mongolian Tughrik - Mongolian | G39: Mongolian Tughrik | H39: Mongolian | I39: 1322 | K39: Dubai | L39: Dubai
B40: NOK | C40: =1/INDEX($I$4:$I$64,MATCH(tblXrate[[#This Row],[Currency]],$H$4:$H$64,0)) -> 0.1692511314 | F40: Moroccan Dirham - MAD | G40: Moroccan Dirham | H40: MAD | I40: 8.73 | K40: Ukraine | L40: Ukraine
B41: CHF | C41: =1/INDEX($I$4:$I$64,MATCH(tblXrate[[#This Row],[Currency]],$H$4:$H$64,0)) -> 1.057873062 | F41: Nepalese Rupee - NPR | G41: Nepalese Rupee | H41: NPR | I41: 89.65 | K41: Kuwait | L41: Kuwait
B42: ETB | C42: =1/INDEX($I$4:$I$64,MATCH(tblXrate[[#This Row],[Currency]],$H$4:$H$64,0)) -> 0.05656108597 | F42: New Zealand Dollar - NZD | G42: New Zealand Dollar | H42: NZD | I42: 1.25378 | K42: iran | L42: iran
F43: Nigerian Naira - NAIRA | G43: Nigerian Naira | H43: NAIRA | I43: 162.25 | K43: Qatar | L43: Qatar
F44: Norwegian Kroner - NOK | G44: Norwegian Kroner | H44: NOK | I44: 5.90838 | K44: Nigeria | L44: Nigeria
F45: Omani Rial - OMR | G45: Omani Rial | H45: OMR | I45: 0.3845 | K45: Finland | L45: Finland
F46: Pakistan Rupee - PKR | G46: Pakistan Rupee | H46: PKR | I46: 94.2144 | K46: Europe | L46: Europe
F47: Philippine Peso - PHP | G47: Philippine Peso | H47: PHP | I47: 42.1851 | K47: Japan | L47: Japan
F48: Polish Zloty - PLN | G48: Polish Zloty | H48: PLN | I48: 3.32984 | K48: Brasil | L48: Brasil
F49: Qatari Rial - QAR | G49: Qatari Rial | H49: QAR | I49: 3.64 | K49: nz | L49: New Zealand
F50: Romanian Leu - RON | G50: Romanian Leu | H50: RON | I50: 3.51354 | K50: Greece | L50: Greece
F51: Russian Ruble - RUB | G51: Russian Ruble | H51: RUB | I51: 32.5458 | K51: ksa | L51: USA
F52: Saudi Riyal - SAR | G52: Saudi Riyal | H52: SAR | I52: 3.75 | K52: Panama | L52: Panama
F53: Singapore Dollar - SGD | G53: Singapore Dollar | H53: SGD | I53: 1.26771 | K53: Turkey | L53: Turkey
F54: South African Rand - ZAR | G54: South African Rand | H54: ZAR | I54: 8.20198 | K54: Sweden | L54: Sweden
F55: South Korean Won - KRW | G55: South Korean Won | H55: KRW | I55: 1151.09 | K55: china | L55: china
F56: Sri Lanka Rupee - LKR | G56: Sri Lanka Rupee | H56: LKR | I56: 132.907 | K56: Bangladesh | L56: Bangladesh
F57: Swedish Krona - SEK | G57: Swedish Krona | H57: SEK | I57: 6.96111 | K57: Croatia | L57: Croatia
F58: Swiss Franc - CHF | G58: Swiss Franc | H58: CHF | I58: 0.945293 | K58: United Arab Emirates | L58: UAE
F59: Taiwan Dollar - TWD | G59: Taiwan Dollar | H59: TWD | I59: 29.8594 | K59: MÃ©xico | L59: Mexico
F60: Thai Baht - THB | G60: Thai Baht | H60: THB | I60: 31.5003 | K60: Zambia | L60: Zambia
F61: Trinidad/Tobago Dollar - TTD | G61: Trinidad/Tobago Dollar | H61: TTD | I61: 6.39122 | K61: Tunisia | L61: Tunisia
F62: Turkish Lira - TRY | G62: Turkish Lira | H62: TRY | I62: 1.79447 | K62: Saudi Arabai | L62: Saudi Arabia
F63: UAE Dirham - AED | G63: UAE Dirham | H63: AED | I63: 3.67351 | K63: Ethiopia | L63: Ethiopia
F64: US Dollar - USD | G64: US Dollar | H64: USD | I64: 1 | K64: CEE | L64: CEE
F65: Venezuelan Bolivar - VEF | G65: Venezuelan Bolivar | H65: VEF | I65: 4.29402 | K65: SouthAfrica | L65: South Africa
K66: Central America | L66: Central America
K67: Uruguay | L67: Uruguay
K68: Kenya | L68: Kenya
K69: Republica Dominicana | L69: Republica Dominicana
K70: Kingdom of Saudi Arabia | L70: Saudi Arabia
K71: Slovakia | L71: Slovakia
K72: Austria | L72: Austria
K73: Guyana | L73: Guyana
K74: Azerbaijan | L74: Azerbaijan
K75: Bulgaria | L75: Bulgaria
K76: Kuwait | L76: Kuwait
K77: Peru | L77: Peru
K78: Vietnam | L78: Vietnam
K79: Armenia | L79: Armenia
K80: Zimbabwe | L80: Zimbabwe
K81: RSA | L81: South Africa
K82: Libya | L82: Libya
K83: self-employed | L83: self-employed
K84: Lithuania | L84: Lithuania
K85: Somalia | L85: Somalia
K86: Colombia - South America | L86: Colombia
K87: BRA | L87: Brazil
K88: mainland Europe (Euro zone) | L88: Europe
K89: Thailand | L89: Thailand
K90: Continental Europe | L90: CEE
K91: Asia | L91: Asia
K92: Mauritius | L92: Mauritius
K93: Cambodia | L93: Cambodia
K94: Costa Rica | L94: Costa Rica
K95: Viet Nam | L95: Viet Nam
K96: Mongolia | L96: Mongolia
K97: Estonia | L97: Estonia
K98: Montenegro | L98: Montenegro
K99: EU | L99: Europe
K100: Morocco | L100: Morocco
K101: Republic of Georgia | L101: Republic of Georgia
K102: mozambique | L102: mozambique
K103: europe/Croatia | L103: Croatia
K104: Myanmar | L104: Myanmar
K105: Bermuda | L105: Bermuda
K106: Myanmar [Burma] | L106: Myanmar
K107: FR | L107: France
K108: MYS | L108: MYS
K109: Bhutan | L109: Bhutan
K110: Baltic | L110: Baltic
K111: Slovenia | L111: Slovenia
K112: New Zealand | L112: New Zealand
K113: Bolivia | L113: Bolivia
K114: Czech Republic | L114: Czech Republic
K115: Ghana | L115: Ghana
K116: bangkok | L116: Thailand
K117: srilanka | L117: Sri Lanka
K118: NL | L118: Netherlands
K119: Hong Kong | L119: Hong Kong
K120: nld | L120: New Zealand
K121: Aruba | L121: Aruba
K122: DK | L122: Denmark
K123: Iceland | L123: Iceland
K124: Dominican Republic | L124: Dominican Republic
K125: Uganda | L125: Uganda
K126: Oman | L126: Oman
K127: Inonesia | L127: Indonesia
K128: Argentina | L128: Argentina
K129: United Arab Emriate | L129: UAE
K130: Pakistan, Angola | L130: Pakistan
K131: Canad | L131: Canada
K132: Egypt | L132: Egypt
K133: arabian Gulf | L133: arabian Gulf
K134: Paraguay | L134: Paraguay
K135: Latin America | L135: Latin America
K136: Albania | L136: Albania
K137: Lesotho | L137: Lesotho

Sheet BubblePivot (hidden)
A1: Job Type | B1: Reporting | C1: =VLOOKUP(E1,F3:G12,2,FALSE) -> Reporting | E1: 9
A3: Country | B3: Average of Salary (User Chosen Curreny) | C3: Average of clean Salary (in local currency) | D3: Number of People | F3: 1 | G3: Accountant
A4: Armenia | B4: 49211.88 | C4: 6000 | D4: 1 | F4: 2 | G4: Analyst
A5: Australia | B5: 697168.3 | C5: 85000 | D5: 1 | F5: 3 | G5: Consultant
A6: Ethiopia | B6: 24227.38708 | C6: 52224 | D6: 1 | F6: 4 | G6: Controller
A7: India | B7: 84601.38464 | C7: 268958.6667 | D7: 60 | F7: 5 | G7: CXO or Top Mgmt.
A8: Israel | B8: 353505.338 | C8: 43100 | D8: 2 | F8: 6 | G8: Engineer
A9: Netherlands | B9: 2083958.158 | C9: 200000 | D9: 1 | F9: 7 | G9: Manager
A10: Pakistan | B10: 15670.17781 | C10: 180000 | D10: 1 | F10: 8 | G10: Misc.
A11: Paraguay | B11: 164039.6 | C11: 20000 | D11: 1 | F11: 9 | G11: Reporting
A12: Philippines | B12: 118393.5465 | C12: 237030 | D12: 2 | F12: 10 | G12: Specialist
A13: Romania | B13: 246059.4 | C13: 30000 | D13: 1
A14: South Africa | B14: 233756.43 | C14: 28500 | D14: 2
A15: UK | B15: 261963.656 | C15: 22000 | D15: 4
A16: Ukraine | B16: 123029.7 | C16: 15000 | D16: 1
A17: USA | B17: 477355.236 | C17: 58200 | D17: 5

Sheet BubblePlotData (hidden)
A1: =IF(BubblePivot!A3 = 0,NA(),BubblePivot!A3) -> Country | B1: h | C1: =IF(BubblePivot!C3 = 0,NA(),BubblePivot!C3) -> Average of clean Salary (in local currency) | D1: =IF(BubblePivot!D3 = 0,NA(),BubblePivot!D3) -> Number of People | E1: =A1 -> Country | H1: =OFFSET(B2:B757,0,0,COUNT(B2:B757),1) -> 
A2: =IF(BubblePivot!A4 = 0,NA(),BubblePivot!A4) -> Armenia | B2: =IF(BubblePivot!B4 = 0,NA(),BubblePivot!B4) -> 49211.88 | C2: =IF(BubblePivot!C4 = 0,NA(),BubblePivot!C4) -> 6000 | D2: =IF(BubblePivot!D4 = 0,NA(),BubblePivot!D4) -> 1 | E2: =A2 -> Armenia
A3: =IF(BubblePivot!A5 = 0,NA(),BubblePivot!A5) -> Australia | B3: =IF(BubblePivot!B5 = 0,NA(),BubblePivot!B5) -> 697168.3 | C3: =IF(BubblePivot!C5 = 0,NA(),BubblePivot!C5) -> 85000 | D3: =IF(BubblePivot!D5 = 0,NA(),BubblePivot!D5) -> 1 | E3: Australia | G3: max UCC | H3: =MAX(IF(ISERROR(B2:B757),"",B2:B757)) -> 2083958.158
A4: =IF(BubblePivot!A6 = 0,NA(),BubblePivot!A6) -> Ethiopia | B4: =IF(BubblePivot!B6 = 0,NA(),BubblePivot!B6) -> 24227.38708 | C4: =IF(BubblePivot!C6 = 0,NA(),BubblePivot!C6) -> 52224 | D4: =IF(BubblePivot!D6 = 0,NA(),BubblePivot!D6) -> 1 | E4: Ethiopia | H4: =H3/1000 -> 2083.958158 | I4: =ROUNDDOWN(H4,0) -> 2083 | J4: =H4-I4 -> 0.9581581241 | K4: =IF(I4>1000,"Y") -> Y
A5: =IF(BubblePivot!A7 = 0,NA(),BubblePivot!A7) -> India | B5: =IF(BubblePivot!B7 = 0,NA(),BubblePivot!B7) -> 84601.38464 | C5: =IF(BubblePivot!C7 = 0,NA(),BubblePivot!C7) -> 268958.6667 | D5: =IF(BubblePivot!D7 = 0,NA(),BubblePivot!D7) -> 60 | E5: India | H5: =IF(K4="Y",K6& "," & TEXT(J4*1000,"000"),I4 & "," & TEXT(J4*1000,"000")) -> 2,083,958 | K5: =IF(K4="Y",I4/1000) -> 2.083 | L5: =ROUNDDOWN(K5,0) -> 2 | M5: =K5-L5 -> 0.083
A6: =IF(BubblePivot!A8 = 0,NA(),BubblePivot!A8) -> Israel | B6: =IF(BubblePivot!B8 = 0,NA(),BubblePivot!B8) -> 353505.338 | C6: =IF(BubblePivot!C8 = 0,NA(),BubblePivot!C8) -> 43100 | D6: =IF(BubblePivot!D8 = 0,NA(),BubblePivot!D8) -> 2 | E6: Israel | G6: Country that pays the most | K6: =L5 & "," & TEXT(M5*1000,"000") -> 2,083
A7: =IF(BubblePivot!A9 = 0,NA(),BubblePivot!A9) -> Netherlands | B7: =IF(BubblePivot!B9 = 0,NA(),BubblePivot!B9) -> 2083958.158 | C7: =IF(BubblePivot!C9 = 0,NA(),BubblePivot!C9) -> 200000 | D7: =IF(BubblePivot!D9 = 0,NA(),BubblePivot!D9) -> 1 | E7: Netherlands | H7: =VLOOKUP(H3,B1:E757,4,FALSE) -> Netherlands
A8: =IF(BubblePivot!A10 = 0,NA(),BubblePivot!A10) -> Pakistan | B8: =IF(BubblePivot!B10 = 0,NA(),BubblePivot!B10) -> 15670.17781 | C8: =IF(BubblePivot!C10 = 0,NA(),BubblePivot!C10) -> 180000 | D8: =IF(BubblePivot!D10 = 0,NA(),BubblePivot!D10) -> 1 | E8: Pakistan
A9: =IF(BubblePivot!A11 = 0,NA(),BubblePivot!A11) -> Paraguay | B9: =IF(BubblePivot!B11 = 0,NA(),BubblePivot!B11) -> 164039.6 | C9: =IF(BubblePivot!C11 = 0,NA(),BubblePivot!C11) -> 20000 | D9: =IF(BubblePivot!D11 = 0,NA(),BubblePivot!D11) -> 1 | E9: Paraguay
A10: =IF(BubblePivot!A12 = 0,NA(),BubblePivot!A12) -> Philippines | B10: =IF(BubblePivot!B12 = 0,NA(),BubblePivot!B12) -> 118393.5465 | C10: =IF(BubblePivot!C12 = 0,NA(),BubblePivot!C12) -> 237030 | D10: =IF(BubblePivot!D12 = 0,NA(),BubblePivot!D12) -> 2 | E10: Philippines
A11: =IF(BubblePivot!A13 = 0,NA(),BubblePivot!A13) -> Romania | B11: =IF(BubblePivot!B13 = 0,NA(),BubblePivot!B13) -> 246059.4 | C11: =IF(BubblePivot!C13 = 0,NA(),BubblePivot!C13) -> 30000 | D11: =IF(BubblePivot!D13 = 0,NA(),BubblePivot!D13) -> 1 | E11: Romania | G11: large community | H11: =MAX(IF(ISERROR(D2:D757),"",D2:D757)) -> 60
A12: =IF(BubblePivot!A14 = 0,NA(),BubblePivot!A14) -> South Africa | B12: =IF(BubblePivot!B14 = 0,NA(),BubblePivot!B14) -> 233756.43 | C12: =IF(BubblePivot!C14 = 0,NA(),BubblePivot!C14) -> 28500 | D12: =IF(BubblePivot!D14 = 0,NA(),BubblePivot!D14) -> 2 | E12: South Africa
A13: =IF(BubblePivot!A15 = 0,NA(),BubblePivot!A15) -> UK | B13: =IF(BubblePivot!B15 = 0,NA(),BubblePivot!B15) -> 261963.656 | C13: =IF(BubblePivot!C15 = 0,NA(),BubblePivot!C15) -> 22000 | D13: =IF(BubblePivot!D15 = 0,NA(),BubblePivot!D15) -> 4 | E13: UK | G13: Country with largest community
A14: =IF(BubblePivot!A16 = 0,NA(),BubblePivot!A16) -> Ukraine | B14: =IF(BubblePivot!B16 = 0,NA(),BubblePivot!B16) -> 123029.7 | C14: =IF(BubblePivot!C16 = 0,NA(),BubblePivot!C16) -> 15000 | D14: =IF(BubblePivot!D16 = 0,NA(),BubblePivot!D16) -> 1 | E14: Ukraine | H14: =VLOOKUP(H11,D1:E757,2,FALSE) -> India
A15: =IF(BubblePivot!A17 = 0,NA(),BubblePivot!A17) -> USA | B15: =IF(BubblePivot!B17 = 0,NA(),BubblePivot!B17) -> 477355.236 | C15: =IF(BubblePivot!C17 = 0,NA(),BubblePivot!C17) -> 58200 | D15: =IF(BubblePivot!D17 = 0,NA(),BubblePivot!D17) -> 5 | E15: USA
A16: =IF(BubblePivot!A18 = 0,NA(),BubblePivot!A18) ->  | B16: =IF(BubblePivot!B18 = 0,NA(),BubblePivot!B18) ->  | C16: =IF(BubblePivot!C18 = 0,NA(),BubblePivot!C18) ->  | D16: =IF(BubblePivot!D18 = 0,NA(),BubblePivot!D18) -> 
A17: =IF(BubblePivot!A19 = 0,NA(),BubblePivot!A19) ->  | B17: =IF(BubblePivot!B19 = 0,NA(),BubblePivot!B19) ->  | C17: =IF(BubblePivot!C19 = 0,NA(),BubblePivot!C19) ->  | D17: =IF(BubblePivot!D19 = 0,NA(),BubblePivot!D19) -> 
A18: =IF(BubblePivot!A20 = 0,NA(),BubblePivot!A20) ->  | B18: =IF(BubblePivot!B20 = 0,NA(),BubblePivot!B20) ->  | C18: =IF(BubblePivot!C20 = 0,NA(),BubblePivot!C20) ->  | D18: =IF(BubblePivot!D20 = 0,NA(),BubblePivot!D20) -> 
A19: =IF(BubblePivot!A21 = 0,NA(),BubblePivot!A21) ->  | B19: =IF(BubblePivot!B21 = 0,NA(),BubblePivot!B21) ->  | C19: =IF(BubblePivot!C21 = 0,NA(),BubblePivot!C21) ->  | D19: =IF(BubblePivot!D21 = 0,NA(),BubblePivot!D21) -> 
A20: =IF(BubblePivot!A22 = 0,NA(),BubblePivot!A22) ->  | B20: =IF(BubblePivot!B22 = 0,NA(),BubblePivot!B22) ->  | C20: =IF(BubblePivot!C22 = 0,NA(),BubblePivot!C22) ->  | D20: =IF(BubblePivot!D22 = 0,NA(),BubblePivot!D22) -> 
A21: =IF(BubblePivot!A23 = 0,NA(),BubblePivot!A23) ->  | B21: =IF(BubblePivot!B23 = 0,NA(),BubblePivot!B23) ->  | C21: =IF(BubblePivot!C23 = 0,NA(),BubblePivot!C23) ->  | D21: =IF(BubblePivot!D23 = 0,NA(),BubblePivot!D23) -> 
A22: =IF(BubblePivot!A24 = 0,NA(),BubblePivot!A24) ->  | B22: =IF(BubblePivot!B24 = 0,NA(),BubblePivot!B24) ->  | C22: =IF(BubblePivot!C24 = 0,NA(),BubblePivot!C24) ->  | D22: =IF(BubblePivot!D24 = 0,NA(),BubblePivot!D24) -> 
A23: =IF(BubblePivot!A25 = 0,NA(),BubblePivot!A25) ->  | B23: =IF(BubblePivot!B25 = 0,NA(),BubblePivot!B25) ->  | C23: =IF(BubblePivot!C25 = 0,NA(),BubblePivot!C25) ->  | D23: =IF(BubblePivot!D25 = 0,NA(),BubblePivot!D25) -> 
A24: =IF(BubblePivot!A26 = 0,NA(),BubblePivot!A26) ->  | B24: =IF(BubblePivot!B26 = 0,NA(),BubblePivot!B26) ->  | C24: =IF(BubblePivot!C26 = 0,NA(),BubblePivot!C26) ->  | D24: =IF(BubblePivot!D26 = 0,NA(),BubblePivot!D26) -> 
A25: =IF(BubblePivot!A27 = 0,NA(),BubblePivot!A27) ->  | B25: =IF(BubblePivot!B27 = 0,NA(),BubblePivot!B27) ->  | C25: =IF(BubblePivot!C27 = 0,NA(),BubblePivot!C27) ->  | D25: =IF(BubblePivot!D27 = 0,NA(),BubblePivot!D27) -> 
A26: =IF(BubblePivot!A28 = 0,NA(),BubblePivot!A28) ->  | B26: =IF(BubblePivot!B28 = 0,NA(),BubblePivot!B28) ->  | C26: =IF(BubblePivot!C28 = 0,NA(),BubblePivot!C28) ->  | D26: =IF(BubblePivot!D28 = 0,NA(),BubblePivot!D28) -> 
A27: =IF(BubblePivot!A29 = 0,NA(),BubblePivot!A29) ->  | B27: =IF(BubblePivot!B29 = 0,NA(),BubblePivot!B29) ->  | C27: =IF(BubblePivot!C29 = 0,NA(),BubblePivot!C29) ->  | D27: =IF(BubblePivot!D29 = 0,NA(),BubblePivot!D29) -> 
A28: =IF(BubblePivot!A30 = 0,NA(),BubblePivot!A30) ->  | B28: =IF(BubblePivot!B30 = 0,NA(),BubblePivot!B30) ->  | C28: =IF(BubblePivot!C30 = 0,NA(),BubblePivot!C30) ->  | D28: =IF(BubblePivot!D30 = 0,NA(),BubblePivot!D30) -> 
A29: =IF(BubblePivot!A31 = 0,NA(),BubblePivot!A31) ->  | B29: =IF(BubblePivot!B31 = 0,NA(),BubblePivot!B31) ->  | C29: =IF(BubblePivot!C31 = 0,NA(),BubblePivot!C31) ->  | D29: =IF(BubblePivot!D31 = 0,NA(),BubblePivot!D31) -> 
A30: =IF(BubblePivot!A32 = 0,NA(),BubblePivot!A32) ->  | B30: =IF(BubblePivot!B32 = 0,NA(),BubblePivot!B32) ->  | C30: =IF(BubblePivot!C32 = 0,NA(),BubblePivot!C32) ->  | D30: =IF(BubblePivot!D32 = 0,NA(),BubblePivot!D32) -> 
A31: =IF(BubblePivot!A33 = 0,NA(),BubblePivot!A33) ->  | B31: =IF(BubblePivot!B33 = 0,NA(),BubblePivot!B33) ->  | C31: =IF(BubblePivot!C33 = 0,NA(),BubblePivot!C33) ->  | D31: =IF(BubblePivot!D33 = 0,NA(),BubblePivot!D33) -> 
A32: =IF(BubblePivot!A34 = 0,NA(),BubblePivot!A34) ->  | B32: =IF(BubblePivot!B34 = 0,NA(),BubblePivot!B34) ->  | C32: =IF(BubblePivot!C34 = 0,NA(),BubblePivot!C34) ->  | D32: =IF(BubblePivot!D34 = 0,NA(),BubblePivot!D34) -> 
A33: =IF(BubblePivot!A35 = 0,NA(),BubblePivot!A35) ->  | B33: =IF(BubblePivot!B35 = 0,NA(),BubblePivot!B35) ->  | C33: =IF(BubblePivot!C35 = 0,NA(),BubblePivot!C35) ->  | D33: =IF(BubblePivot!D35 = 0,NA(),BubblePivot!D35) -> 
A34: =IF(BubblePivot!A36 = 0,NA(),BubblePivot!A36) ->  | B34: =IF(BubblePivot!B36 = 0,NA(),BubblePivot!B36) ->  | C34: =IF(BubblePivot!C36 = 0,NA(),BubblePivot!C36) ->  | D34: =IF(BubblePivot!D36 = 0,NA(),BubblePivot!D36) -> 
A35: =IF(BubblePivot!A37 = 0,NA(),BubblePivot!A37) ->  | B35: =IF(BubblePivot!B37 = 0,NA(),BubblePivot!B37) ->  | C35: =IF(BubblePivot!C37 = 0,NA(),BubblePivot!C37) ->  | D35: =IF(BubblePivot!D37 = 0,NA(),BubblePivot!D37) -> 
A36: =IF(BubblePivot!A38 = 0,NA(),BubblePivot!A38) ->  | B36: =IF(BubblePivot!B38 = 0,NA(),BubblePivot!B38) ->  | C36: =IF(BubblePivot!C38 = 0,NA(),BubblePivot!C38) ->  | D36: =IF(BubblePivot!D38 = 0,NA(),BubblePivot!D38) -> 
A37: =IF(BubblePivot!A39 = 0,NA(),BubblePivot!A39) ->  | B37: =IF(BubblePivot!B39 = 0,NA(),BubblePivot!B39) ->  | C37: =IF(BubblePivot!C39 = 0,NA(),BubblePivot!C39) ->  | D37: =IF(BubblePivot!D39 = 0,NA(),BubblePivot!D39) -> 
A38: =IF(BubblePivot!A40 = 0,NA(),BubblePivot!A40) ->  | B38: =IF(BubblePivot!B40 = 0,NA(),BubblePivot!B40) ->  | C38: =IF(BubblePivot!C40 = 0,NA(),BubblePivot!C40) ->  | D38: =IF(BubblePivot!D40 = 0,NA(),BubblePivot!D40) -> 
A39: =IF(BubblePivot!A41 = 0,NA(),BubblePivot!A41) ->  | B39: =IF(BubblePivot!B41 = 0,NA(),BubblePivot!B41) ->  | C39: =IF(BubblePivot!C41 = 0,NA(),BubblePivot!C41) ->  | D39: =IF(BubblePivot!D41 = 0,NA(),BubblePivot!D41) -> 
A40: =IF(BubblePivot!A42 = 0,NA(),BubblePivot!A42) ->  | B40: =IF(BubblePivot!B42 = 0,NA(),BubblePivot!B42) ->  | C40: =IF(BubblePivot!C42 = 0,NA(),BubblePivot!C42) ->  | D40: =IF(BubblePivot!D42 = 0,NA(),BubblePivot!D42) -> 
A41: =IF(BubblePivot!A43 = 0,NA(),BubblePivot!A43) ->  | B41: =IF(BubblePivot!B43 = 0,NA(),BubblePivot!B43) ->  | C41: =IF(BubblePivot!C43 = 0,NA(),BubblePivot!C43) ->  | D41: =IF(BubblePivot!D43 = 0,NA(),BubblePivot!D43) -> 
A42: =IF(BubblePivot!A44 = 0,NA(),BubblePivot!A44) ->  | B42: =IF(BubblePivot!B44 = 0,NA(),BubblePivot!B44) ->  | C42: =IF(BubblePivot!C44 = 0,NA(),BubblePivot!C44) ->  | D42: =IF(BubblePivot!D44 = 0,NA(),BubblePivot!D44) -> 
A43: =IF(BubblePivot!A45 = 0,NA(),BubblePivot!A45) ->  | B43: =IF(BubblePivot!B45 = 0,NA(),BubblePivot!B45) ->  | C43: =IF(BubblePivot!C45 = 0,NA(),BubblePivot!C45) ->  | D43: =IF(BubblePivot!D45 = 0,NA(),BubblePivot!D45) -> 
A44: =IF(BubblePivot!A46 = 0,NA(),BubblePivot!A46) ->  | B44: =IF(BubblePivot!B46 = 0,NA(),BubblePivot!B46) ->  | C44: =IF(BubblePivot!C46 = 0,NA(),BubblePivot!C46) ->  | D44: =IF(BubblePivot!D46 = 0,NA(),BubblePivot!D46) -> 
A45: =IF(BubblePivot!A47 = 0,NA(),BubblePivot!A47) ->  | B45: =IF(BubblePivot!B47 = 0,NA(),BubblePivot!B47) ->  | C45: =IF(BubblePivot!C47 = 0,NA(),BubblePivot!C47) ->  | D45: =IF(BubblePivot!D47 = 0,NA(),BubblePivot!D47) -> 
A46: =IF(BubblePivot!A48 = 0,NA(),BubblePivot!A48) ->  | B46: =IF(BubblePivot!B48 = 0,NA(),BubblePivot!B48) ->  | C46: =IF(BubblePivot!C48 = 0,NA(),BubblePivot!C48) ->  | D46: =IF(BubblePivot!D48 = 0,NA(),BubblePivot!D48) -> 
A47: =IF(BubblePivot!A49 = 0,NA(),BubblePivot!A49) ->  | B47: =IF(BubblePivot!B49 = 0,NA(),BubblePivot!B49) ->  | C47: =IF(BubblePivot!C49 = 0,NA(),BubblePivot!C49) ->  | D47: =IF(BubblePivot!D49 = 0,NA(),BubblePivot!D49) -> 
A48: =IF(BubblePivot!A50 = 0,NA(),BubblePivot!A50) ->  | B48: =IF(BubblePivot!B50 = 0,NA(),BubblePivot!B50) ->  | C48: =IF(BubblePivot!C50 = 0,NA(),BubblePivot!C50) ->  | D48: =IF(BubblePivot!D50 = 0,NA(),BubblePivot!D50) -> 
A49: =IF(BubblePivot!A51 = 0,NA(),BubblePivot!A51) ->  | B49: =IF(BubblePivot!B51 = 0,NA(),BubblePivot!B51) ->  | C49: =IF(BubblePivot!C51 = 0,NA(),BubblePivot!C51) ->  | D49: =IF(BubblePivot!D51 = 0,NA(),BubblePivot!D51) -> 
A50: =IF(BubblePivot!A52 = 0,NA(),BubblePivot!A52) ->  | B50: =IF(BubblePivot!B52 = 0,NA(),BubblePivot!B52) ->  | C50: =IF(BubblePivot!C52 = 0,NA(),BubblePivot!C52) ->  | D50: =IF(BubblePivot!D52 = 0,NA(),BubblePivot!D52) -> 
A51: =IF(BubblePivot!A53 = 0,NA(),BubblePivot!A53) ->  | B51: =IF(BubblePivot!B53 = 0,NA(),BubblePivot!B53) ->  | C51: =IF(BubblePivot!C53 = 0,NA(),BubblePivot!C53) ->  | D51: =IF(BubblePivot!D53 = 0,NA(),BubblePivot!D53) -> 
A52: =IF(BubblePivot!A54 = 0,NA(),BubblePivot!A54) ->  | B52: =IF(BubblePivot!B54 = 0,NA(),BubblePivot!B54) ->  | C52: =IF(BubblePivot!C54 = 0,NA(),BubblePivot!C54) ->  | D52: =IF(BubblePivot!D54 = 0,NA(),BubblePivot!D54) -> 
A53: =IF(BubblePivot!A55 = 0,NA(),BubblePivot!A55) ->  | B53: =IF(BubblePivot!B55 = 0,NA(),BubblePivot!B55) ->  | C53: =IF(BubblePivot!C55 = 0,NA(),BubblePivot!C55) ->  | D53: =IF(BubblePivot!D55 = 0,NA(),BubblePivot!D55) -> 
A54: =IF(BubblePivot!A56 = 0,NA(),BubblePivot!A56) ->  | B54: =IF(BubblePivot!B56 = 0,NA(),BubblePivot!B56) ->  | C54: =IF(BubblePivot!C56 = 0,NA(),BubblePivot!C56) ->  | D54: =IF(BubblePivot!D56 = 0,NA(),BubblePivot!D56) -> 
A55: =IF(BubblePivot!A57 = 0,NA(),BubblePivot!A57) ->  | B55: =IF(BubblePivot!B57 = 0,NA(),BubblePivot!B57) ->  | C55: =IF(BubblePivot!C57 = 0,NA(),BubblePivot!C57) ->  | D55: =IF(BubblePivot!D57 = 0,NA(),BubblePivot!D57) -> 
A56: =IF(BubblePivot!A58 = 0,NA(),BubblePivot!A58) ->  | B56: =IF(BubblePivot!B58 = 0,NA(),BubblePivot!B58) ->  | C56: =IF(BubblePivot!C58 = 0,NA(),BubblePivot!C58) ->  | D56: =IF(BubblePivot!D58 = 0,NA(),BubblePivot!D58) -> 
A57: =IF(BubblePivot!A59 = 0,NA(),BubblePivot!A59) ->  | B57: =IF(BubblePivot!B59 = 0,NA(),BubblePivot!B59) ->  | C57: =IF(BubblePivot!C59 = 0,NA(),BubblePivot!C59) ->  | D57: =IF(BubblePivot!D59 = 0,NA(),BubblePivot!D59) -> 
A58: =IF(BubblePivot!A60 = 0,NA(),BubblePivot!A60) ->  | B58: =IF(BubblePivot!B60 = 0,NA(),BubblePivot!B60) ->  | C58: =IF(BubblePivot!C60 = 0,NA(),BubblePivot!C60) ->  | D58: =IF(BubblePivot!D60 = 0,NA(),BubblePivot!D60) -> 
A59: =IF(BubblePivot!A61 = 0,NA(),BubblePivot!A61) ->  | B59: =IF(BubblePivot!B61 = 0,NA(),BubblePivot!B61) ->  | C59: =IF(BubblePivot!C61 = 0,NA(),BubblePivot!C61) ->  | D59: =IF(BubblePivot!D61 = 0,NA(),BubblePivot!D61) -> 
A60: =IF(BubblePivot!A62 = 0,NA(),BubblePivot!A62) ->  | B60: =IF(BubblePivot!B62 = 0,NA(),BubblePivot!B62) ->  | C60: =IF(BubblePivot!C62 = 0,NA(),BubblePivot!C62) ->  | D60: =IF(BubblePivot!D62 = 0,NA(),BubblePivot!D62) -> 
A61: =IF(BubblePivot!A63 = 0,NA(),BubblePivot!A63) ->  | B61: =IF(BubblePivot!B63 = 0,NA(),BubblePivot!B63) ->  | C61: =IF(BubblePivot!C63 = 0,NA(),BubblePivot!C63) ->  | D61: =IF(BubblePivot!D63 = 0,NA(),BubblePivot!D63) -> 
A62: =IF(BubblePivot!A64 = 0,NA(),BubblePivot!A64) ->  | B62: =IF(BubblePivot!B64 = 0,NA(),BubblePivot!B64) ->  | C62: =IF(BubblePivot!C64 = 0,NA(),BubblePivot!C64) ->  | D62: =IF(BubblePivot!D64 = 0,NA(),BubblePivot!D64) -> 
A63: =IF(BubblePivot!A65 = 0,NA(),BubblePivot!A65) ->  | B63: =IF(BubblePivot!B65 = 0,NA(),BubblePivot!B65) ->  | C63: =IF(BubblePivot!C65 = 0,NA(),BubblePivot!C65) ->  | D63: =IF(BubblePivot!D65 = 0,NA(),BubblePivot!D65) -> 
A64: =IF(BubblePivot!A66 = 0,NA(),BubblePivot!A66) ->  | B64: =IF(BubblePivot!B66 = 0,NA(),BubblePivot!B66) ->  | C64: =IF(BubblePivot!C66 = 0,NA(),BubblePivot!C66) ->  | D64: =IF(BubblePivot!D66 = 0,NA(),BubblePivot!D66) -> 
A65: =IF(BubblePivot!A67 = 0,NA(),BubblePivot!A67) ->  | B65: =IF(BubblePivot!B67 = 0,NA(),BubblePivot!B67) ->  | C65: =IF(BubblePivot!C67 = 0,NA(),BubblePivot!C67) ->  | D65: =IF(BubblePivot!D67 = 0,NA(),BubblePivot!D67) -> 
A66: =IF(BubblePivot!A68 = 0,NA(),BubblePivot!A68) ->  | B66: =IF(BubblePivot!B68 = 0,NA(),BubblePivot!B68) ->  | C66: =IF(BubblePivot!C68 = 0,NA(),BubblePivot!C68) ->  | D66: =IF(BubblePivot!D68 = 0,NA(),BubblePivot!D68) ->  | E66: =A66 -> 
A67: =IF(BubblePivot!A69 = 0,NA(),BubblePivot!A69) ->  | B67: =IF(BubblePivot!B69 = 0,NA(),BubblePivot!B69) ->  | C67: =IF(BubblePivot!C69 = 0,NA(),BubblePivot!C69) ->  | D67: =IF(BubblePivot!D69 = 0,NA(),BubblePivot!D69) -> 
A68: =IF(BubblePivot!A70 = 0,NA(),BubblePivot!A70) ->  | B68: =IF(BubblePivot!B70 = 0,NA(),BubblePivot!B70) ->  | C68: =IF(BubblePivot!C70 = 0,NA(),BubblePivot!C70) ->  | D68: =IF(BubblePivot!D70 = 0,NA(),BubblePivot!D70) -> 
A69: =IF(BubblePivot!A71 = 0,NA(),BubblePivot!A71) ->  | B69: =IF(BubblePivot!B71 = 0,NA(),BubblePivot!B71) ->  | C69: =IF(BubblePivot!C71 = 0,NA(),BubblePivot!C71) ->  | D69: =IF(BubblePivot!D71 = 0,NA(),BubblePivot!D71) -> 
A70: =IF(BubblePivot!A72 = 0,NA(),BubblePivot!A72) ->  | B70: =IF(BubblePivot!B72 = 0,NA(),BubblePivot!B72) ->  | C70: =IF(BubblePivot!C72 = 0,NA(),BubblePivot!C72) ->  | D70: =IF(BubblePivot!D72 = 0,NA(),BubblePivot!D72) -> 
A71: =IF(BubblePivot!A73 = 0,NA(),BubblePivot!A73) ->  | B71: =IF(BubblePivot!B73 = 0,NA(),BubblePivot!B73) ->  | C71: =IF(BubblePivot!C73 = 0,NA(),BubblePivot!C73) ->  | D71: =IF(BubblePivot!D73 = 0,NA(),BubblePivot!D73) -> 
A72: =IF(BubblePivot!A74 = 0,NA(),BubblePivot!A74) ->  | B72: =IF(BubblePivot!B74 = 0,NA(),BubblePivot!B74) ->  | C72: =IF(BubblePivot!C74 = 0,NA(),BubblePivot!C74) ->  | D72: =IF(BubblePivot!D74 = 0,NA(),BubblePivot!D74) -> 
A73: =IF(BubblePivot!A75 = 0,NA(),BubblePivot!A75) ->  | B73: =IF(BubblePivot!B75 = 0,NA(),BubblePivot!B75) ->  | C73: =IF(BubblePivot!C75 = 0,NA(),BubblePivot!C75) ->  | D73: =IF(BubblePivot!D75 = 0,NA(),BubblePivot!D75) -> 
A74: =IF(BubblePivot!A76 = 0,NA(),BubblePivot!A76) ->  | B74: =IF(BubblePivot!B76 = 0,NA(),BubblePivot!B76) ->  | C74: =IF(BubblePivot!C76 = 0,NA(),BubblePivot!C76) ->  | D74: =IF(BubblePivot!D76 = 0,NA(),BubblePivot!D76) -> 
A75: =IF(BubblePivot!A77 = 0,NA(),BubblePivot!A77) ->  | B75: =IF(BubblePivot!B77 = 0,NA(),BubblePivot!B77) ->  | C75: =IF(BubblePivot!C77 = 0,NA(),BubblePivot!C77) ->  | D75: =IF(BubblePivot!D77 = 0,NA(),BubblePivot!D77) -> 
A76: =IF(BubblePivot!A78 = 0,NA(),BubblePivot!A78) ->  | B76: =IF(BubblePivot!B78 = 0,NA(),BubblePivot!B78) ->  | C76: =IF(BubblePivot!C78 = 0,NA(),BubblePivot!C78) ->  | D76: =IF(BubblePivot!D78 = 0,NA(),BubblePivot!D78) -> 
A77: =IF(BubblePivot!A79 = 0,NA(),BubblePivot!A79) ->  | B77: =IF(BubblePivot!B79 = 0,NA(),BubblePivot!B79) ->  | C77: =IF(BubblePivot!C79 = 0,NA(),BubblePivot!C79) ->  | D77: =IF(BubblePivot!D79 = 0,NA(),BubblePivot!D79) -> 
A78: =IF(BubblePivot!A80 = 0,NA(),BubblePivot!A80) ->  | B78: =IF(BubblePivot!B80 = 0,NA(),BubblePivot!B80) ->  | C78: =IF(BubblePivot!C80 = 0,NA(),BubblePivot!C80) ->  | D78: =IF(BubblePivot!D80 = 0,NA(),BubblePivot!D80) -> 
A79: =IF(BubblePivot!A81 = 0,NA(),BubblePivot!A81) ->  | B79: =IF(BubblePivot!B81 = 0,NA(),BubblePivot!B81) ->  | C79: =IF(BubblePivot!C81 = 0,NA(),BubblePivot!C81) ->  | D79: =IF(BubblePivot!D81 = 0,NA(),BubblePivot!D81) -> 
A80: =IF(BubblePivot!A82 = 0,NA(),BubblePivot!A82) ->  | B80: =IF(BubblePivot!B82 = 0,NA(),BubblePivot!B82) ->  | C80: =IF(BubblePivot!C82 = 0,NA(),BubblePivot!C82) ->  | D80: =IF(BubblePivot!D82 = 0,NA(),BubblePivot!D82) -> 
A81: =IF(BubblePivot!A83 = 0,NA(),BubblePivot!A83) ->  | B81: =IF(BubblePivot!B83 = 0,NA(),BubblePivot!B83) ->  | C81: =IF(BubblePivot!C83 = 0,NA(),BubblePivot!C83) ->  | D81: =IF(BubblePivot!D83 = 0,NA(),BubblePivot!D83) -> 
A82: =IF(BubblePivot!A84 = 0,NA(),BubblePivot!A84) ->  | B82: =IF(BubblePivot!B84 = 0,NA(),BubblePivot!B84) ->  | C82: =IF(BubblePivot!C84 = 0,NA(),BubblePivot!C84) ->  | D82: =IF(BubblePivot!D84 = 0,NA(),BubblePivot!D84) -> 
A83: =IF(BubblePivot!A85 = 0,NA(),BubblePivot!A85) ->  | B83: =IF(BubblePivot!B85 = 0,NA(),BubblePivot!B85) ->  | C83: =IF(BubblePivot!C85 = 0,NA(),BubblePivot!C85) ->  | D83: =IF(BubblePivot!D85 = 0,NA(),BubblePivot!D85) -> 
A84: =IF(BubblePivot!A86 = 0,NA(),BubblePivot!A86) ->  | B84: =IF(BubblePivot!B86 = 0,NA(),BubblePivot!B86) ->  | C84: =IF(BubblePivot!C86 = 0,NA(),BubblePivot!C86) ->  | D84: =IF(BubblePivot!D86 = 0,NA(),BubblePivot!D86) -> 
A85: =IF(BubblePivot!A87 = 0,NA(),BubblePivot!A87) ->  | B85: =IF(BubblePivot!B87 = 0,NA(),BubblePivot!B87) ->  | C85: =IF(BubblePivot!C87 = 0,NA(),BubblePivot!C87) ->  | D85: =IF(BubblePivot!D87 = 0,NA(),BubblePivot!D87) -> 
A86: =IF(BubblePivot!A88 = 0,NA(),BubblePivot!A88) ->  | B86: =IF(BubblePivot!B88 = 0,NA(),BubblePivot!B88) ->  | C86: =IF(BubblePivot!C88 = 0,NA(),BubblePivot!C88) ->  | D86: =IF(BubblePivot!D88 = 0,NA(),BubblePivot!D88) -> 
A87: =IF(BubblePivot!A89 = 0,NA(),BubblePivot!A89) ->  | B87: =IF(BubblePivot!B89 = 0,NA(),BubblePivot!B89) ->  | C87: =IF(BubblePivot!C89 = 0,NA(),BubblePivot!C89) ->  | D87: =IF(BubblePivot!D89 = 0,NA(),BubblePivot!D89) -> 
A88: =IF(BubblePivot!A90 = 0,NA(),BubblePivot!A90) ->  | B88: =IF(BubblePivot!B90 = 0,NA(),BubblePivot!B90) ->  | C88: =IF(BubblePivot!C90 = 0,NA(),BubblePivot!C90) ->  | D88: =IF(BubblePivot!D90 = 0,NA(),BubblePivot!D90) -> 
A89: =IF(BubblePivot!A91 = 0,NA(),BubblePivot!A91) ->  | B89: =IF(BubblePivot!B91 = 0,NA(),BubblePivot!B91) ->  | C89: =IF(BubblePivot!C91 = 0,NA(),BubblePivot!C91) ->  | D89: =IF(BubblePivot!D91 = 0,NA(),BubblePivot!D91) -> 
A90: =IF(BubblePivot!A92 = 0,NA(),BubblePivot!A92) ->  | B90: =IF(BubblePivot!B92 = 0,NA(),BubblePivot!B92) ->  | C90: =IF(BubblePivot!C92 = 0,NA(),BubblePivot!C92) ->  | D90: =IF(BubblePivot!D92 = 0,NA(),BubblePivot!D92) -> 
A91: =IF(BubblePivot!A93 = 0,NA(),BubblePivot!A93) ->  | B91: =IF(BubblePivot!B93 = 0,NA(),BubblePivot!B93) ->  | C91: =IF(BubblePivot!C93 = 0,NA(),BubblePivot!C93) ->  | D91: =IF(BubblePivot!D93 = 0,NA(),BubblePivot!D93) -> 
A92: =IF(BubblePivot!A94 = 0,NA(),BubblePivot!A94) ->  | B92: =IF(BubblePivot!B94 = 0,NA(),BubblePivot!B94) ->  | C92: =IF(BubblePivot!C94 = 0,NA(),BubblePivot!C94) ->  | D92: =IF(BubblePivot!D94 = 0,NA(),BubblePivot!D94) -> 
A93: =IF(BubblePivot!A95 = 0,NA(),BubblePivot!A95) ->  | B93: =IF(BubblePivot!B95 = 0,NA(),BubblePivot!B95) ->  | C93: =IF(BubblePivot!C95 = 0,NA(),BubblePivot!C95) ->  | D93: =IF(BubblePivot!D95 = 0,NA(),BubblePivot!D95) -> 
A94: =IF(BubblePivot!A96 = 0,NA(),BubblePivot!A96) ->  | B94: =IF(BubblePivot!B96 = 0,NA(),BubblePivot!B96) ->  | C94: =IF(BubblePivot!C96 = 0,NA(),BubblePivot!C96) ->  | D94: =IF(BubblePivot!D96 = 0,NA(),BubblePivot!D96) -> 
A95: =IF(BubblePivot!A97 = 0,NA(),BubblePivot!A97) ->  | B95: =IF(BubblePivot!B97 = 0,NA(),BubblePivot!B97) ->  | C95: =IF(BubblePivot!C97 = 0,NA(),BubblePivot!C97) ->  | D95: =IF(BubblePivot!D97 = 0,NA(),BubblePivot!D97) -> 
A96: =IF(BubblePivot!A98 = 0,NA(),BubblePivot!A98) ->  | B96: =IF(BubblePivot!B98 = 0,NA(),BubblePivot!B98) ->  | C96: =IF(BubblePivot!C98 = 0,NA(),BubblePivot!C98) ->  | D96: =IF(BubblePivot!D98 = 0,NA(),BubblePivot!D98) -> 
A97: =IF(BubblePivot!A99 = 0,NA(),BubblePivot!A99) ->  | B97: =IF(BubblePivot!B99 = 0,NA(),BubblePivot!B99) ->  | C97: =IF(BubblePivot!C99 = 0,NA(),BubblePivot!C99) ->  | D97: =IF(BubblePivot!D99 = 0,NA(),BubblePivot!D99) -> 
A98: =IF(BubblePivot!A100 = 0,NA(),BubblePivot!A100) ->  | B98: =IF(BubblePivot!B100 = 0,NA(),BubblePivot!B100) ->  | C98: =IF(BubblePivot!C100 = 0,NA(),BubblePivot!C100) ->  | D98: =IF(BubblePivot!D100 = 0,NA(),BubblePivot!D100) -> 
A99: =IF(BubblePivot!A101 = 0,NA(),BubblePivot!A101) ->  | B99: =IF(BubblePivot!B101 = 0,NA(),BubblePivot!B101) ->  | C99: =IF(BubblePivot!C101 = 0,NA(),BubblePivot!C101) ->  | D99: =IF(BubblePivot!D101 = 0,NA(),BubblePivot!D101) -> 
A100: =IF(BubblePivot!A102 = 0,NA(),BubblePivot!A102) ->  | B100: =IF(BubblePivot!B102 = 0,NA(),BubblePivot!B102) ->  | C100: =IF(BubblePivot!C102 = 0,NA(),BubblePivot!C102) ->  | D100: =IF(BubblePivot!D102 = 0,NA(),BubblePivot!D102) -> 
A101: =IF(BubblePivot!A103 = 0,NA(),BubblePivot!A103) ->  | B101: =IF(BubblePivot!B103 = 0,NA(),BubblePivot!B103) ->  | C101: =IF(BubblePivot!C103 = 0,NA(),BubblePivot!C103) ->  | D101: =IF(BubblePivot!D103 = 0,NA(),BubblePivot!D103) -> 
A102: =IF(BubblePivot!A104 = 0,NA(),BubblePivot!A104) ->  | B102: =IF(BubblePivot!B104 = 0,NA(),BubblePivot!B104) ->  | C102: =IF(BubblePivot!C104 = 0,NA(),BubblePivot!C104) ->  | D102: =IF(BubblePivot!D104 = 0,NA(),BubblePivot!D104) -> 
A103: =IF(BubblePivot!A105 = 0,NA(),BubblePivot!A105) ->  | B103: =IF(BubblePivot!B105 = 0,NA(),BubblePivot!B105) ->  | C103: =IF(BubblePivot!C105 = 0,NA(),BubblePivot!C105) ->  | D103: =IF(BubblePivot!D105 = 0,NA(),BubblePivot!D105) -> 
A104: =IF(BubblePivot!A106 = 0,NA(),BubblePivot!A106) ->  | B104: =IF(BubblePivot!B106 = 0,NA(),BubblePivot!B106) ->  | C104: =IF(BubblePivot!C106 = 0,NA(),BubblePivot!C106) ->  | D104: =IF(BubblePivot!D106 = 0,NA(),BubblePivot!D106) -> 
A105: =IF(BubblePivot!A107 = 0,NA(),BubblePivot!A107) ->  | B105: =IF(BubblePivot!B107 = 0,NA(),BubblePivot!B107) ->  | C105: =IF(BubblePivot!C107 = 0,NA(),BubblePivot!C107) ->  | D105: =IF(BubblePivot!D107 = 0,NA(),BubblePivot!D107) -> 
A106: =IF(BubblePivot!A108 = 0,NA(),BubblePivot!A108) ->  | B106: =IF(BubblePivot!B108 = 0,NA(),BubblePivot!B108) ->  | C106: =IF(BubblePivot!C108 = 0,NA(),BubblePivot!C108) ->  | D106: =IF(BubblePivot!D108 = 0,NA(),BubblePivot!D108) -> 
A107: =IF(BubblePivot!A109 = 0,NA(),BubblePivot!A109) ->  | B107: =IF(BubblePivot!B109 = 0,NA(),BubblePivot!B109) ->  | C107: =IF(BubblePivot!C109 = 0,NA(),BubblePivot!C109) ->  | D107: =IF(BubblePivot!D109 = 0,NA(),BubblePivot!D109) -> 
A108: =IF(BubblePivot!A110 = 0,NA(),BubblePivot!A110) ->  | B108: =IF(BubblePivot!B110 = 0,NA(),BubblePivot!B110) ->  | C108: =IF(BubblePivot!C110 = 0,NA(),BubblePivot!C110) ->  | D108: =IF(BubblePivot!D110 = 0,NA(),BubblePivot!D110) -> 
A109: =IF(BubblePivot!A111 = 0,NA(),BubblePivot!A111) ->  | B109: =IF(BubblePivot!B111 = 0,NA(),BubblePivot!B111) ->  | C109: =IF(BubblePivot!C111 = 0,NA(),BubblePivot!C111) ->  | D109: =IF(BubblePivot!D111 = 0,NA(),BubblePivot!D111) -> 
A110: =IF(BubblePivot!A112 = 0,NA(),BubblePivot!A112) ->  | B110: =IF(BubblePivot!B112 = 0,NA(),BubblePivot!B112) ->  | C110: =IF(BubblePivot!C112 = 0,NA(),BubblePivot!C112) ->  | D110: =IF(BubblePivot!D112 = 0,NA(),BubblePivot!D112) -> 
A111: =IF(BubblePivot!A113 = 0,NA(),BubblePivot!A113) ->  | B111: =IF(BubblePivot!B113 = 0,NA(),BubblePivot!B113) ->  | C111: =IF(BubblePivot!C113 = 0,NA(),BubblePivot!C113) ->  | D111: =IF(BubblePivot!D113 = 0,NA(),BubblePivot!D113) -> 
A112: =IF(BubblePivot!A114 = 0,NA(),BubblePivot!A114) ->  | B112: =IF(BubblePivot!B114 = 0,NA(),BubblePivot!B114) ->  | C112: =IF(BubblePivot!C114 = 0,NA(),BubblePivot!C114) ->  | D112: =IF(BubblePivot!D114 = 0,NA(),BubblePivot!D114) -> 
A113: =IF(BubblePivot!A115 = 0,NA(),BubblePivot!A115) ->  | B113: =IF(BubblePivot!B115 = 0,NA(),BubblePivot!B115) ->  | C113: =IF(BubblePivot!C115 = 0,NA(),BubblePivot!C115) ->  | D113: =IF(BubblePivot!D115 = 0,NA(),BubblePivot!D115) -> 
A114: =IF(BubblePivot!A116 = 0,NA(),BubblePivot!A116) ->  | B114: =IF(BubblePivot!B116 = 0,NA(),BubblePivot!B116) ->  | C114: =IF(BubblePivot!C116 = 0,NA(),BubblePivot!C116) ->  | D114: =IF(BubblePivot!D116 = 0,NA(),BubblePivot!D116) -> 
A115: =IF(BubblePivot!A117 = 0,NA(),BubblePivot!A117) ->  | B115: =IF(BubblePivot!B117 = 0,NA(),BubblePivot!B117) ->  | C115: =IF(BubblePivot!C117 = 0,NA(),BubblePivot!C117) ->  | D115: =IF(BubblePivot!D117 = 0,NA(),BubblePivot!D117) -> 
A116: =IF(BubblePivot!A118 = 0,NA(),BubblePivot!A118) ->  | B116: =IF(BubblePivot!B118 = 0,NA(),BubblePivot!B118) ->  | C116: =IF(BubblePivot!C118 = 0,NA(),BubblePivot!C118) ->  | D116: =IF(BubblePivot!D118 = 0,NA(),BubblePivot!D118) -> 
A117: =IF(BubblePivot!A119 = 0,NA(),BubblePivot!A119) ->  | B117: =IF(BubblePivot!B119 = 0,NA(),BubblePivot!B119) ->  | C117: =IF(BubblePivot!C119 = 0,NA(),BubblePivot!C119) ->  | D117: =IF(BubblePivot!D119 = 0,NA(),BubblePivot!D119) -> 
A118: =IF(BubblePivot!A120 = 0,NA(),BubblePivot!A120) ->  | B118: =IF(BubblePivot!B120 = 0,NA(),BubblePivot!B120) ->  | C118: =IF(BubblePivot!C120 = 0,NA(),BubblePivot!C120) ->  | D118: =IF(BubblePivot!D120 = 0,NA(),BubblePivot!D120) -> 
A119: =IF(BubblePivot!A121 = 0,NA(),BubblePivot!A121) ->  | B119: =IF(BubblePivot!B121 = 0,NA(),BubblePivot!B121) ->  | C119: =IF(BubblePivot!C121 = 0,NA(),BubblePivot!C121) ->  | D119: =IF(BubblePivot!D121 = 0,NA(),BubblePivot!D121) -> 
A120: =IF(BubblePivot!A122 = 0,NA(),BubblePivot!A122) ->  | B120: =IF(BubblePivot!B122 = 0,NA(),BubblePivot!B122) ->  | C120: =IF(BubblePivot!C122 = 0,NA(),BubblePivot!C122) ->  | D120: =IF(BubblePivot!D122 = 0,NA(),BubblePivot!D122) -> 
A121: =IF(BubblePivot!A123 = 0,NA(),BubblePivot!A123) ->  | B121: =IF(BubblePivot!B123 = 0,NA(),BubblePivot!B123) ->  | C121: =IF(BubblePivot!C123 = 0,NA(),BubblePivot!C123) ->  | D121: =IF(BubblePivot!D123 = 0,NA(),BubblePivot!D123) -> 
A122: =IF(BubblePivot!A124 = 0,NA(),BubblePivot!A124) ->  | B122: =IF(BubblePivot!B124 = 0,NA(),BubblePivot!B124) ->  | C122: =IF(BubblePivot!C124 = 0,NA(),BubblePivot!C124) ->  | D122: =IF(BubblePivot!D124 = 0,NA(),BubblePivot!D124) -> 
A123: =IF(BubblePivot!A125 = 0,NA(),BubblePivot!A125) ->  | B123: =IF(BubblePivot!B125 = 0,NA(),BubblePivot!B125) ->  | C123: =IF(BubblePivot!C125 = 0,NA(),BubblePivot!C125) ->  | D123: =IF(BubblePivot!D125 = 0,NA(),BubblePivot!D125) -> 
A124: =IF(BubblePivot!A126 = 0,NA(),BubblePivot!A126) ->  | B124: =IF(BubblePivot!B126 = 0,NA(),BubblePivot!B126) ->  | C124: =IF(BubblePivot!C126 = 0,NA(),BubblePivot!C126) ->  | D124: =IF(BubblePivot!D126 = 0,NA(),BubblePivot!D126) -> 
A125: =IF(BubblePivot!A127 = 0,NA(),BubblePivot!A127) ->  | B125: =IF(BubblePivot!B127 = 0,NA(),BubblePivot!B127) ->  | C125: =IF(BubblePivot!C127 = 0,NA(),BubblePivot!C127) ->  | D125: =IF(BubblePivot!D127 = 0,NA(),BubblePivot!D127) -> 
A126: =IF(BubblePivot!A128 = 0,NA(),BubblePivot!A128) ->  | B126: =IF(BubblePivot!B128 = 0,NA(),BubblePivot!B128) ->  | C126: =IF(BubblePivot!C128 = 0,NA(),BubblePivot!C128) ->  | D126: =IF(BubblePivot!D128 = 0,NA(),BubblePivot!D128) -> 
A127: =IF(BubblePivot!A129 = 0,NA(),BubblePivot!A129) ->  | B127: =IF(BubblePivot!B129 = 0,NA(),BubblePivot!B129) ->  | C127: =IF(BubblePivot!C129 = 0,NA(),BubblePivot!C129) ->  | D127: =IF(BubblePivot!D129 = 0,NA(),BubblePivot!D129) -> 
A128: =IF(BubblePivot!A130 = 0,NA(),BubblePivot!A130) ->  | B128: =IF(BubblePivot!B130 = 0,NA(),BubblePivot!B130) ->  | C128: =IF(BubblePivot!C130 = 0,NA(),BubblePivot!C130) ->  | D128: =IF(BubblePivot!D130 = 0,NA(),BubblePivot!D130) -> 
A129: =IF(BubblePivot!A131 = 0,NA(),BubblePivot!A131) ->  | B129: =IF(BubblePivot!B131 = 0,NA(),BubblePivot!B131) ->  | C129: =IF(BubblePivot!C131 = 0,NA(),BubblePivot!C131) ->  | D129: =IF(BubblePivot!D131 = 0,NA(),BubblePivot!D131) -> 
A130: =IF(BubblePivot!A132 = 0,NA(),BubblePivot!A132) ->  | B130: =IF(BubblePivot!B132 = 0,NA(),BubblePivot!B132) ->  | C130: =IF(BubblePivot!C132 = 0,NA(),BubblePivot!C132) ->  | D130: =IF(BubblePivot!D132 = 0,NA(),BubblePivot!D132) ->  | E130: =A130 -> 
A131: =IF(BubblePivot!A133 = 0,NA(),BubblePivot!A133) ->  | B131: =IF(BubblePivot!B133 = 0,NA(),BubblePivot!B133) ->  | C131: =IF(BubblePivot!C133 = 0,NA(),BubblePivot!C133) ->  | D131: =IF(BubblePivot!D133 = 0,NA(),BubblePivot!D133) -> 
A132: =IF(BubblePivot!A134 = 0,NA(),BubblePivot!A134) ->  | B132: =IF(BubblePivot!B134 = 0,NA(),BubblePivot!B134) ->  | C132: =IF(BubblePivot!C134 = 0,NA(),BubblePivot!C134) ->  | D132: =IF(BubblePivot!D134 = 0,NA(),BubblePivot!D134) -> 
A133: =IF(BubblePivot!A135 = 0,NA(),BubblePivot!A135) ->  | B133: =IF(BubblePivot!B135 = 0,NA(),BubblePivot!B135) ->  | C133: =IF(BubblePivot!C135 = 0,NA(),BubblePivot!C135) ->  | D133: =IF(BubblePivot!D135 = 0,NA(),BubblePivot!D135) -> 
A134: =IF(BubblePivot!A136 = 0,NA(),BubblePivot!A136) ->  | B134: =IF(BubblePivot!B136 = 0,NA(),BubblePivot!B136) ->  | C134: =IF(BubblePivot!C136 = 0,NA(),BubblePivot!C136) ->  | D134: =IF(BubblePivot!D136 = 0,NA(),BubblePivot!D136) -> 
A135: =IF(BubblePivot!A137 = 0,NA(),BubblePivot!A137) ->  | B135: =IF(BubblePivot!B137 = 0,NA(),BubblePivot!B137) ->  | C135: =IF(BubblePivot!C137 = 0,NA(),BubblePivot!C137) ->  | D135: =IF(BubblePivot!D137 = 0,NA(),BubblePivot!D137) -> 
A136: =IF(BubblePivot!A138 = 0,NA(),BubblePivot!A138) ->  | B136: =IF(BubblePivot!B138 = 0,NA(),BubblePivot!B138) ->  | C136: =IF(BubblePivot!C138 = 0,NA(),BubblePivot!C138) ->  | D136: =IF(BubblePivot!D138 = 0,NA(),BubblePivot!D138) -> 
A137: =IF(BubblePivot!A139 = 0,NA(),BubblePivot!A139) ->  | B137: =IF(BubblePivot!B139 = 0,NA(),BubblePivot!B139) ->  | C137: =IF(BubblePivot!C139 = 0,NA(),BubblePivot!C139) ->  | D137: =IF(BubblePivot!D139 = 0,NA(),BubblePivot!D139) -> 
A138: =IF(BubblePivot!A140 = 0,NA(),BubblePivot!A140) ->  | B138: =IF(BubblePivot!B140 = 0,NA(),BubblePivot!B140) ->  | C138: =IF(BubblePivot!C140 = 0,NA(),BubblePivot!C140) ->  | D138: =IF(BubblePivot!D140 = 0,NA(),BubblePivot!D140) -> 
A139: =IF(BubblePivot!A141 = 0,NA(),BubblePivot!A141) ->  | B139: =IF(BubblePivot!B141 = 0,NA(),BubblePivot!B141) ->  | C139: =IF(BubblePivot!C141 = 0,NA(),BubblePivot!C141) ->  | D139: =IF(BubblePivot!D141 = 0,NA(),BubblePivot!D141) -> 
A140: =IF(BubblePivot!A142 = 0,NA(),BubblePivot!A142) ->  | B140: =IF(BubblePivot!B142 = 0,NA(),BubblePivot!B142) ->  | C140: =IF(BubblePivot!C142 = 0,NA(),BubblePivot!C142) ->  | D140: =IF(BubblePivot!D142 = 0,NA(),BubblePivot!D142) -> 
A141: =IF(BubblePivot!A143 = 0,NA(),BubblePivot!A143) ->  | B141: =IF(BubblePivot!B143 = 0,NA(),BubblePivot!B143) ->  | C141: =IF(BubblePivot!C143 = 0,NA(),BubblePivot!C143) ->  | D141: =IF(BubblePivot!D143 = 0,NA(),BubblePivot!D143) -> 
A142: =IF(BubblePivot!A144 = 0,NA(),BubblePivot!A144) ->  | B142: =IF(BubblePivot!B144 = 0,NA(),BubblePivot!B144) ->  | C142: =IF(BubblePivot!C144 = 0,NA(),BubblePivot!C144) ->  | D142: =IF(BubblePivot!D144 = 0,NA(),BubblePivot!D144) -> 
A143: =IF(BubblePivot!A145 = 0,NA(),BubblePivot!A145) ->  | B143: =IF(BubblePivot!B145 = 0,NA(),BubblePivot!B145) ->  | C143: =IF(BubblePivot!C145 = 0,NA(),BubblePivot!C145) ->  | D143: =IF(BubblePivot!D145 = 0,NA(),BubblePivot!D145) -> 
A144: =IF(BubblePivot!A146 = 0,NA(),BubblePivot!A146) ->  | B144: =IF(BubblePivot!B146 = 0,NA(),BubblePivot!B146) ->  | C144: =IF(BubblePivot!C146 = 0,NA(),BubblePivot!C146) ->  | D144: =IF(BubblePivot!D146 = 0,NA(),BubblePivot!D146) -> 
A145: =IF(BubblePivot!A147 = 0,NA(),BubblePivot!A147) ->  | B145: =IF(BubblePivot!B147 = 0,NA(),BubblePivot!B147) ->  | C145: =IF(BubblePivot!C147 = 0,NA(),BubblePivot!C147) ->  | D145: =IF(BubblePivot!D147 = 0,NA(),BubblePivot!D147) -> 
A146: =IF(BubblePivot!A148 = 0,NA(),BubblePivot!A148) ->  | B146: =IF(BubblePivot!B148 = 0,NA(),BubblePivot!B148) ->  | C146: =IF(BubblePivot!C148 = 0,NA(),BubblePivot!C148) ->  | D146: =IF(BubblePivot!D148 = 0,NA(),BubblePivot!D148) -> 
A147: =IF(BubblePivot!A149 = 0,NA(),BubblePivot!A149) ->  | B147: =IF(BubblePivot!B149 = 0,NA(),BubblePivot!B149) ->  | C147: =IF(BubblePivot!C149 = 0,NA(),BubblePivot!C149) ->  | D147: =IF(BubblePivot!D149 = 0,NA(),BubblePivot!D149) -> 
A148: =IF(BubblePivot!A150 = 0,NA(),BubblePivot!A150) ->  | B148: =IF(BubblePivot!B150 = 0,NA(),BubblePivot!B150) ->  | C148: =IF(BubblePivot!C150 = 0,NA(),BubblePivot!C150) ->  | D148: =IF(BubblePivot!D150 = 0,NA(),BubblePivot!D150) -> 
A149: =IF(BubblePivot!A151 = 0,NA(),BubblePivot!A151) ->  | B149: =IF(BubblePivot!B151 = 0,NA(),BubblePivot!B151) ->  | C149: =IF(BubblePivot!C151 = 0,NA(),BubblePivot!C151) ->  | D149: =IF(BubblePivot!D151 = 0,NA(),BubblePivot!D151) -> 
A150: =IF(BubblePivot!A152 = 0,NA(),BubblePivot!A152) ->  | B150: =IF(BubblePivot!B152 = 0,NA(),BubblePivot!B152) ->  | C150: =IF(BubblePivot!C152 = 0,NA(),BubblePivot!C152) ->  | D150: =IF(BubblePivot!D152 = 0,NA(),BubblePivot!D152) -> 
A151: =IF(BubblePivot!A153 = 0,NA(),BubblePivot!A153) ->  | B151: =IF(BubblePivot!B153 = 0,NA(),BubblePivot!B153) ->  | C151: =IF(BubblePivot!C153 = 0,NA(),BubblePivot!C153) ->  | D151: =IF(BubblePivot!D153 = 0,NA(),BubblePivot!D153) -> 
A152: =IF(BubblePivot!A154 = 0,NA(),BubblePivot!A154) ->  | B152: =IF(BubblePivot!B154 = 0,NA(),BubblePivot!B154) ->  | C152: =IF(BubblePivot!C154 = 0,NA(),BubblePivot!C154) ->  | D152: =IF(BubblePivot!D154 = 0,NA(),BubblePivot!D154) -> 
A153: =IF(BubblePivot!A155 = 0,NA(),BubblePivot!A155) ->  | B153: =IF(BubblePivot!B155 = 0,NA(),BubblePivot!B155) ->  | C153: =IF(BubblePivot!C155 = 0,NA(),BubblePivot!C155) ->  | D153: =IF(BubblePivot!D155 = 0,NA(),BubblePivot!D155) -> 
A154: =IF(BubblePivot!A156 = 0,NA(),BubblePivot!A156) ->  | B154: =IF(BubblePivot!B156 = 0,NA(),BubblePivot!B156) ->  | C154: =IF(BubblePivot!C156 = 0,NA(),BubblePivot!C156) ->  | D154: =IF(BubblePivot!D156 = 0,NA(),BubblePivot!D156) -> 
A155: =IF(BubblePivot!A157 = 0,NA(),BubblePivot!A157) ->  | B155: =IF(BubblePivot!B157 = 0,NA(),BubblePivot!B157) ->  | C155: =IF(BubblePivot!C157 = 0,NA(),BubblePivot!C157) ->  | D155: =IF(BubblePivot!D157 = 0,NA(),BubblePivot!D157) -> 
A156: =IF(BubblePivot!A158 = 0,NA(),BubblePivot!A158) ->  | B156: =IF(BubblePivot!B158 = 0,NA(),BubblePivot!B158) ->  | C156: =IF(BubblePivot!C158 = 0,NA(),BubblePivot!C158) ->  | D156: =IF(BubblePivot!D158 = 0,NA(),BubblePivot!D158) -> 
A157: =IF(BubblePivot!A159 = 0,NA(),BubblePivot!A159) ->  | B157: =IF(BubblePivot!B159 = 0,NA(),BubblePivot!B159) ->  | C157: =IF(BubblePivot!C159 = 0,NA(),BubblePivot!C159) ->  | D157: =IF(BubblePivot!D159 = 0,NA(),BubblePivot!D159) -> 
A158: =IF(BubblePivot!A160 = 0,NA(),BubblePivot!A160) ->  | B158: =IF(BubblePivot!B160 = 0,NA(),BubblePivot!B160) ->  | C158: =IF(BubblePivot!C160 = 0,NA(),BubblePivot!C160) ->  | D158: =IF(BubblePivot!D160 = 0,NA(),BubblePivot!D160) -> 
A159: =IF(BubblePivot!A161 = 0,NA(),BubblePivot!A161) ->  | B159: =IF(BubblePivot!B161 = 0,NA(),BubblePivot!B161) ->  | C159: =IF(BubblePivot!C161 = 0,NA(),BubblePivot!C161) ->  | D159: =IF(BubblePivot!D161 = 0,NA(),BubblePivot!D161) -> 
A160: =IF(BubblePivot!A162 = 0,NA(),BubblePivot!A162) ->  | B160: =IF(BubblePivot!B162 = 0,NA(),BubblePivot!B162) ->  | C160: =IF(BubblePivot!C162 = 0,NA(),BubblePivot!C162) ->  | D160: =IF(BubblePivot!D162 = 0,NA(),BubblePivot!D162) -> 
A161: =IF(BubblePivot!A163 = 0,NA(),BubblePivot!A163) ->  | B161: =IF(BubblePivot!B163 = 0,NA(),BubblePivot!B163) ->  | C161: =IF(BubblePivot!C163 = 0,NA(),BubblePivot!C163) ->  | D161: =IF(BubblePivot!D163 = 0,NA(),BubblePivot!D163) -> 
A162: =IF(BubblePivot!A164 = 0,NA(),BubblePivot!A164) ->  | B162: =IF(BubblePivot!B164 = 0,NA(),BubblePivot!B164) ->  | C162: =IF(BubblePivot!C164 = 0,NA(),BubblePivot!C164) ->  | D162: =IF(BubblePivot!D164 = 0,NA(),BubblePivot!D164) -> 
A163: =IF(BubblePivot!A165 = 0,NA(),BubblePivot!A165) ->  | B163: =IF(BubblePivot!B165 = 0,NA(),BubblePivot!B165) ->  | C163: =IF(BubblePivot!C165 = 0,NA(),BubblePivot!C165) ->  | D163: =IF(BubblePivot!D165 = 0,NA(),BubblePivot!D165) -> 
A164: =IF(BubblePivot!A166 = 0,NA(),BubblePivot!A166) ->  | B164: =IF(BubblePivot!B166 = 0,NA(),BubblePivot!B166) ->  | C164: =IF(BubblePivot!C166 = 0,NA(),BubblePivot!C166) ->  | D164: =IF(BubblePivot!D166 = 0,NA(),BubblePivot!D166) -> 
A165: =IF(BubblePivot!A167 = 0,NA(),BubblePivot!A167) ->  | B165: =IF(BubblePivot!B167 = 0,NA(),BubblePivot!B167) ->  | C165: =IF(BubblePivot!C167 = 0,NA(),BubblePivot!C167) ->  | D165: =IF(BubblePivot!D167 = 0,NA(),BubblePivot!D167) -> 
A166: =IF(BubblePivot!A168 = 0,NA(),BubblePivot!A168) ->  | B166: =IF(BubblePivot!B168 = 0,NA(),BubblePivot!B168) ->  | C166: =IF(BubblePivot!C168 = 0,NA(),BubblePivot!C168) ->  | D166: =IF(BubblePivot!D168 = 0,NA(),BubblePivot!D168) -> 
A167: =IF(BubblePivot!A169 = 0,NA(),BubblePivot!A169) ->  | B167: =IF(BubblePivot!B169 = 0,NA(),BubblePivot!B169) ->  | C167: =IF(BubblePivot!C169 = 0,NA(),BubblePivot!C169) ->  | D167: =IF(BubblePivot!D169 = 0,NA(),BubblePivot!D169) -> 
A168: =IF(BubblePivot!A170 = 0,NA(),BubblePivot!A170) ->  | B168: =IF(BubblePivot!B170 = 0,NA(),BubblePivot!B170) ->  | C168: =IF(BubblePivot!C170 = 0,NA(),BubblePivot!C170) ->  | D168: =IF(BubblePivot!D170 = 0,NA(),BubblePivot!D170) -> 
A169: =IF(BubblePivot!A171 = 0,NA(),BubblePivot!A171) ->  | B169: =IF(BubblePivot!B171 = 0,NA(),BubblePivot!B171) ->  | C169: =IF(BubblePivot!C171 = 0,NA(),BubblePivot!C171) ->  | D169: =IF(BubblePivot!D171 = 0,NA(),BubblePivot!D171) -> 
A170: =IF(BubblePivot!A172 = 0,NA(),BubblePivot!A172) ->  | B170: =IF(BubblePivot!B172 = 0,NA(),BubblePivot!B172) ->  | C170: =IF(BubblePivot!C172 = 0,NA(),BubblePivot!C172) ->  | D170: =IF(BubblePivot!D172 = 0,NA(),BubblePivot!D172) -> 
A171: =IF(BubblePivot!A173 = 0,NA(),BubblePivot!A173) ->  | B171: =IF(BubblePivot!B173 = 0,NA(),BubblePivot!B173) ->  | C171: =IF(BubblePivot!C173 = 0,NA(),BubblePivot!C173) ->  | D171: =IF(BubblePivot!D173 = 0,NA(),BubblePivot!D173) -> 
A172: =IF(BubblePivot!A174 = 0,NA(),BubblePivot!A174) ->  | B172: =IF(BubblePivot!B174 = 0,NA(),BubblePivot!B174) ->  | C172: =IF(BubblePivot!C174 = 0,NA(),BubblePivot!C174) ->  | D172: =IF(BubblePivot!D174 = 0,NA(),BubblePivot!D174) -> 
A173: =IF(BubblePivot!A175 = 0,NA(),BubblePivot!A175) ->  | B173: =IF(BubblePivot!B175 = 0,NA(),BubblePivot!B175) ->  | C173: =IF(BubblePivot!C175 = 0,NA(),BubblePivot!C175) ->  | D173: =IF(BubblePivot!D175 = 0,NA(),BubblePivot!D175) -> 
A174: =IF(BubblePivot!A176 = 0,NA(),BubblePivot!A176) ->  | B174: =IF(BubblePivot!B176 = 0,NA(),BubblePivot!B176) ->  | C174: =IF(BubblePivot!C176 = 0,NA(),BubblePivot!C176) ->  | D174: =IF(BubblePivot!D176 = 0,NA(),BubblePivot!D176) -> 
A175: =IF(BubblePivot!A177 = 0,NA(),BubblePivot!A177) ->  | B175: =IF(BubblePivot!B177 = 0,NA(),BubblePivot!B177) ->  | C175: =IF(BubblePivot!C177 = 0,NA(),BubblePivot!C177) ->  | D175: =IF(BubblePivot!D177 = 0,NA(),BubblePivot!D177) -> 
A176: =IF(BubblePivot!A178 = 0,NA(),BubblePivot!A178) ->  | B176: =IF(BubblePivot!B178 = 0,NA(),BubblePivot!B178) ->  | C176: =IF(BubblePivot!C178 = 0,NA(),BubblePivot!C178) ->  | D176: =IF(BubblePivot!D178 = 0,NA(),BubblePivot!D178) -> 
A177: =IF(BubblePivot!A179 = 0,NA(),BubblePivot!A179) ->  | B177: =IF(BubblePivot!B179 = 0,NA(),BubblePivot!B179) ->  | C177: =IF(BubblePivot!C179 = 0,NA(),BubblePivot!C179) ->  | D177: =IF(BubblePivot!D179 = 0,NA(),BubblePivot!D179) -> 
A178: =IF(BubblePivot!A180 = 0,NA(),BubblePivot!A180) ->  | B178: =IF(BubblePivot!B180 = 0,NA(),BubblePivot!B180) ->  | C178: =IF(BubblePivot!C180 = 0,NA(),BubblePivot!C180) ->  | D178: =IF(BubblePivot!D180 = 0,NA(),BubblePivot!D180) -> 
A179: =IF(BubblePivot!A181 = 0,NA(),BubblePivot!A181) ->  | B179: =IF(BubblePivot!B181 = 0,NA(),BubblePivot!B181) ->  | C179: =IF(BubblePivot!C181 = 0,NA(),BubblePivot!C181) ->  | D179: =IF(BubblePivot!D181 = 0,NA(),BubblePivot!D181) -> 
A180: =IF(BubblePivot!A182 = 0,NA(),BubblePivot!A182) ->  | B180: =IF(BubblePivot!B182 = 0,NA(),BubblePivot!B182) ->  | C180: =IF(BubblePivot!C182 = 0,NA(),BubblePivot!C182) ->  | D180: =IF(BubblePivot!D182 = 0,NA(),BubblePivot!D182) -> 
A181: =IF(BubblePivot!A183 = 0,NA(),BubblePivot!A183) ->  | B181: =IF(BubblePivot!B183 = 0,NA(),BubblePivot!B183) ->  | C181: =IF(BubblePivot!C183 = 0,NA(),BubblePivot!C183) ->  | D181: =IF(BubblePivot!D183 = 0,NA(),BubblePivot!D183) -> 
A182: =IF(BubblePivot!A184 = 0,NA(),BubblePivot!A184) ->  | B182: =IF(BubblePivot!B184 = 0,NA(),BubblePivot!B184) ->  | C182: =IF(BubblePivot!C184 = 0,NA(),BubblePivot!C184) ->  | D182: =IF(BubblePivot!D184 = 0,NA(),BubblePivot!D184) -> 
A183: =IF(BubblePivot!A185 = 0,NA(),BubblePivot!A185) ->  | B183: =IF(BubblePivot!B185 = 0,NA(),BubblePivot!B185) ->  | C183: =IF(BubblePivot!C185 = 0,NA(),BubblePivot!C185) ->  | D183: =IF(BubblePivot!D185 = 0,NA(),BubblePivot!D185) -> 
A184: =IF(BubblePivot!A186 = 0,NA(),BubblePivot!A186) ->  | B184: =IF(BubblePivot!B186 = 0,NA(),BubblePivot!B186) ->  | C184: =IF(BubblePivot!C186 = 0,NA(),BubblePivot!C186) ->  | D184: =IF(BubblePivot!D186 = 0,NA(),BubblePivot!D186) -> 
A185: =IF(BubblePivot!A187 = 0,NA(),BubblePivot!A187) ->  | B185: =IF(BubblePivot!B187 = 0,NA(),BubblePivot!B187) ->  | C185: =IF(BubblePivot!C187 = 0,NA(),BubblePivot!C187) ->  | D185: =IF(BubblePivot!D187 = 0,NA(),BubblePivot!D187) -> 
A186: =IF(BubblePivot!A188 = 0,NA(),BubblePivot!A188) ->  | B186: =IF(BubblePivot!B188 = 0,NA(),BubblePivot!B188) ->  | C186: =IF(BubblePivot!C188 = 0,NA(),BubblePivot!C188) ->  | D186: =IF(BubblePivot!D188 = 0,NA(),BubblePivot!D188) -> 
A187: =IF(BubblePivot!A189 = 0,NA(),BubblePivot!A189) ->  | B187: =IF(BubblePivot!B189 = 0,NA(),BubblePivot!B189) ->  | C187: =IF(BubblePivot!C189 = 0,NA(),BubblePivot!C189) ->  | D187: =IF(BubblePivot!D189 = 0,NA(),BubblePivot!D189) -> 
A188: =IF(BubblePivot!A190 = 0,NA(),BubblePivot!A190) ->  | B188: =IF(BubblePivot!B190 = 0,NA(),BubblePivot!B190) ->  | C188: =IF(BubblePivot!C190 = 0,NA(),BubblePivot!C190) ->  | D188: =IF(BubblePivot!D190 = 0,NA(),BubblePivot!D190) -> 
A189: =IF(BubblePivot!A191 = 0,NA(),BubblePivot!A191) ->  | B189: =IF(BubblePivot!B191 = 0,NA(),BubblePivot!B191) ->  | C189: =IF(BubblePivot!C191 = 0,NA(),BubblePivot!C191) ->  | D189: =IF(BubblePivot!D191 = 0,NA(),BubblePivot!D191) -> 
A190: =IF(BubblePivot!A192 = 0,NA(),BubblePivot!A192) ->  | B190: =IF(BubblePivot!B192 = 0,NA(),BubblePivot!B192) ->  | C190: =IF(BubblePivot!C192 = 0,NA(),BubblePivot!C192) ->  | D190: =IF(BubblePivot!D192 = 0,NA(),BubblePivot!D192) -> 
A191: =IF(BubblePivot!A193 = 0,NA(),BubblePivot!A193) ->  | B191: =IF(BubblePivot!B193 = 0,NA(),BubblePivot!B193) ->  | C191: =IF(BubblePivot!C193 = 0,NA(),BubblePivot!C193) ->  | D191: =IF(BubblePivot!D193 = 0,NA(),BubblePivot!D193) -> 
A192: =IF(BubblePivot!A194 = 0,NA(),BubblePivot!A194) ->  | B192: =IF(BubblePivot!B194 = 0,NA(),BubblePivot!B194) ->  | C192: =IF(BubblePivot!C194 = 0,NA(),BubblePivot!C194) ->  | D192: =IF(BubblePivot!D194 = 0,NA(),BubblePivot!D194) -> 
A193: =IF(BubblePivot!A195 = 0,NA(),BubblePivot!A195) ->  | B193: =IF(BubblePivot!B195 = 0,NA(),BubblePivot!B195) ->  | C193: =IF(BubblePivot!C195 = 0,NA(),BubblePivot!C195) ->  | D193: =IF(BubblePivot!D195 = 0,NA(),BubblePivot!D195) -> 
A194: =IF(BubblePivot!A196 = 0,NA(),BubblePivot!A196) ->  | B194: =IF(BubblePivot!B196 = 0,NA(),BubblePivot!B196) ->  | C194: =IF(BubblePivot!C196 = 0,NA(),BubblePivot!C196) ->  | D194: =IF(BubblePivot!D196 = 0,NA(),BubblePivot!D196) ->  | E194: =A194 -> 
A195: =IF(BubblePivot!A197 = 0,NA(),BubblePivot!A197) ->  | B195: =IF(BubblePivot!B197 = 0,NA(),BubblePivot!B197) ->  | C195: =IF(BubblePivot!C197 = 0,NA(),BubblePivot!C197) ->  | D195: =IF(BubblePivot!D197 = 0,NA(),BubblePivot!D197) -> 
A196: =IF(BubblePivot!A198 = 0,NA(),BubblePivot!A198) ->  | B196: =IF(BubblePivot!B198 = 0,NA(),BubblePivot!B198) ->  | C196: =IF(BubblePivot!C198 = 0,NA(),BubblePivot!C198) ->  | D196: =IF(BubblePivot!D198 = 0,NA(),BubblePivot!D198) -> 
A197: =IF(BubblePivot!A199 = 0,NA(),BubblePivot!A199) ->  | B197: =IF(BubblePivot!B199 = 0,NA(),BubblePivot!B199) ->  | C197: =IF(BubblePivot!C199 = 0,NA(),BubblePivot!C199) ->  | D197: =IF(BubblePivot!D199 = 0,NA(),BubblePivot!D199) -> 
A198: =IF(BubblePivot!A200 = 0,NA(),BubblePivot!A200) ->  | B198: =IF(BubblePivot!B200 = 0,NA(),BubblePivot!B200) ->  | C198: =IF(BubblePivot!C200 = 0,NA(),BubblePivot!C200) ->  | D198: =IF(BubblePivot!D200 = 0,NA(),BubblePivot!D200) -> 
A199: =IF(BubblePivot!A201 = 0,NA(),BubblePivot!A201) ->  | B199: =IF(BubblePivot!B201 = 0,NA(),BubblePivot!B201) ->  | C199: =IF(BubblePivot!C201 = 0,NA(),BubblePivot!C201) ->  | D199: =IF(BubblePivot!D201 = 0,NA(),BubblePivot!D201) -> 
A200: =IF(BubblePivot!A202 = 0,NA(),BubblePivot!A202) ->  | B200: =IF(BubblePivot!B202 = 0,NA(),BubblePivot!B202) ->  | C200: =IF(BubblePivot!C202 = 0,NA(),BubblePivot!C202) ->  | D200: =IF(BubblePivot!D202 = 0,NA(),BubblePivot!D202) -> 
... 557 more rows

Sheet SalarybyHour & Exp (hidden)
A1: Job Type | B1: Reporting | E1: Job Type | F1: Reporting
A3: Row Labels | B3: Average of Salary (User Chosen Curreny) | E3: Row Labels | F3: Average of Salary (User Chosen Curreny)
A4: 1 or 2 hours a day | B4: 107215.1804 | E4: 0-5 | F4: 67821.71017
A5: 2 to 3 hours per day | B5: 241924.7842 | E5: 6-10 | F5: 210558.5778
A6: 4 to 6 hours a day | B6: 146739.8569 | E6: 11-15 | F6: 383379.348
A7: All the 8 hours baby, all the 8! | B7: 150687.6757 | E7: 26-30 | F7: 303473.26
E8: No Response | F8: 310768.1363
A10: Job Type | B10: Reporting
A12: Row Labels | B12: Count of Job Type
A13: 1 or 2 hours a day | B13: 4 | C13: 1 or 2 hours a day
A14: 2 to 3 hours per day | B14: 12 | C14: 2 to 3 hours per day
A15: 4 to 6 hours a day | B15: 26 | C15: 4 to 6 hours a day
A16: All the 8 hours baby, all the 8! | B16: 41 | C16: All the 8 hours baby, all the 8!
C17: Excel ?!? What Excel?
E19: Job Type | F19: Reporting
A21: Max Count | B21: total count | E21: Average of Salary (User Chosen Curreny)
A22: =MAX(B13:B17) -> 41 | B22: =SUM(B13:B17) -> 83 | E22: 160546.8568 | G22: =E22 -> 160546.8568
A23: Most likely work day | B23: Probability | G23: =G22/1000 -> 160.5468568 | H23: =ROUNDDOWN(G23,0) -> 160 | I23: =G23-H23 -> 0.5468567992 | J23: =IF(H23>1000,"Y") -> FALSE
A24: =VLOOKUP(A22,B13:C17,2,FALSE) -> All the 8 hours baby, all the 8! | B24: =TEXT(ROUND(A22/B22,2),"00%") -> 49% | G24: =IF(J23="Y",J25& "," & TEXT(I23*1000,"000"),H23 & "," & TEXT(I23*1000,"000")) -> 160,547 | J24: =IF(J23="Y",H23/1000) -> FALSE | K24: =ROUNDDOWN(J24,0) -> 0 | L24: =J24-K24 -> 0
J25: =K24 & "," & TEXT(L24*1000,"000") -> 0,000

Sheet vlookUpExp (hidden)
A1: 0 | B1: =IF(A1<6,"0-5",IF(A1<11,"6-10",IF(A1<16,"11-15",IF(A1<21,"16-20",IF(A1<26,"21-25",IF(A1<31,"26-30",IF(A1<36,"31-35",IF(A1<41,"36-40")))))))) -> 0-5
A2: 0.1 | B2: =IF(A2<6,"0-5",IF(A2<11,"6-10",IF(A2<16,"11-15",IF(A2<21,"16-20",IF(A2<26,"21-25",IF(A2<31,"26-30",IF(A2<36,"31-35",IF(A2<41,"36-40")))))))) -> 0-5
A3: 0.3 | B3: 0-5
A4: 0.5 | B4: 0-5
A5: 0.6 | B5: 0-5
A6: 0.8 | B6: 0-5
A7: 1 | B7: 0-5
A8: 1.1 | B8: 0-5
A9: 1.5 | B9: 0-5
A10: 1.6 | B10: 0-5
A11: 2 | B11: 0-5
A12: 2.4 | B12: 0-5
A13: 2.5 | B13: 0-5
A14: 3 | B14: 0-5
A15: 3.5 | B15: 0-5
A16: 4 | B16: 0-5
A17: 4.5 | B17: 0-5
A18: 4.6 | B18: 0-5
A19: 5 | B19: 0-5
A20: 5.5 | B20: 0-5
A21: 5.6 | B21: 0-5
A22: 6 | B22: 6-10
A23: 6.4 | B23: 6-10
A24: 6.5 | B24: 6-10
A25: 7 | B25: 6-10
A26: 7.3 | B26: 6-10
A27: 7.9 | B27: 6-10
A28: 8 | B28: 6-10
A29: 8.5 | B29: 6-10
A30: 9 | B30: 6-10
A31: 10 | B31: 6-10
A32: 11 | B32: 11-15
A33: 12 | B33: 11-15
A34: 13 | B34: 11-15
A35: 14 | B35: 11-15
A36: 15 | B36: 11-15
A37: 16 | B37: 16-20
A38: 17 | B38: 16-20
A39: 18 | B39: 16-20
A40: 19 | B40: 16-20
A41: 20 | B41: 16-20
A42: 21 | B42: 21-25
A43: 22 | B43: 21-25
A44: 23 | B44: 21-25
A45: 25 | B45: 21-25
A46: 26 | B46: 26-30
A47: 27 | B47: 26-30
A48: 28 | B48: 26-30
A49: 29 | B49: 26-30
A50: 30 | B50: 26-30
A51: 32 | B51: 31-35
A52: 33 | B52: 31-35
A53: 34 | B53: 31-35
A54: 35 | B54: 31-35
A55: 36 | B55: 36-40
A56: 40 | B56: 36-40

Sheet BoxPlot Pivot (hidden)
A1: Job Type | B1: Reporting
D2: Clean Data | G2: Plotting Data
A3: Row Labels | B3: Sum of Salary (User Chosen Curreny) | D3: Min | E3: =ROUND(MIN($B$4:$B$5050),0) -> 15670 | G3: Bottom | H3: =E4 -> 34021
A4: ID0018 | B4: 369089.1 | D4: First Quartile | E4: =ROUND(QUARTILE($B$4:$B$5050,1),0) -> 34021 | G4: 2Q Box | H4: =E5-E4 -> 24403
A5: ID0141 | B5: 49076.21931 | D5: Median | E5: =ROUND(MEDIAN($B$4:$B$5050),0) -> 58424 | G5: 3Q Box | H5: =E6-E5 -> 93559
A6: ID0288 | B6: 180443.56 | D6: Third Quartile | E6: =ROUND(QUARTILE($B$4:$B$5050,3),0) -> 151983 | G6: Whisker- | H6: =E4-E3 -> 18351 | J6: =E4-E3 -> 18351 | K6: =IF(E3>J11, E3, J11) -> 15670
A7: ID0309 | B7: 2083958.158 | D7: Max | E7: =ROUND(MAX($B$4:$B$5050),0) -> 2083958 | G7: Whisker+ | H7: =E7-E6 -> 1931975 | J7: =E7-E6 -> 1931975 | K7: =IF(E7>J12,J12,E7) -> 270502
A8: ID0328 | B8: 88659.33422 | D8: Mean | E8: =ROUND(AVERAGE($B$4:$B$5050),0) -> 160547 | G8: Mean | H8: =E8 -> 160547
A9: ID0347 | B9: 31167.524
A10: ID0385 | B10: 123029.7
A11: ID0391 | B11: 98423.76 | I11: iqrWisker- | J11: =H3-I15 -> -142922
A12: ID0429 | B12: 246059.4 | I12: iqrWisker+ | J12: =H5+I15 -> 270502
A13: ID0448 | B13: 41009.9
A14: ID0492 | B14: 49211.88 | H14: iqr | I14: 1.5 iqr
A15: ID0549 | B15: 369089.1 | H15: =E6-E4 -> 117962 | I15: =1.5*H15 -> 176943
A16: ID0621 | B16: 23369.62824
A17: ID0625 | B17: 32807.92
A18: ID0629 | B18: 34448.316
A19: ID0644 | B19: 43818.05295 | F19: Box Plot Legend
A20: ID0647 | B20: 32807.92 | F20: Bottom | G20: 50274
A21: ID0651 | B21: 70108.88473 | F21: 2Q Box | G21: 111036
A22: ID0658 | B22: 123029.7 | F22: 3Q Box | G22: 150892
A23: ID0665 | B23: 29212.0353 | F23: Whisker- | G23: 40633
A24: ID0668 | B24: 33593.8406 | F24: Whisker+ | G24: 35847
A25: ID0676 | B25: 47469.55737 | F25: Mean | G25: 190000
A26: ID0694 | B26: 55502.86707
A27: ID0696 | B27: 36515.04413
A28: ID0716 | B28: 73030.08826
A29: ID0724 | B29: 58424.0706
A30: ID0758 | B30: 32863.53972
A31: ID0776 | B31: 110726.73
A32: ID0783 | B32: 15670.17781
A33: ID0786 | B33: 131231.68
A34: ID0795 | B34: 787390.08
A35: ID0800 | B35: 374905.6973
A36: ID0809 | B36: 24830.23001
A37: ID0842 | B37: 246059.4
A38: ID0846 | B38: 29212.0353
A39: ID0924 | B39: 26290.83177
A40: ID0940 | B40: 148127.7588
A41: ID0985 | B41: 697168.3
A42: ID1019 | B42: 164039.6
A43: ID1036 | B43: 30672.63707
A44: ID1038 | B44: 229655.44
A45: ID1044 | B45: 69524.64402
A46: ID1047 | B46: 26290.83177
A47: ID1051 | B47: 451108.9
A48: ID1066 | B48: 29212.0353
A49: ID1067 | B49: 41830.098
A50: ID1074 | B50: 57413.86
A51: ID1077 | B51: 55117.3056
A52: ID1078 | B52: 36515.04413
A53: ID1090 | B53: 36515.04413
A54: ID1128 | B54: 155837.62
A55: ID1131 | B55: 58424.0706
A56: ID1133 | B56: 193916.74
A57: ID1142 | B57: 29212.0353
A58: ID1193 | B58: 59054.256
A59: ID1225 | B59: 102242.1236
A60: ID1289 | B60: 43818.05295
A61: ID1311 | B61: 30672.63707
A62: ID1313 | B62: 29212.0353
A63: ID1326 | B63: 82019.8
A64: ID1330 | B64: 29796.27601
A65: ID1347 | B65: 54133.068
A66: ID1404 | B66: 303473.26
A67: ID1503 | B67: 40604.72907
A68: ID1505 | B68: 262463.36
A69: ID1562 | B69: 323194.5666
A70: ID1583 | B70: 697168.3
A71: ID1585 | B71: 825239.9973
A72: ID1602 | B72: 82019.8
A73: ID1625 | B73: 57413.86
A74: ID1648 | B74: 98423.76
A75: ID1657 | B75: 82019.8
A76: ID1665 | B76: 255901.776
A77: ID1668 | B77: 754582.16
A78: ID1686 | B78: 65727.07943
A79: ID1721 | B79: 21909.02648
A80: ID1732 | B80: 49211.88
A81: ID1753 | B81: 26290.83177
A82: ID1820 | B82: 65727.07943
A83: ID1903 | B83: 36515.04413
A84: ID1904 | B84: 24227.38708
A85: ID1914 | B85: 40312.60872
A86: ID1917 | B86: 68896.632

Sheet Data (hidden)
B1: Excel Salary Survey Data | G1: 12 | H1: =OFFSET(mapping!F4,mapping!F3-1,2) -> ZAR | I1: =VLOOKUP($H$1,USDtoUCC,2,FALSE) -> 
B3: Note: Experience data is not available for first few hundred rows. | G3: =[@[clean Salary (in local currency)]]*VLOOKUP([@Currency],tblXrate,2,FALSE)
B5: Unique ID | C5: Timestamp | D5: Your Salary | E5: clean Salary (in local currency) | F5: Currency | G5: Salary in USD | H5: Salary (User Chosen Curreny) | I5: Your Job Title | J5: Job Type | K5: Where do you work | L5: clean Country | M5: How many hours of a day you work on Excel | N5: Years of Experience | O5: Exp Bins
B6: ID0001 | C6: 2012-05-25T03:11:32 | D6: 5846 | E6: 5846 | F6: USD | G6: =tblSalaries[[#This Row],[clean Salary (in local currency)]]*VLOOKUP(tblSalaries[[#This Row],[Currency]],tblXrate[],2,FALSE) -> 5846 | H6: =IF($H$1="USD",tblSalaries[[#This Row],[Salary in USD]],tblSalaries[[#This Row],[Salary in USD]]*VLOOKUP($H$1,USDtoUserChoice,2,FALSE)) -> 47948.77508 | I6: MIS Analyst | J6: Analyst | K6: India | L6: =VLOOKUP(tblSalaries[[#This Row],[Where do you work]],tblCountries[[Actual]:[Mapping]],2,FALSE) -> India | M6: 4 to 6 hours a day | N6: =NA() ->  | O6: =IF(ISNA(VLOOKUP(tblSalaries[[#This Row],[Years of Experience]],vlookUpExp!$A$1:$B$56,2,FALSE)),"No Response",VLOOKUP(tblSalaries[[#This Row],[Years of Experience]],vlookUpExp!$A$1:$B$56,2,FALSE)) -> No Response
B7: ID0002 | C7: 2012-05-25T03:13:13 | D7: 15000 usd | E7: 15000 | F7: USD | G7: =tblSalaries[[#This Row],[clean Salary (in local currency)]]*VLOOKUP(tblSalaries[[#This Row],[Currency]],tblXrate[],2,FALSE) -> 15000 | H7: =IF($H$1="USD",tblSalaries[[#This Row],[Salary in USD]],tblSalaries[[#This Row],[Salary in USD]]*VLOOKUP($H$1,USDtoUserChoice,2,FALSE)) -> 123029.7 | I7: cost control | J7: Controller | K7: europe/Croatia | L7: =VLOOKUP(tblSalaries[[#This Row],[Where do you work]],tblCountries[[Actual]:[Mapping]],2,FALSE) -> Croatia | M7: All the 8 hours baby, all the 8! | N7: =NA() ->  | O7: =IF(ISNA(VLOOKUP(tblSalaries[[#This Row],[Years of Experience]],vlookUpExp!$A$1:$B$56,2,FALSE)),"No Response",VLOOKUP(tblSalaries[[#This Row],[Years of Experience]],vlookUpExp!$A$1:$B$56,2,FALSE)) -> No Response
B8: ID0003 | C8: 2012-05-25T03:16:26 | D8: 58000 | E8: 58000 | F8: USD | G8: =tblSalaries[[#This Row],[clean Salary (in local currency)]]*VLOOKUP(tblSalaries[[#This Row],[Currency]],tblXrate[],2,FALSE) -> 58000 | H8: =IF($H$1="USD",tblSalaries[[#This Row],[Salary in USD]],tblSalaries[[#This Row],[Salary in USD]]*VLOOKUP($H$1,USDtoUserChoice,2,FALSE)) -> 475714.84 | I8: Financial Analyst | J8: Analyst | K8: USA | L8: =VLOOKUP(tblSalaries[[#This Row],[Where do you work]],tblCountries[[Actual]:[Mapping]],2,FALSE) -> USA | M8: All the 8 hours baby, all the 8! | N8: =NA() ->  | O8: =IF(ISNA(VLOOKUP(tblSalaries[[#This Row],[Years of Experience]],vlookUpExp!$A$1:$B$56,2,FALSE)),"No Response",VLOOKUP(tblSalaries[[#This Row],[Years of Experience]],vlookUpExp!$A$1:$B$56,2,FALSE)) -> No Response
B9: ID0004 | C9: 2012-05-25T03:23:42 | D9: 48000 | E9: 48000 | F9: USD | G9: =tblSalaries[[#This Row],[clean Salary (in local currency)]]*VLOOKUP(tblSalaries[[#This Row],[Currency]],tblXrate[],2,FALSE) -> 48000 | H9: =IF($H$1="USD",tblSalaries[[#This Row],[Salary in USD]],tblSalaries[[#This Row],[Salary in USD]]*VLOOKUP($H$1,USDtoUserChoice,2,FALSE)) -> 393695.04 | I9: Quality Control | J9: Controller | K9: Pakistan | L9: =VLOOKUP(tblSalaries[[#This Row],[Where do you work]],tblCountries[[Actual]:[Mapping]],2,FALSE) -> Pakistan | M9: 2 to 3 hours per day | N9: =NA() ->  | O9: =IF(ISNA(VLOOKUP(tblSalaries[[#This Row],[Years of Experience]],vlookUpExp!$A$1:$B$56,2,FALSE)),"No Response",VLOOKUP(tblSalaries[[#This Row],[Years of Experience]],vlookUpExp!$A$1:$B$56,2,FALSE)) -> No Response
B10: ID0005 | C10: 2012-05-25T03:27:04 | D10: 54000 | E10: 54000 | F10: USD | G10: =tblSalaries[[#This Row],[clean Salary (in local currency)]]*VLOOKUP(tblSalaries[[#This Row],[Currency]],tblXrate[],2,FALSE) -> 54000 | H10: =IF($H$1="USD",tblSalaries[[#This Row],[Salary in USD]],tblSalaries[[#This Row],[Salary in USD]]*VLOOKUP($H$1,USDtoUserChoice,2,FALSE)) -> 442906.92 | I10: Quality Engineer | J10: Engineer | K10: USA | L10: =VLOOKUP(tblSalaries[[#This Row],[Where do you work]],tblCountries[[Actual]:[Mapping]],2,FALSE) -> USA | M10: All the 8 hours baby, all the 8! | N10: =NA() ->  | O10: =IF(ISNA(VLOOKUP(tblSalaries[[#This Row],[Years of Experience]],vlookUpExp!$A$1:$B$56,2,FALSE)),"No Response",VLOOKUP(tblSalaries[[#This Row],[Years of Experience]],vlookUpExp!$A$1:$B$56,2,FALSE)) -> No Response
B11: ID0006 | C11: 2012-05-25T03:28:28 | D11: 41731 | E11: 41731 | F11: USD | G11: =tblSalaries[[#This Row],[clean Salary (in local currency)]]*VLOOKUP(tblSalaries[[#This Row],[Currency]],tblXrate[],2,FALSE) -> 41731 | H11: =IF($H$1="USD",tblSalaries[[#This Row],[Salary in USD]],tblSalaries[[#This Row],[Salary in USD]]*VLOOKUP($H$1,USDtoUserChoice,2,FALSE)) -> 342276.8274 | I11: Analyst | J11: Analyst | K11: Iceland | L11: =VLOOKUP(tblSalaries[[#This Row],[Where do you work]],tblCountries[[Actual]:[Mapping]],2,FALSE) -> Iceland | M11: All the 8 hours baby, all the 8! | N11: =NA() ->  | O11: =IF(ISNA(VLOOKUP(tblSalaries[[#This Row],[Years of Experience]],vlookUpExp!$A$1:$B$56,2,FALSE)),"No Response",VLOOKUP(tblSalaries[[#This Row],[Years of Experience]],vlookUpExp!$A$1:$B$56,2,FALSE)) -> No Response
B12: ID0007 | C12: 2012-05-25T03:33:51 | D12: 145000 | E12: 145000 | F12: EUR | G12: =tblSalaries[[#This Row],[clean Salary (in local currency)]]*VLOOKUP(tblSalaries[[#This Row],[Currency]],tblXrate[],2,FALSE) -> 184207.9187 | H12: =IF($H$1="USD",tblSalaries[[#This Row],[Salary in USD]],tblSalaries[[#This Row],[Salary in USD]]*VLOOKUP($H$1,USDtoUserChoice,2,FALSE)) -> 1510869.665 | I12: senior project manager | J12: Manager | K12: Germany | L12: =VLOOKUP(tblSalaries[[#This Row],[Where do you work]],tblCountries[[Actual]:[Mapping]],2,FALSE) -> Germany | M12: 1 or 2 hours a day | N12: =NA() ->  | O12: =IF(ISNA(VLOOKUP(tblSalaries[[#This Row],[Years of Experience]],vlookUpExp!$A$1:$B$56,2,FALSE)),"No Response",VLOOKUP(tblSalaries[[#This Row],[Years of Experience]],vlookUpExp!$A$1:$B$56,2,FALSE)) -> No Response
B13: ID0008 | C13: 2012-05-25T03:36:37 | D13: 12000 | E13: 12000 | F13: USD | G13: =tblSalaries[[#This Row],[clean Salary (in local currency)]]*VLOOKUP(tblSalaries[[#This Row],[Currency]],tblXrate[],2,FALSE) -> 12000 | H13: =IF($H$1="USD",tblSalaries[[#This Row],[Salary in USD]],tblSalaries[[#This Row],[Salary in USD]]*VLOOKUP($H$1,USDtoUserChoice,2,FALSE)) -> 98423.76 | I13: Assistant SP&A | J13: Analyst | K13: Ukraine | L13: =VLOOKUP(tblSalaries[[#This Row],[Where do you work]],tblCountries[[Actual]:[Mapping]],2,FALSE) -> Ukraine | M13: All the 8 hours baby, all the 8! | N13: =NA() ->  | O13: =IF(ISNA(VLOOKUP(tblSalaries[[#This Row],[Years of Experience]],vlookUpExp!$A$1:$B$56,2,FALSE)),"No Response",VLOOKUP(tblSalaries[[#This Row],[Years of Experience]],vlookUpExp!$A$1:$B$56,2,FALSE)) -> No Response
B14: ID0009 | C14: 2012-05-25T03:37:17 | D14: 44000 $ | E14: 44000 | F14: USD | G14: =tblSalaries[[#This Row],[clean Salary (in local currency)]]*VLOOKUP(tblSalaries[[#This Row],[Currency]],tblXrate[],2,FALSE) -> 44000 | H14: =IF($H$1="USD",tblSalaries[[#This Row],[Salary in USD]],tblSalaries[[#This Row],[Salary in USD]]*VLOOKUP($H$1,USDtoUserChoice,2,FALSE)) -> 360887.12 | I14: CFO | J14: CXO or Top Mgmt. | K14: Portugal | L14: =VLOOKUP(tblSalaries[[#This Row],[Where do you work]],tblCountries[[Actual]:[Mapping]],2,FALSE) -> Portugal | M14: 1 or 2 hours a day | N14: =NA() ->  | O14: =IF(ISNA(VLOOKUP(tblSalaries[[#This Row],[Years of Experience]],vlookUpExp!$A$1:$B$56,2,FALSE)),"No Response",VLOOKUP(tblSalaries[[#This Row],[Years of Experience]],vlookUpExp!$A$1:$B$56,2,FALSE)) -> No Response
B15: ID0010 | C15: 2012-05-25T03:38:57 | D15: PKR 8,000 | E15: 1152000 | F15: PKR | G15: =tblSalaries[[#This Row],[clean Salary (in local currency)]]*VLOOKUP(tblSalaries[[#This Row],[Currency]],tblXrate[],2,FALSE) -> 12227.4302 | H15: =IF($H$1="USD",tblSalaries[[#This Row],[Salary in USD]],tblSalaries[[#This Row],[Salary in USD]]*VLOOKUP($H$1,USDtoUserChoice,2,FALSE)) -> 100289.138 | I15: Audit Trainee | J15: Accountant | K15: Pakistan | L15: =VLOOKUP(tblSalaries[[#This Row],[Where do you work]],tblCountries[[Actual]:[Mapping]],2,FALSE) -> Pakistan | M15: All the 8 hours baby, all the 8! | N15: =NA() ->  | O15: =IF(ISNA(VLOOKUP(tblSalaries[[#This Row],[Years of Experience]],vlookUpExp!$A$1:$B$56,2,FALSE)),"No Response",VLOOKUP(tblSalaries[[#This Row],[Years of Experience]],vlookUpExp!$A$1:$B$56,2,FALSE)) -> No Response
B16: ID0011 | C16: 2012-05-25T03:43:45 | D16: â‚¬ 51650 | E16: 51650 | F16: EUR | G16: =tblSalaries[[#This Row],[clean Salary (in local currency)]]*VLOOKUP(tblSalaries[[#This Row],[Currency]],tblXrate[],2,FALSE) -> 65616.13102 | H16: =IF($H$1="USD",tblSalaries[[#This Row],[Salary in USD]],tblSalaries[[#This Row],[Salary in USD]]*VLOOKUP($H$1,USDtoUserChoice,2,FALSE)) -> 538182.1943 | I16: Training Specialist | J16: Specialist | K16: Ireland | L16: =VLOOKUP(tblSalaries[[#This Row],[Where do you work]],tblCountries[[Actual]:[Mapping]],2,FALSE) -> Ireland | M16: 2 to 3 hours per day | N16: =NA() ->  | O16: =IF(ISNA(VLOOKUP(tblSalaries[[#This Row],[Years of Experience]],vlookUpExp!$A$1:$B$56,2,FALSE)),"No Response",VLOOKUP(tblSalaries[[#This Row],[Years of Experience]],vlookUpExp!$A$1:$B$56,2,FALSE)) -> No Response
B17: ID0012 | C17: 2012-05-25T03:43:56 | D17: 14000 | E17: 14000 | F17: USD | G17: =tblSalaries[[#This Row],[clean Salary (in local currency)]]*VLOOKUP(tblSalaries[[#This Row],[Currency]],tblXrate[],2,FALSE) -> 14000 | H17: =IF($H$1="USD",tblSalaries[[#This Row],[Salary in USD]],tblSalaries[[#This Row],[Salary in USD]]*VLOOKUP($H$1,USDtoUserChoice,2,FALSE)) -> 114827.72 | I17: quality engineer | J17: Engineer | K17: Hungary | L17: =VLOOKUP(tblSalaries[[#This Row],[Where do you work]],tblCountries[[Actual]:[Mapping]],2,FALSE) -> Hungary | M17: 4 to 6 hours a day | N17: =NA() ->  | O17: =IF(ISNA(VLOOKUP(tblSalaries[[#This Row],[Years of Experience]],vlookUpExp!$A$1:$B$56,2,FALSE)),"No Response",VLOOKUP(tblSalaries[[#This Row],[Years of Experience]],vlookUpExp!$A$1:$B$56,2,FALSE)) -> No Response
B18: ID0013 | C18: 2012-05-25T03:48:53 | D18: 749000 INR | E18: 749000 | F18: INR | G18: =tblSalaries[[#This Row],[clean Salary (in local currency)]]*VLOOKUP(tblSalaries[[#This Row],[Currency]],tblXrate[],2,FALSE) -> 13338.1296 | H18: =IF($H$1="USD",tblSalaries[[#This Row],[Salary in USD]],tblSalaries[[#This Row],[Salary in USD]]*VLOOKUP($H$1,USDtoUserChoice,2,FALSE)) -> 109399.0722 | I18: Senion Analyst | J18: Analyst | K18: India | L18: =VLOOKUP(tblSalaries[[#This Row],[Where do you work]],tblCountries[[Actual]:[Mapping]],2,FALSE) -> India | M18: All the 8 hours baby, all the 8! | N18: =NA() ->  | O18: =IF(ISNA(VLOOKUP(tblSalaries[[#This Row],[Years of Experience]],vlookUpExp!$A$1:$B$56,2,FALSE)),"No Response",VLOOKUP(tblSalaries[[#This Row],[Years of Experience]],vlookUpExp!$A$1:$B$56,2,FALSE)) -> No Response
B19: ID0014 | C19: 2012-05-25T03:50:58 | D19: 49000 | E19: 49000 | F19: USD | G19: =tblSalaries[[#This Row],[clean Salary (in local currency)]]*VLOOKUP(tblSalaries[[#This Row],[Currency]],tblXrate[],2,FALSE) -> 49000 | H19: =IF($H$1="USD",tblSalaries[[#This Row],[Salary in USD]],tblSalaries[[#This Row],[Salary in USD]]*VLOOKUP($H$1,USDtoUserChoice,2,FALSE)) -> 401897.02 | I19: business analyst | J19: Analyst | K19: USA | L19: =VLOOKUP(tblSalaries[[#This Row],[Where do you work]],tblCountries[[Actual]:[Mapping]],2,FALSE) -> USA | M19: All the 8 hours baby, all the 8! | N19: =NA() ->  | O19: =IF(ISNA(VLOOKUP(tblSalaries[[#This Row],[Years of Experience]],vlookUpExp!$A$1:$B$56,2,FALSE)),"No Response",VLOOKUP(tblSalaries[[#This Row],[Years of Experience]],vlookUpExp!$A$1:$B$56,2,FALSE)) -> No Response
B20: ID0015 | C20: 2012-05-25T03:53:22 | D20: 85000 | E20: 85000 | F20: USD | G20: =tblSalaries[[#This Row],[clean Salary (in local currency)]]*VLOOKUP(tblSalaries[[#This Row],[Currency]],tblXrate[],2,FALSE) -> 85000 | H20: =IF($H$1="USD",tblSalaries[[#This Row],[Salary in USD]],tblSalaries[[#This Row],[Salary in USD]]*VLOOKUP($H$1,USDtoUserChoice,2,FALSE)) -> 697168.3 | I20: Project Engineer | J20: Engineer | K20: USA | L20: =VLOOKUP(tblSalaries[[#This Row],[Where do you work]],tblCountries[[Actual]:[Mapping]],2,FALSE) -> USA | M20: 1 or 2 hours a day | N20: =NA() ->  | O20: =IF(ISNA(VLOOKUP(tblSalaries[[#This Row],[Years of Experience]],vlookUpExp!$A$1:$B$56,2,FALSE)),"No Response",VLOOKUP(tblSalaries[[#This Row],[Years of Experience]],vlookUpExp!$A$1:$B$56,2,FALSE)) -> No Response
B21: ID0016 | C21: 2012-05-25T03:56:40 | D21: 75000 | E21: 75000 | F21: USD | G21: =tblSalaries[[#This Row],[clean Salary (in local currency)]]*VLOOKUP(tblSalaries[[#This Row],[Currency]],tblXrate[],2,FALSE) -> 75000 | H21: =IF($H$1="USD",tblSalaries[[#This Row],[Salary in USD]],tblSalaries[[#This Row],[Salary in USD]]*VLOOKUP($H$1,USDtoUserChoice,2,FALSE)) -> 615148.5 | I21: Sr Project Engineer | J21: Engineer | K21: USA | L21: =VLOOKUP(tblSalaries[[#This Row],[Where do you work]],tblCountries[[Actual]:[Mapping]],2,FALSE) -> USA | M21: All the 8 hours baby, all the 8! | N21: =NA() ->  | O21: =IF(ISNA(VLOOKUP(tblSalaries[[#This Row],[Years of Experience]],vlookUpExp!$A$1:$B$56,2,FALSE)),"No Response",VLOOKUP(tblSalaries[[#This Row],[Years of Experience]],vlookUpExp!$A$1:$B$56,2,FALSE)) -> No Response
B22: ID0017 | C22: 2012-05-25T04:10:11 | D22: 107000 | E22: 107000 | F22: USD | G22: =tblSalaries[[#This Row],[clean Salary (in local currency)]]*VLOOKUP(tblSalaries[[#This Row],[Currency]],tblXrate[],2,FALSE) -> 107000 | H22: =IF($H$1="USD",tblSalaries[[#This Row],[Salary in USD]],tblSalaries[[#This Row],[Salary in USD]]*VLOOKUP($H$1,USDtoUserChoice,2,FALSE)) -> 877611.86 | I22: Business Development | J22: Manager | K22: Switzerland | L22: =VLOOKUP(tblSalaries[[#This Row],[Where do you work]],tblCountries[[Actual]:[Mapping]],2,FALSE) -> Switzerland | M22: 4 to 6 hours a day | N22: =NA() ->  | O22: =IF(ISNA(VLOOKUP(tblSalaries[[#This Row],[Years of Experience]],vlookUpExp!$A$1:$B$56,2,FALSE)),"No Response",VLOOKUP(tblSalaries[[#This Row],[Years of Experience]],vlookUpExp!$A$1:$B$56,2,FALSE)) -> No Response
B23: ID0018 | C23: 2012-05-25T04:10:44 | D23: 45000 | E23: 45000 | F23: USD | G23: =tblSalaries[[#This Row],[clean Salary (in local currency)]]*VLOOKUP(tblSalaries[[#This Row],[Currency]],tblXrate[],2,FALSE) -> 45000 | H23: =IF($H$1="USD",tblSalaries[[#This Row],[Salary in USD]],tblSalaries[[#This Row],[Salary in USD]]*VLOOKUP($H$1,USDtoUserChoice,2,FALSE)) -> 369089.1 | I23: Excel Report Writer | J23: Reporting | K23: South Africa | L23: =VLOOKUP(tblSalaries[[#This Row],[Where do you work]],tblCountries[[Actual]:[Mapping]],2,FALSE) -> South Africa | M23: All the 8 hours baby, all the 8! | N23: =NA() ->  | O23: =IF(ISNA(VLOOKUP(tblSalaries[[#This Row],[Years of Experience]],vlookUpExp!$A$1:$B$56,2,FALSE)),"No Response",VLOOKUP(tblSalaries[[#This Row],[Years of Experience]],vlookUpExp!$A$1:$B$56,2,FALSE)) -> No Response
B24: ID0019 | C24: 2012-05-25T04:16:32 | D24: 550000 | E24: 550000 | F24: INR | G24: =tblSalaries[[#This Row],[clean Salary (in local currency)]]*VLOOKUP(tblSalaries[[#This Row],[Currency]],tblXrate[],2,FALSE) -> 9794.354178 | H24: =IF($H$1="USD",tblSalaries[[#This Row],[Salary in USD]],tblSalaries[[#This Row],[Salary in USD]]*VLOOKUP($H$1,USDtoUserChoice,2,FALSE)) -> 80333.09708 | I24: AGM | J24: Manager | K24: India | L24: =VLOOKUP(tblSalaries[[#This Row],[Where do you work]],tblCountries[[Actual]:[Mapping]],2,FALSE) -> India | M24: 2 to 3 hours per day | N24: =NA() ->  | O24: =IF(ISNA(VLOOKUP(tblSalaries[[#This Row],[Years of Experience]],vlookUpExp!$A$1:$B$56,2,FALSE)),"No Response",VLOOKUP(tblSalaries[[#This Row],[Years of Experience]],vlookUpExp!$A$1:$B$56,2,FALSE)) -> No Response
B25: ID0020 | C25: 2012-05-25T04:19:22 | D25: 50000 | E25: 50000 | F25: USD | G25: =tblSalaries[[#This Row],[clean Salary (in local currency)]]*VLOOKUP(tblSalaries[[#This Row],[Currency]],tblXrate[],2,FALSE) -> 50000 | H25: =IF($H$1="USD",tblSalaries[[#This Row],[Salary in USD]],tblSalaries[[#This Row],[Salary in USD]]*VLOOKUP($H$1,USDtoUserChoice,2,FALSE)) -> 410099 | I25: GM | J25: Manager | K25: India | L25: =VLOOKUP(tblSalaries[[#This Row],[Where do you work]],tblCountries[[Actual]:[Mapping]],2,FALSE) -> India | M25: 1 or 2 hours a day | N25: =NA() ->  | O25: =IF(ISNA(VLOOKUP(tblSalaries[[#This Row],[Years of Experience]],vlookUpExp!$A$1:$B$56,2,FALSE)),"No Response",VLOOKUP(tblSalaries[[#This Row],[Years of Experience]],vlookUpExp!$A$1:$B$56,2,FALSE)) -> No Response
B26: ID0021 | C26: 2012-05-25T04:24:01 | D26: 13500 | E26: 13500 | F26: USD | G26: =tblSalaries[[#This Row],[clean Salary (in local currency)]]*VLOOKUP(tblSalaries[[#This Row],[Currency]],tblXrate[],2,FALSE) -> 13500 | H26: =IF($H$1="USD",tblSalaries[[#This Row],[Salary in USD]],tblSalaries[[#This Row],[Salary in USD]]*VLOOKUP($H$1,USDtoUserChoice,2,FALSE)) -> 110726.73 | I26: DSE Co-ordinator | J26: Manager | K26: India | L26: =VLOOKUP(tblSalaries[[#This Row],[Where do you work]],tblCountries[[Actual]:[Mapping]],2,FALSE) -> India | M26: 4 to 6 hours a day | N26: =NA() ->  | O26: =IF(ISNA(VLOOKUP(tblSalaries[[#This Row],[Years of Experience]],vlookUpExp!$A$1:$B$56,2,FALSE)),"No Response",VLOOKUP(tblSalaries[[#This Row],[Years of Experience]],vlookUpExp!$A$1:$B$56,2,FALSE)) -> No Response
B27: ID0022 | C27: 2012-05-25T04:24:12 | D27: 96000 | E27: 96000 | F27: USD | G27: =tblSalaries[[#This Row],[clean Salary (in local currency)]]*VLOOKUP(tblSalaries[[#This Row],[Currency]],tblXrate[],2,FALSE) -> 96000 | H27: =IF($H$1="USD",tblSalaries[[#This Row],[Salary in USD]],tblSalaries[[#This Row],[Salary in USD]]*VLOOKUP($H$1,USDtoUserChoice,2,FALSE)) -> 787390.08 | I27: Analyst | J27: Analyst | K27: USA | L27: =VLOOKUP(tblSalaries[[#This Row],[Where do you work]],tblCountries[[Actual]:[Mapping]],2,FALSE) -> USA | M27: 2 to 3 hours per day | N27: =NA() ->  | O27: =IF(ISNA(VLOOKUP(tblSalaries[[#This Row],[Years of Experience]],vlookUpExp!$A$1:$B$56,2,FALSE)),"No Response",VLOOKUP(tblSalaries[[#This Row],[Years of Experience]],vlookUpExp!$A$1:$B$56,2,FALSE)) -> No Response
B28: ID0023 | C28: 2012-05-25T04:31:41 | D28: 1000000 | E28: 1000000 | F28: INR | G28: =tblSalaries[[#This Row],[clean Salary (in local currency)]]*VLOOKUP(tblSalaries[[#This Row],[Currency]],tblXrate[],2,FALSE) -> 17807.91669 | H28: =IF($H$1="USD",tblSalaries[[#This Row],[Salary in USD]],tblSalaries[[#This Row],[Salary in USD]]*VLOOKUP($H$1,USDtoUserChoice,2,FALSE)) -> 146060.1765 | I28: Manager | J28: Manager | K28: India | L28: =VLOOKUP(tblSalaries[[#This Row],[Where do you work]],tblCountries[[Actual]:[Mapping]],2,FALSE) -> India | M28: 4 to 6 hours a day | N28: =NA() ->  | O28: =IF(ISNA(VLOOKUP(tblSalaries[[#This Row],[Years of Experience]],vlookUpExp!$A$1:$B$56,2,FALSE)),"No Response",VLOOKUP(tblSalaries[[#This Row],[Years of Experience]],vlookUpExp!$A$1:$B$56,2,FALSE)) -> No Response
B29: ID0024 | C29: 2012-05-25T04:32:49 | D29: 75000 | E29: 75000 | F29: USD | G29: =tblSalaries[[#This Row],[clean Salary (in local currency)]]*VLOOKUP(tblSalaries[[#This Row],[Currency]],tblXrate[],2,FALSE) -> 75000 | H29: =IF($H$1="USD",tblSalaries[[#This Row],[Salary in USD]],tblSalaries[[#This Row],[Salary in USD]]*VLOOKUP($H$1,USDtoUserChoice,2,FALSE)) -> 615148.5 | I29: Marketing Director | J29: CXO or Top Mgmt. | K29: USA | L29: =VLOOKUP(tblSalaries[[#This Row],[Where do you work]],tblCountries[[Actual]:[Mapping]],2,FALSE) -> USA | M29: 4 to 6 hours a day | N29: =NA() ->  | O29: =IF(ISNA(VLOOKUP(tblSalaries[[#This Row],[Years of Experience]],vlookUpExp!$A$1:$B$56,2,FALSE)),"No Response",VLOOKUP(tblSalaries[[#This Row],[Years of Experience]],vlookUpExp!$A$1:$B$56,2,FALSE)) -> No Response
B30: ID0025 | C30: 2012-05-25T04:43:51 | D30: 40000 us | E30: 40000 | F30: USD | G30: =tblSalaries[[#This Row],[clean Salary (in local currency)]]*VLOOKUP(tblSalaries[[#This Row],[Currency]],tblXrate[],2,FALSE) -> 40000 | H30: =IF($H$1="USD",tblSalaries[[#This Row],[Salary in USD]],tblSalaries[[#This Row],[Salary in USD]]*VLOOKUP($H$1,USDtoUserChoice,2,FALSE)) -> 328079.2 | I30: sales and marketing | J30: Manager | K30: USA | L30: =VLOOKUP(tblSalaries[[#This Row],[Where do you work]],tblCountries[[Actual]:[Mapping]],2,FALSE) -> USA | M30: 2 to 3 hours per day | N30: =NA() ->  | O30: =IF(ISNA(VLOOKUP(tblSalaries[[#This Row],[Years of Experience]],vlookUpExp!$A$1:$B$56,2,FALSE)),"No Response",VLOOKUP(tblSalaries[[#This Row],[Years of Experience]],vlookUpExp!$A$1:$B$56,2,FALSE)) -> No Response
B31: ID0026 | C31: 2012-05-25T04:45:01 | D31: 60000 | E31: 60000 | F31: USD | G31: =tblSalaries[[#This Row],[clean Salary (in local currency)]]*VLOOKUP(tblSalaries[[#This Row],[Currency]],tblXrate[],2,FALSE) -> 60000 | H31: =IF($H$1="USD",tblSalaries[[#This Row],[Salary in USD]],tblSalaries[[#This Row],[Salary in USD]]*VLOOKUP($H$1,USDtoUserChoice,2,FALSE)) -> 492118.8 | I31: Analyst II | J31: Analyst | K31: USA | L31: =VLOOKUP(tblSalaries[[#This Row],[Where do you work]],tblCountries[[Actual]:[Mapping]],2,FALSE) -> USA | M31: All the 8 hours baby, all the 8! | N31: =NA() ->  | O31: =IF(ISNA(VLOOKUP(tblSalaries[[#This Row],[Years of Experience]],vlookUpExp!$A$1:$B$56,2,FALSE)),"No Response",VLOOKUP(tblSalaries[[#This Row],[Years of Experience]],vlookUpExp!$A$1:$B$56,2,FALSE)) -> No Response
B32: ID0028 | C32: 2012-05-25T04:48:33 | D32: 2700 | E32: 32400 | F32: EUR | G32: =tblSalaries[[#This Row],[clean Salary (in local currency)]]*VLOOKUP(tblSalaries[[#This Row],[Currency]],tblXrate[],2,FALSE) -> 41160.94182 | H32: =IF($H$1="USD",tblSalaries[[#This Row],[Salary in USD]],tblSalaries[[#This Row],[Salary in USD]]*VLOOKUP($H$1,USDtoUserChoice,2,FALSE)) -> 337601.2216 | I32: Project Leader | J32: Manager | K32: Belgium | L32: =VLOOKUP(tblSalaries[[#This Row],[Where do you work]],tblCountries[[Actual]:[Mapping]],2,FALSE) -> Belgium | M32: 4 to 6 hours a day | N32: =NA() ->  | O32: =IF(ISNA(VLOOKUP(tblSalaries[[#This Row],[Years of Experience]],vlookUpExp!$A$1:$B$56,2,FALSE)),"No Response",VLOOKUP(tblSalaries[[#This Row],[Years of Experience]],vlookUpExp!$A$1:$B$56,2,FALSE)) -> No Response
B33: ID0029 | C33: 2012-05-25T04:52:23 | D33: 900000 INR | E33: 900000 | F33: INR | G33: =tblSalaries[[#This Row],[clean Salary (in local currency)]]*VLOOKUP(tblSalaries[[#This Row],[Currency]],tblXrate[],2,FALSE) -> 16027.12502 | H33: =IF($H$1="USD",tblSalaries[[#This Row],[Salary in USD]],tblSalaries[[#This Row],[Salary in USD]]*VLOOKUP($H$1,USDtoUserChoice,2,FALSE)) -> 131454.1589 | I33: Applications Engineer | J33: Engineer | K33: India | L33: =VLOOKUP(tblSalaries[[#This Row],[Where do you work]],tblCountries[[Actual]:[Mapping]],2,FALSE) -> India | M33: 1 or 2 hours a day | N33: =NA() ->  | O33: =IF(ISNA(VLOOKUP(tblSalaries[[#This Row],[Years of Experience]],vlookUpExp!$A$1:$B$56,2,FALSE)),"No Response",VLOOKUP(tblSalaries[[#This Row],[Years of Experience]],vlookUpExp!$A$1:$B$56,2,FALSE)) -> No Response
B34: ID0030 | C34: 2012-05-25T04:55:35 | D34: Rs 600000 | E34: 600000 | F34: INR | G34: =tblSalaries[[#This Row],[clean Salary (in local currency)]]*VLOOKUP(tblSalaries[[#This Row],[Currency]],tblXrate[],2,FALSE) -> 10684.75001 | H34: =IF($H$1="USD",tblSalaries[[#This Row],[Salary in USD]],tblSalaries[[#This Row],[Salary in USD]]*VLOOKUP($H$1,USDtoUserChoice,2,FALSE)) -> 87636.10591 | I34: strategy manager | J34: Manager | K34: India | L34: =VLOOKUP(tblSalaries[[#This Row],[Where do you work]],tblCountries[[Actual]:[Mapping]],2,FALSE) -> India | M34: 4 to 6 hours a day | N34: =NA() ->  | O34: =IF(ISNA(VLOOKUP(tblSalaries[[#This Row],[Years of Experience]],vlookUpExp!$A$1:$B$56,2,FALSE)),"No Response",VLOOKUP(tblSalaries[[#This Row],[Years of Experience]],vlookUpExp!$A$1:$B$56,2,FALSE)) -> No Response
B35: ID0031 | C35: 2012-05-25T04:55:48 | D35: 41000 | E35: 41000 | F35: USD | G35: =tblSalaries[[#This Row],[clean Salary (in local currency)]]*VLOOKUP(tblSalaries[[#This Row],[Currency]],tblXrate[],2,FALSE) -> 41000 | H35: =IF($H$1="USD",tblSalaries[[#This Row],[Salary in USD]],tblSalaries[[#This Row],[Salary in USD]]*VLOOKUP($H$1,USDtoUserChoice,2,FALSE)) -> 336281.18 | I35: Chief of the department of public budget analisis and forecasting | J35: Manager | K35: Russia | L35: =VLOOKUP(tblSalaries[[#This Row],[Where do you work]],tblCountries[[Actual]:[Mapping]],2,FALSE) -> Russia | M35: All the 8 hours baby, all the 8! | N35: =NA() ->  | O35: =IF(ISNA(VLOOKUP(tblSalaries[[#This Row],[Years of Experience]],vlookUpExp!$A$1:$B$56,2,FALSE)),"No Response",VLOOKUP(tblSalaries[[#This Row],[Years of Experience]],vlookUpExp!$A$1:$B$56,2,FALSE)) -> No Response
B36: ID0032 | C36: 2012-05-25T04:57:06 | D36: 360000 INR | E36: 360000 | F36: INR | G36: =tblSalaries[[#This Row],[clean Salary (in local currency)]]*VLOOKUP(tblSalaries[[#This Row],[Currency]],tblXrate[],2,FALSE) -> 6410.850007 | H36: =IF($H$1="USD",tblSalaries[[#This Row],[Salary in USD]],tblSalaries[[#This Row],[Salary in USD]]*VLOOKUP($H$1,USDtoUserChoice,2,FALSE)) -> 52581.66354 | I36: Specialist | J36: Specialist | K36: India | L36: =VLOOKUP(tblSalaries[[#This Row],[Where do you work]],tblCountries[[Actual]:[Mapping]],2,FALSE) -> India | M36: 4 to 6 hours a day | N36: =NA() ->  | O36: =IF(ISNA(VLOOKUP(tblSalaries[[#This Row],[Years of Experience]],vlookUpExp!$A$1:$B$56,2,FALSE)),"No Response",VLOOKUP(tblSalaries[[#This Row],[Years of Experience]],vlookUpExp!$A$1:$B$56,2,FALSE)) -> No Response
B37: ID0033 | C37: 2012-05-25T04:58:45 | D37: Â£35000 | E37: 35000 | F37: GBP | G37: =tblSalaries[[#This Row],[clean Salary (in local currency)]]*VLOOKUP(tblSalaries[[#This Row],[Currency]],tblXrate[],2,FALSE) -> 55166.23952 | H37: =IF($H$1="USD",tblSalaries[[#This Row],[Salary in USD]],tblSalaries[[#This Row],[Salary in USD]]*VLOOKUP($H$1,USDtoUserChoice,2,FALSE)) -> 452472.3932 | I37: Management Information Analyst | J37: Analyst | K37: UK | L37: =VLOOKUP(tblSalaries[[#This Row],[Where do you work]],tblCountries[[Actual]:[Mapping]],2,FALSE) -> UK | M37: All the 8 hours baby, all the 8! | N37: =NA() ->  | O37: =IF(ISNA(VLOOKUP(tblSalaries[[#This Row],[Years of Experience]],vlookUpExp!$A$1:$B$56,2,FALSE)),"No Response",VLOOKUP(tblSalaries[[#This Row],[Years of Experience]],vlookUpExp!$A$1:$B$56,2,FALSE)) -> No Response
B38: ID0035 | C38: 2012-05-25T05:01:09 | D38: 1600 $ | E38: 19200 | F38: USD | G38: =tblSalaries[[#This Row],[clean Salary (in local currency)]]*VLOOKUP(tblSalaries[[#This Row],[Currency]],tblXrate[],2,FALSE) -> 19200 | H38: =IF($H$1="USD",tblSalaries[[#This Row],[Salary in USD]],tblSalaries[[#This Row],[Salary in USD]]*VLOOKUP($H$1,USDtoUserChoice,2,FALSE)) -> 157478.016 | I38: Analyst | J38: Analyst | K38: Poland | L38: =VLOOKUP(tblSalaries[[#This Row],[Where do you work]],tblCountries[[Actual]:[Mapping]],2,FALSE) -> Poland | M38: 2 to 3 hours per day | N38: =NA() ->  | O38: =IF(ISNA(VLOOKUP(tblSalaries[[#This Row],[Years of Experience]],vlookUpExp!$A$1:$B$56,2,FALSE)),"No Response",VLOOKUP(tblSalaries[[#This Row],[Years of Experience]],vlookUpExp!$A$1:$B$56,2,FALSE)) -> No Response
B39: ID0036 | C39: 2012-05-25T05:04:12 | D39: 500000 | E39: 500000 | F39: INR | G39: =tblSalaries[[#This Row],[clean Salary (in local currency)]]*VLOOKUP(tblSalaries[[#This Row],[Currency]],tblXrate[],2,FALSE) -> 8903.958344 | H39: =IF($H$1="USD",tblSalaries[[#This Row],[Salary in USD]],tblSalaries[[#This Row],[Salary in USD]]*VLOOKUP($H$1,USDtoUserChoice,2,FALSE)) -> 73030.08826 | I39: Senior Consultant | J39: Consultant | K39: India | L39: =VLOOKUP(tblSalaries[[#This Row],[Where do you work]],tblCountries[[Actual]:[Mapping]],2,FALSE) -> India | M39: All the 8 hours baby, all the 8! | N39: =NA() ->  | O39: =IF(ISNA(VLOOKUP(tblSalaries[[#This Row],[Years of Experience]],vlookUpExp!$A$1:$B$56,2,FALSE)),"No Response",VLOOKUP(tblSalaries[[#This Row],[Years of Experience]],vlookUpExp!$A$1:$B$56,2,FALSE)) -> No Response
B40: ID0037 | C40: 2012-05-25T05:07:31 | D40: 150000 | E40: 150000 | F40: USD | G40: =tblSalaries[[#This Row],[clean Salary (in local currency)]]*VLOOKUP(tblSalaries[[#This Row],[Currency]],tblXrate[],2,FALSE) -> 150000 | H40: =IF($H$1="USD",tblSalaries[[#This Row],[Salary in USD]],tblSalaries[[#This Row],[Salary in USD]]*VLOOKUP($H$1,USDtoUserChoice,2,FALSE)) -> 1230297 | I40: Portfolio Manager | J40: Manager | K40: USA | L40: =VLOOKUP(tblSalaries[[#This Row],[Where do you work]],tblCountries[[Actual]:[Mapping]],2,FALSE) -> USA | M40: 2 to 3 hours per day | N40: =NA() ->  | O40: =IF(ISNA(VLOOKUP(tblSalaries[[#This Row],[Years of Experience]],vlookUpExp!$A$1:$B$56,2,FALSE)),"No Response",VLOOKUP(tblSalaries[[#This Row],[Years of Experience]],vlookUpExp!$A$1:$B$56,2,FALSE)) -> No Response
B41: ID0038 | C41: 2012-05-25T05:10:29 | D41: 69000 | E41: 69000 | F41: USD | G41: =tblSalaries[[#This Row],[clean Salary (in local currency)]]*VLOOKUP(tblSalaries[[#This Row],[Currency]],tblXrate[],2,FALSE) -> 69000 | H41: =IF($H$1="USD",tblSalaries[[#This Row],[Salary in USD]],tblSalaries[[#This Row],[Salary in USD]]*VLOOKUP($H$1,USDtoUserChoice,2,FALSE)) -> 565936.62 | I41: Design Engineer | J41: Engineer | K41: USA | L41: =VLOOKUP(tblSalaries[[#This Row],[Where do you work]],tblCountries[[Actual]:[Mapping]],2,FALSE) -> USA | M41: 4 to 6 hours a day | N41: =NA() ->  | O41: =IF(ISNA(VLOOKUP(tblSalaries[[#This Row],[Years of Experience]],vlookUpExp!$A$1:$B$56,2,FALSE)),"No Response",VLOOKUP(tblSalaries[[#This Row],[Years of Experience]],vlookUpExp!$A$1:$B$56,2,FALSE)) -> No Response
B42: ID0039 | C42: 2012-05-25T05:11:37 | D42: 30000 | E42: 30000 | F42: USD | G42: =tblSalaries[[#This Row],[clean Salary (in local currency)]]*VLOOKUP(tblSalaries[[#This Row],[Currency]],tblXrate[],2,FALSE) -> 30000 | H42: =IF($H$1="USD",tblSalaries[[#This Row],[Salary in USD]],tblSalaries[[#This Row],[Salary in USD]]*VLOOKUP($H$1,USDtoUserChoice,2,FALSE)) -> 246059.4 | I42: Academic Advisor | J42: Consultant | K42: USA | L42: =VLOOKUP(tblSalaries[[#This Row],[Where do you work]],tblCountries[[Actual]:[Mapping]],2,FALSE) -> USA | M42: 2 to 3 hours per day | N42: =NA() ->  | O42: =IF(ISNA(VLOOKUP(tblSalaries[[#This Row],[Years of Experience]],vlookUpExp!$A$1:$B$56,2,FALSE)),"No Response",VLOOKUP(tblSalaries[[#This Row],[Years of Experience]],vlookUpExp!$A$1:$B$56,2,FALSE)) -> No Response
B43: ID0040 | C43: 2012-05-25T05:13:50 | D43: Rs. 400000 | E43: 400000 | F43: INR | G43: =tblSalaries[[#This Row],[clean Salary (in local currency)]]*VLOOKUP(tblSalaries[[#This Row],[Currency]],tblXrate[],2,FALSE) -> 7123.166675 | H43: =IF($H$1="USD",tblSalaries[[#This Row],[Salary in USD]],tblSalaries[[#This Row],[Salary in USD]]*VLOOKUP($H$1,USDtoUserChoice,2,FALSE)) -> 58424.0706 | I43: Coordination | J43: Manager | K43: India | L43: =VLOOKUP(tblSalaries[[#This Row],[Where do you work]],tblCountries[[Actual]:[Mapping]],2,FALSE) -> India | M43: 4 to 6 hours a day | N43: =NA() ->  | O43: =IF(ISNA(VLOOKUP(tblSalaries[[#This Row],[Years of Experience]],vlookUpExp!$A$1:$B$56,2,FALSE)),"No Response",VLOOKUP(tblSalaries[[#This Row],[Years of Experience]],vlookUpExp!$A$1:$B$56,2,FALSE)) -> No Response
B44: ID0041 | C44: 2012-05-25T05:18:48 | D44: 70000 | E44: 70000 | F44: AUD | G44: =tblSalaries[[#This Row],[clean Salary (in local currency)]]*VLOOKUP(tblSalaries[[#This Row],[Currency]],tblXrate[],2,FALSE) -> 71393.67595 | H44: =IF($H$1="USD",tblSalaries[[#This Row],[Salary in USD]],tblSalaries[[#This Row],[Salary in USD]]*VLOOKUP($H$1,USDtoUserChoice,2,FALSE)) -> 585569.5023 | I44: consultant | J44: Consultant | K44: Australia | L44: =VLOOKUP(tblSalaries[[#This Row],[Where do you work]],tblCountries[[Actual]:[Mapping]],2,FALSE) -> Australia | M44: 2 to 3 hours per day | N44: =NA() ->  | O44: =IF(ISNA(VLOOKUP(tblSalaries[[#This Row],[Years of Experience]],vlookUpExp!$A$1:$B$56,2,FALSE)),"No Response",VLOOKUP(tblSalaries[[#This Row],[Years of Experience]],vlookUpExp!$A$1:$B$56,2,FALSE)) -> No Response
B45: ID0042 | C45: 2012-05-25T05:20:10 | D45: 14500 | E45: 14500 | F45: USD | G45: =tblSalaries[[#This Row],[clean Salary (in local currency)]]*VLOOKUP(tblSalaries[[#This Row],[Currency]],tblXrate[],2,FALSE) -> 14500 | H45: =IF($H$1="USD",tblSalaries[[#This Row],[Salary in USD]],tblSalaries[[#This Row],[Salary in USD]]*VLOOKUP($H$1,USDtoUserChoice,2,FALSE)) -> 118928.71 | I45: Business Analsyt | J45: Analyst | K45: India | L45: =VLOOKUP(tblSalaries[[#This Row],[Where do you work]],tblCountries[[Actual]:[Mapping]],2,FALSE) -> India | M45: 4 to 6 hours a day | N45: =NA() ->  | O45: =IF(ISNA(VLOOKUP(tblSalaries[[#This Row],[Years of Experience]],vlookUpExp!$A$1:$B$56,2,FALSE)),"No Response",VLOOKUP(tblSalaries[[#This Row],[Years of Experience]],vlookUpExp!$A$1:$B$56,2,FALSE)) -> No Response
B46: ID0043 | C46: 2012-05-25T05:30:39 | D46: 70000 | E46: 70000 | F46: CAD | G46: =tblSalaries[[#This Row],[clean Salary (in local currency)]]*VLOOKUP(tblSalaries[[#This Row],[Currency]],tblXrate[],2,FALSE) -> 68835.30661 | H46: =IF($H$1="USD",tblSalaries[[#This Row],[Salary in USD]],tblSalaries[[#This Row],[Salary in USD]]*VLOOKUP($H$1,USDtoUserChoice,2,FALSE)) -> 564585.8081 | I46: Product Engineer | J46: Engineer | K46: Canada | L46: =VLOOKUP(tblSalaries[[#This Row],[Where do you work]],tblCountries[[Actual]:[Mapping]],2,FALSE) -> Canada | M46: 2 to 3 hours per day | N46: =NA() ->  | O46: =IF(ISNA(VLOOKUP(tblSalaries[[#This Row],[Years of Experience]],vlookUpExp!$A$1:$B$56,2,FALSE)),"No Response",VLOOKUP(tblSalaries[[#This Row],[Years of Experience]],vlookUpExp!$A$1:$B$56,2,FALSE)) -> No Response
B47: ID0044 | C47: 2012-05-25T05:35:28 | D47: 58000 | E47: 58000 | F47: USD | G47: =tblSalaries[[#This Row],[clean Salary (in local currency)]]*VLOOKUP(tblSalaries[[#This Row],[Currency]],tblXrate[],2,FALSE) -> 58000 | H47: =IF($H$1="USD",tblSalaries[[#This Row],[Salary in USD]],tblSalaries[[#This Row],[Salary in USD]]*VLOOKUP($H$1,USDtoUserChoice,2,FALSE)) -> 475714.84 | I47: Senior Accountant | J47: Accountant | K47: USA | L47: =VLOOKUP(tblSalaries[[#This Row],[Where do you work]],tblCountries[[Actual]:[Mapping]],2,FALSE) -> USA | M47: 4 to 6 hours a day | N47: =NA() ->  | O47: =IF(ISNA(VLOOKUP(tblSalaries[[#This Row],[Years of Experience]],vlookUpExp!$A$1:$B$56,2,FALSE)),"No Response",VLOOKUP(tblSalaries[[#This Row],[Years of Experience]],vlookUpExp!$A$1:$B$56,2,FALSE)) -> No Response
B48: ID0045 | C48: 2012-05-25T05:45:01 | D48: 90000 | E48: 90000 | F48: USD | G48: =tblSalaries[[#This Row],[clean Salary (in local currency)]]*VLOOKUP(tblSalaries[[#This Row],[Currency]],tblXrate[],2,FALSE) -> 90000 | H48: =IF($H$1="USD",tblSalaries[[#This Row],[Salary in USD]],tblSalaries[[#This Row],[Salary in USD]]*VLOOKUP($H$1,USDtoUserChoice,2,FALSE)) -> 738178.2 | I48: Scientist | J48: Misc. | K48: USA | L48: =VLOOKUP(tblSalaries[[#This Row],[Where do you work]],tblCountries[[Actual]:[Mapping]],2,FALSE) -> USA | M48: 1 or 2 hours a day | N48: =NA() ->  | O48: =IF(ISNA(VLOOKUP(tblSalaries[[#This Row],[Years of Experience]],vlookUpExp!$A$1:$B$56,2,FALSE)),"No Response",VLOOKUP(tblSalaries[[#This Row],[Years of Experience]],vlookUpExp!$A$1:$B$56,2,FALSE)) -> No Response
B49: ID0046 | C49: 2012-05-25T05:46:47 | D49: 800000 | E49: 800000 | F49: INR | G49: =tblSalaries[[#This Row],[clean Salary (in local currency)]]*VLOOKUP(tblSalaries[[#This Row],[Currency]],tblXrate[],2,FALSE) -> 14246.33335 | H49: =IF($H$1="USD",tblSalaries[[#This Row],[Salary in USD]],tblSalaries[[#This Row],[Salary in USD]]*VLOOKUP($H$1,USDtoUserChoice,2,FALSE)) -> 116848.1412 | I49: Team Lead | J49: Manager | K49: India | L49: =VLOOKUP(tblSalaries[[#This Row],[Where do you work]],tblCountries[[Actual]:[Mapping]],2,FALSE) -> India | M49: 2 to 3 hours per day | N49: =NA() ->  | O49: =IF(ISNA(VLOOKUP(tblSalaries[[#This Row],[Years of Experience]],vlookUpExp!$A$1:$B$56,2,FALSE)),"No Response",VLOOKUP(tblSalaries[[#This Row],[Years of Experience]],vlookUpExp!$A$1:$B$56,2,FALSE)) -> No Response
B50: ID0047 | C50: 2012-05-25T05:47:10 | D50: 32000 | E50: 32000 | F50: GBP | G50: =tblSalaries[[#This Row],[clean Salary (in local currency)]]*VLOOKUP(tblSalaries[[#This Row],[Currency]],tblXrate[],2,FALSE) -> 50437.70471 | H50: =IF($H$1="USD",tblSalaries[[#This Row],[Salary in USD]],tblSalaries[[#This Row],[Salary in USD]]*VLOOKUP($H$1,USDtoUserChoice,2,FALSE)) -> 413689.0452 | I50: Senior intelligence analyst | J50: Analyst | K50: UK | L50: =VLOOKUP(tblSalaries[[#This Row],[Where do you work]],tblCountries[[Actual]:[Mapping]],2,FALSE) -> UK | M50: 4 to 6 hours a day | N50: =NA() ->  | O50: =IF(ISNA(VLOOKUP(tblSalaries[[#This Row],[Years of Experience]],vlookUpExp!$A$1:$B$56,2,FALSE)),"No Response",VLOOKUP(tblSalaries[[#This Row],[Years of Experience]],vlookUpExp!$A$1:$B$56,2,FALSE)) -> No Response
B51: ID0048 | C51: 2012-05-25T05:47:52 | D51: 1000 | E51: 12000 | F51: USD | G51: =tblSalaries[[#This Row],[clean Salary (in local currency)]]*VLOOKUP(tblSalaries[[#This Row],[Currency]],tblXrate[],2,FALSE) -> 12000 | H51: =IF($H$1="USD",tblSalaries[[#This Row],[Salary in USD]],tblSalaries[[#This Row],[Salary in USD]]*VLOOKUP($H$1,USDtoUserChoice,2,FALSE)) -> 98423.76 | I51: Freelance consultant | J51: Consultant | K51: USA | L51: =VLOOKUP(tblSalaries[[#This Row],[Where do you work]],tblCountries[[Actual]:[Mapping]],2,FALSE) -> USA | M51: 1 or 2 hours a day | N51: =NA() ->  | O51: =IF(ISNA(VLOOKUP(tblSalaries[[#This Row],[Years of Experience]],vlookUpExp!$A$1:$B$56,2,FALSE)),"No Response",VLOOKUP(tblSalaries[[#This Row],[Years of Experience]],vlookUpExp!$A$1:$B$56,2,FALSE)) -> No Response
B52: ID0049 | C52: 2012-05-25T06:04:42 | D52: â‚¬ 45 | E52: 45000 | F52: EUR | G52: =tblSalaries[[#This Row],[clean Salary (in local currency)]]*VLOOKUP(tblSalaries[[#This Row],[Currency]],tblXrate[],2,FALSE) -> 57167.97475 | H52: =IF($H$1="USD",tblSalaries[[#This Row],[Salary in USD]],tblSalaries[[#This Row],[Salary in USD]]*VLOOKUP($H$1,USDtoUserChoice,2,FALSE)) -> 468890.5856 | I52: Online Traffic Manager / Web Analist | J52: Manager | K52: The Netherlands | L52: =VLOOKUP(tblSalaries[[#This Row],[Where do you work]],tblCountries[[Actual]:[Mapping]],2,FALSE) -> Netherlands | M52: 4 to 6 hours a day | N52: =NA() ->  | O52: =IF(ISNA(VLOOKUP(tblSalaries[[#This Row],[Years of Experience]],vlookUpExp!$A$1:$B$56,2,FALSE)),"No Response",VLOOKUP(tblSalaries[[#This Row],[Years of Experience]],vlookUpExp!$A$1:$B$56,2,FALSE)) -> No Response
B53: ID0050 | C53: 2012-05-25T06:04:57 | D53: 100000 USD | E53: 100000 | F53: USD | G53: =tblSalaries[[#This Row],[clean Salary (in local currency)]]*VLOOKUP(tblSalaries[[#This Row],[Currency]],tblXrate[],2,FALSE) -> 100000 | H53: =IF($H$1="USD",tblSalaries[[#This Row],[Salary in USD]],tblSalaries[[#This Row],[Salary in USD]]*VLOOKUP($H$1,USDtoUserChoice,2,FALSE)) -> 820198 | I53: Seinor Financial Analyst | J53: Analyst | K53: Germany | L53: =VLOOKUP(tblSalaries[[#This Row],[Where do you work]],tblCountries[[Actual]:[Mapping]],2,FALSE) -> Germany | M53: All the 8 hours baby, all the 8! | N53: =NA() ->  | O53: =IF(ISNA(VLOOKUP(tblSalaries[[#This Row],[Years of Experience]],vlookUpExp!$A$1:$B$56,2,FALSE)),"No Response",VLOOKUP(tblSalaries[[#This Row],[Years of Experience]],vlookUpExp!$A$1:$B$56,2,FALSE)) -> No Response
B54: ID0051 | C54: 2012-05-25T06:05:17 | D54: 57000 | E54: 57000 | F54: USD | G54: =tblSalaries[[#This Row],[clean Salary (in local currency)]]*VLOOKUP(tblSalaries[[#This Row],[Currency]],tblXrate[],2,FALSE) -> 57000 | H54: =IF($H$1="USD",tblSalaries[[#This Row],[Salary in USD]],tblSalaries[[#This Row],[Salary in USD]]*VLOOKUP($H$1,USDtoUserChoice,2,FALSE)) -> 467512.86 | I54: Senior Accounting Supervisor | J54: Accountant | K54: USA | L54: =VLOOKUP(tblSalaries[[#This Row],[Where do you work]],tblCountries[[Actual]:[Mapping]],2,FALSE) -> USA | M54: 2 to 3 hours per day | N54: =NA() ->  | O54: =IF(ISNA(VLOOKUP(tblSalaries[[#This Row],[Years of Experience]],vlookUpExp!$A$1:$B$56,2,FALSE)),"No Response",VLOOKUP(tblSalaries[[#This Row],[Years of Experience]],vlookUpExp!$A$1:$B$56,2,FALSE)) -> No Response
B55: ID0052 | C55: 2012-05-25T06:07:15 | D55: 40000 | E55: 40000 | F55: GBP | G55: =tblSalaries[[#This Row],[clean Salary (in local currency)]]*VLOOKUP(tblSalaries[[#This Row],[Currency]],tblXrate[],2,FALSE) -> 63047.13088 | H55: =IF($H$1="USD",tblSalaries[[#This Row],[Salary in USD]],tblSalaries[[#This Row],[Salary in USD]]*VLOOKUP($H$1,USDtoUserChoice,2,FALSE)) -> 517111.3066 | I55: Senior Accountant | J55: Accountant | K55: UK | L55: =VLOOKUP(tblSalaries[[#This Row],[Where do you work]],tblCountries[[Actual]:[Mapping]],2,FALSE) -> UK | M55: 4 to 6 hours a day | N55: =NA() ->  | O55: =IF(ISNA(VLOOKUP(tblSalaries[[#This Row],[Years of Experience]],vlookUpExp!$A$1:$B$56,2,FALSE)),"No Response",VLOOKUP(tblSalaries[[#This Row],[Years of Experience]],vlookUpExp!$A$1:$B$56,2,FALSE)) -> No Response
B56: ID0053 | C56: 2012-05-25T06:09:44 | D56: 2000 Euros | E56: 24000 | F56: EUR | G56: =tblSalaries[[#This Row],[clean Salary (in local currency)]]*VLOOKUP(tblSalaries[[#This Row],[Currency]],tblXrate[],2,FALSE) -> 30489.58654 | H56: =IF($H$1="USD",tblSalaries[[#This Row],[Salary in USD]],tblSalaries[[#This Row],[Salary in USD]]*VLOOKUP($H$1,USDtoUserChoice,2,FALSE)) -> 250074.979 | I56: PPC Manager | J56: Manager | K56: Germany | L56: =VLOOKUP(tblSalaries[[#This Row],[Where do you work]],tblCountries[[Actual]:[Mapping]],2,FALSE) -> Germany | M56: All the 8 hours baby, all the 8! | N56: =NA() ->  | O56: =IF(ISNA(VLOOKUP(tblSalaries[[#This Row],[Years of Experience]],vlookUpExp!$A$1:$B$56,2,FALSE)),"No Response",VLOOKUP(tblSalaries[[#This Row],[Years of Experience]],vlookUpExp!$A$1:$B$56,2,FALSE)) -> No Response
B57: ID0054 | C57: 2012-05-25T06:10:18 | D57: 4320 | E57: 4320 | F57: USD | G57: =tblSalaries[[#This Row],[clean Salary (in local currency)]]*VLOOKUP(tblSalaries[[#This Row],[Currency]],tblXrate[],2,FALSE) -> 4320 | H57: =IF($H$1="USD",tblSalaries[[#This Row],[Salary in USD]],tblSalaries[[#This Row],[Salary in USD]]*VLOOKUP($H$1,USDtoUserChoice,2,FALSE)) -> 35432.5536 | I57: Financial Planner | J57: Accountant | K57: India | L57: =VLOOKUP(tblSalaries[[#This Row],[Where do you work]],tblCountries[[Actual]:[Mapping]],2,FALSE) -> India | M57: 2 to 3 hours per day | N57: =NA() ->  | O57: =IF(ISNA(VLOOKUP(tblSalaries[[#This Row],[Years of Experience]],vlookUpExp!$A$1:$B$56,2,FALSE)),"No Response",VLOOKUP(tblSalaries[[#This Row],[Years of Experience]],vlookUpExp!$A$1:$B$56,2,FALSE)) -> No Response
B58: ID0055 | C58: 2012-05-25T06:15:42 | D58: 62000 | E58: 62000 | F58: USD | G58: =tblSalaries[[#This Row],[clean Salary (in local currency)]]*VLOOKUP(tblSalaries[[#This Row],[Currency]],tblXrate[],2,FALSE) -> 62000 | H58: =IF($H$1="USD",tblSalaries[[#This Row],[Salary in USD]],tblSalaries[[#This Row],[Salary in USD]]*VLOOKUP($H$1,USDtoUserChoice,2,FALSE)) -> 508522.76 | I58: Analyst | J58: Analyst | K58: USA | L58: =VLOOKUP(tblSalaries[[#This Row],[Where do you work]],tblCountries[[Actual]:[Mapping]],2,FALSE) -> USA | M58: 4 to 6 hours a day | N58: =NA() ->  | O58: =IF(ISNA(VLOOKUP(tblSalaries[[#This Row],[Years of Experience]],vlookUpExp!$A$1:$B$56,2,FALSE)),"No Response",VLOOKUP(tblSalaries[[#This Row],[Years of Experience]],vlookUpExp!$A$1:$B$56,2,FALSE)) -> No Response
B59: ID0056 | C59: 2012-05-25T06:26:44 | D59: 7500 | E59: 7500 | F59: USD | G59: =tblSalaries[[#This Row],[clean Salary (in local currency)]]*VLOOKUP(tblSalaries[[#This Row],[Currency]],tblXrate[],2,FALSE) -> 7500 | H59: =IF($H$1="USD",tblSalaries[[#This Row],[Salary in USD]],tblSalaries[[#This Row],[Salary in USD]]*VLOOKUP($H$1,USDtoUserChoice,2,FALSE)) -> 61514.85 | I59: Analyst | J59: Analyst | K59: India | L59: =VLOOKUP(tblSalaries[[#This Row],[Where do you work]],tblCountries[[Actual]:[Mapping]],2,FALSE) -> India | M59: 4 to 6 hours a day | N59: =NA() ->  | O59: =IF(ISNA(VLOOKUP(tblSalaries[[#This Row],[Years of Experience]],vlookUpExp!$A$1:$B$56,2,FALSE)),"No Response",VLOOKUP(tblSalaries[[#This Row],[Years of Experience]],vlookUpExp!$A$1:$B$56,2,FALSE)) -> No Response
B60: ID0057 | C60: 2012-05-25T06:27:29 | D60: Â£18000 | E60: 18000 | F60: GBP | G60: =tblSalaries[[#This Row],[clean Salary (in local currency)]]*VLOOKUP(tblSalaries[[#This Row],[Currency]],tblXrate[],2,FALSE) -> 28371.2089 | H60: =IF($H$1="USD",tblSalaries[[#This Row],[Salary in USD]],tblSalaries[[#This Row],[Salary in USD]]*VLOOKUP($H$1,USDtoUserChoice,2,FALSE)) -> 232700.088 | I60: Building Design and Performance Researcher | J60: Manager | K60: UK | L60: =VLOOKUP(tblSalaries[[#This Row],[Where do you work]],tblCountries[[Actual]:[Mapping]],2,FALSE) -> UK | M60: 1 or 2 hours a day | N60: =NA() ->  | O60: =IF(ISNA(VLOOKUP(tblSalaries[[#This Row],[Years of Experience]],vlookUpExp!$A$1:$B$56,2,FALSE)),"No Response",VLOOKUP(tblSalaries[[#This Row],[Years of Experience]],vlookUpExp!$A$1:$B$56,2,FALSE)) -> No Response
B61: ID0058 | C61: 2012-05-25T06:49:25 | D61: 49000 | E61: 49000 | F61: EUR | G61: =tblSalaries[[#This Row],[clean Salary (in local currency)]]*VLOOKUP(tblSalaries[[#This Row],[Currency]],tblXrate[],2,FALSE) -> 62249.57251 | H61: =IF($H$1="USD",tblSalaries[[#This Row],[Salary in USD]],tblSalaries[[#This Row],[Salary in USD]]*VLOOKUP($H$1,USDtoUserChoice,2,FALSE)) -> 510569.7487 | I61: Project leader | J61: Manager | K61: France | L61: =VLOOKUP(tblSalaries[[#This Row],[Where do you work]],tblCountries[[Actual]:[Mapping]],2,FALSE) -> France | M61: 2 to 3 hours per day | N61: =NA() ->  | O61: =IF(ISNA(VLOOKUP(tblSalaries[[#This Row],[Years of Experience]],vlookUpExp!$A$1:$B$56,2,FALSE)),"No Response",VLOOKUP(tblSalaries[[#This Row],[Years of Experience]],vlookUpExp!$A$1:$B$56,2,FALSE)) -> No Response
B62: ID0059 | C62: 2012-05-25T06:57:52 | D62: 38000 | E62: 38000 | F62: USD | G62: =tblSalaries[[#This Row],[clean Salary (in local currency)]]*VLOOKUP(tblSalaries[[#This Row],[Currency]],tblXrate[],2,FALSE) -> 38000 | H62: =IF($H$1="USD",tblSalaries[[#This Row],[Salary in USD]],tblSalaries[[#This Row],[Salary in USD]]*VLOOKUP($H$1,USDtoUserChoice,2,FALSE)) -> 311675.24 | I62: Senior Analyst | J62: Analyst | K62: USA | L62: =VLOOKUP(tblSalaries[[#This Row],[Where do you work]],tblCountries[[Actual]:[Mapping]],2,FALSE) -> USA | M62: 4 to 6 hours a day | N62: =NA() ->  | O62: =IF(ISNA(VLOOKUP(tblSalaries[[#This Row],[Years of Experience]],vlookUpExp!$A$1:$B$56,2,FALSE)),"No Response",VLOOKUP(tblSalaries[[#This Row],[Years of Experience]],vlookUpExp!$A$1:$B$56,2,FALSE)) -> No Response
B63: ID0060 | C63: 2012-05-25T07:00:52 | D63: 41000 | E63: 41000 | F63: USD | G63: =tblSalaries[[#This Row],[clean Salary (in local currency)]]*VLOOKUP(tblSalaries[[#This Row],[Currency]],tblXrate[],2,FALSE) -> 41000 | H63: =IF($H$1="USD",tblSalaries[[#This Row],[Salary in USD]],tblSalaries[[#This Row],[Salary in USD]]*VLOOKUP($H$1,USDtoUserChoice,2,FALSE)) -> 336281.18 | I63: Specialist | J63: Specialist | K63: USA | L63: =VLOOKUP(tblSalaries[[#This Row],[Where do you work]],tblCountries[[Actual]:[Mapping]],2,FALSE) -> USA | M63: 4 to 6 hours a day | N63: =NA() ->  | O63: =IF(ISNA(VLOOKUP(tblSalaries[[#This Row],[Years of Experience]],vlookUpExp!$A$1:$B$56,2,FALSE)),"No Response",VLOOKUP(tblSalaries[[#This Row],[Years of Experience]],vlookUpExp!$A$1:$B$56,2,FALSE)) -> No Response
B64: ID0061 | C64: 2012-05-25T07:11:09 | D64: 68000 | E64: 68000 | F64: USD | G64: =tblSalaries[[#This Row],[clean Salary (in local currency)]]*VLOOKUP(tblSalaries[[#This Row],[Currency]],tblXrate[],2,FALSE) -> 68000 | H64: =IF($H$1="USD",tblSalaries[[#This Row],[Salary in USD]],tblSalaries[[#This Row],[Salary in USD]]*VLOOKUP($H$1,USDtoUserChoice,2,FALSE)) -> 557734.64 | I64: Engineering Data Analyst | J64: Analyst | K64: USA | L64: =VLOOKUP(tblSalaries[[#This Row],[Where do you work]],tblCountries[[Actual]:[Mapping]],2,FALSE) -> USA | M64: All the 8 hours baby, all the 8! | N64: =NA() ->  | O64: =IF(ISNA(VLOOKUP(tblSalaries[[#This Row],[Years of Experience]],vlookUpExp!$A$1:$B$56,2,FALSE)),"No Response",VLOOKUP(tblSalaries[[#This Row],[Years of Experience]],vlookUpExp!$A$1:$B$56,2,FALSE)) -> No Response
B65: ID0062 | C65: 2012-05-25T07:13:31 | D65: 56000 | E65: 56000 | F65: CAD | G65: =tblSalaries[[#This Row],[clean Salary (in local currency)]]*VLOOKUP(tblSalaries[[#This Row],[Currency]],tblXrate[],2,FALSE) -> 55068.24529 | H65: =IF($H$1="USD",tblSalaries[[#This Row],[Salary in USD]],tblSalaries[[#This Row],[Salary in USD]]*VLOOKUP($H$1,USDtoUserChoice,2,FALSE)) -> 451668.6465 | I65: Sales Analyst | J65: Analyst | K65: CANADA | L65: =VLOOKUP(tblSalaries[[#This Row],[Where do you work]],tblCountries[[Actual]:[Mapping]],2,FALSE) -> Canada | M65: All the 8 hours baby, all the 8! | N65: =NA() ->  | O65: =IF(ISNA(VLOOKUP(tblSalaries[[#This Row],[Years of Experience]],vlookUpExp!$A$1:$B$56,2,FALSE)),"No Response",VLOOKUP(tblSalaries[[#This Row],[Years of Experience]],vlookUpExp!$A$1:$B$56,2,FALSE)) -> No Response
B66: ID0063 | C66: 2012-05-25T07:15:12 | D66: 61000 | E66: 61000 | F66: USD | G66: =tblSalaries[[#This Row],[clean Salary (in local currency)]]*VLOOKUP(tblSalaries[[#This Row],[Currency]],tblXrate[],2,FALSE) -> 61000 | H66: =IF($H$1="USD",tblSalaries[[#This Row],[Salary in USD]],tblSalaries[[#This Row],[Salary in USD]]*VLOOKUP($H$1,USDtoUserChoice,2,FALSE)) -> 500320.78 | I66: Coordinator Of Costa and Buget | J66: Manager | K66: Brasil | L66: =VLOOKUP(tblSalaries[[#This Row],[Where do you work]],tblCountries[[Actual]:[Mapping]],2,FALSE) -> Brasil | M66: All the 8 hours baby, all the 8! | N66: =NA() ->  | O66: =IF(ISNA(VLOOKUP(tblSalaries[[#This Row],[Years of Experience]],vlookUpExp!$A$1:$B$56,2,FALSE)),"No Response",VLOOKUP(tblSalaries[[#This Row],[Years of Experience]],vlookUpExp!$A$1:$B$56,2,FALSE)) -> No Response
B67: ID0064 | C67: 2012-05-25T07:18:53 | D67: 43000 | E67: 43000 | F67: EUR | G67: =tblSalaries[[#This Row],[clean Salary (in local currency)]]*VLOOKUP(tblSalaries[[#This Row],[Currency]],tblXrate[],2,FALSE) -> 54627.17588 | H67: =IF($H$1="USD",tblSalaries[[#This Row],[Salary in USD]],tblSalaries[[#This Row],[Salary in USD]]*VLOOKUP($H$1,USDtoUserChoice,2,FALSE)) -> 448051.004 | I67: SAP consultant | J67: Consultant | K67: FR | L67: =VLOOKUP(tblSalaries[[#This Row],[Where do you work]],tblCountries[[Actual]:[Mapping]],2,FALSE) -> France | M67: 4 to 6 hours a day | N67: =NA() ->  | O67: =IF(ISNA(VLOOKUP(tblSalaries[[#This Row],[Years of Experience]],vlookUpExp!$A$1:$B$56,2,FALSE)),"No Response",VLOOKUP(tblSalaries[[#This Row],[Years of Experience]],vlookUpExp!$A$1:$B$56,2,FALSE)) -> No Response
B68: ID0065 | C68: 2012-05-25T07:20:08 | D68: 85000 | E68: 85000 | F68: USD | G68: =tblSalaries[[#This Row],[clean Salary (in local currency)]]*VLOOKUP(tblSalaries[[#This Row],[Currency]],tblXrate[],2,FALSE) -> 85000 | H68: =IF($H$1="USD",tblSalaries[[#This Row],[Salary in USD]],tblSalaries[[#This Row],[Salary in USD]]*VLOOKUP($H$1,USDtoUserChoice,2,FALSE)) -> 697168.3 | I68: Manager | J68: Manager | K68: USA | L68: =VLOOKUP(tblSalaries[[#This Row],[Where do you work]],tblCountries[[Actual]:[Mapping]],2,FALSE) -> USA | M68: 4 to 6 hours a day | N68: =NA() ->  | O68: =IF(ISNA(VLOOKUP(tblSalaries[[#This Row],[Years of Experience]],vlookUpExp!$A$1:$B$56,2,FALSE)),"No Response",VLOOKUP(tblSalaries[[#This Row],[Years of Experience]],vlookUpExp!$A$1:$B$56,2,FALSE)) -> No Response
B69: ID0066 | C69: 2012-05-25T07:21:18 | D69: â‚¬ 38000 | E69: 38000 | F69: EUR | G69: =tblSalaries[[#This Row],[clean Salary (in local currency)]]*VLOOKUP(tblSalaries[[#This Row],[Currency]],tblXrate[],2,FALSE) -> 48275.17868 | H69: =IF($H$1="USD",tblSalaries[[#This Row],[Salary in USD]],tblSalaries[[#This Row],[Salary in USD]]*VLOOKUP($H$1,USDtoUserChoice,2,FALSE)) -> 395952.05 | I69: busines analist | J69: Analyst | K69: The Netherlands | L69: =VLOOKUP(tblSalaries[[#This Row],[Where do you work]],tblCountries[[Actual]:[Mapping]],2,FALSE) -> Netherlands | M69: 1 or 2 hours a day | N69: =NA() ->  | O69: =IF(ISNA(VLOOKUP(tblSalaries[[#This Row],[Years of Experience]],vlookUpExp!$A$1:$B$56,2,FALSE)),"No Response",VLOOKUP(tblSalaries[[#This Row],[Years of Experience]],vlookUpExp!$A$1:$B$56,2,FALSE)) -> No Response
B70: ID0067 | C70: 2012-05-25T07:25:12 | D70: 85000 | E70: 85000 | F70: AUD | G70: =tblSalaries[[#This Row],[clean Salary (in local currency)]]*VLOOKUP(tblSalaries[[#This Row],[Currency]],tblXrate[],2,FALSE) -> 86692.32079 | H70: =IF($H$1="USD",tblSalaries[[#This Row],[Salary in USD]],tblSalaries[[#This Row],[Salary in USD]]*VLOOKUP($H$1,USDtoUserChoice,2,FALSE)) -> 711048.6813 | I70: head of data | J70: CXO or Top Mgmt. | K70: Australia | L70: =VLOOKUP(tblSalaries[[#This Row],[Where do you work]],tblCountries[[Actual]:[Mapping]],2,FALSE) -> Australia | M70: 4 to 6 hours a day | N70: =NA() ->  | O70: =IF(ISNA(VLOOKUP(tblSalaries[[#This Row],[Years of Experience]],vlookUpExp!$A$1:$B$56,2,FALSE)),"No Response",VLOOKUP(tblSalaries[[#This Row],[Years of Experience]],vlookUpExp!$A$1:$B$56,2,FALSE)) -> No Response
B71: ID0068 | C71: 2012-05-25T07:29:12 | D71: 85087 | E71: 85087 | F71: USD | G71: =tblSalaries[[#This Row],[clean Salary (in local currency)]]*VLOOKUP(tblSalaries[[#This Row],[Currency]],tblXrate[],2,FALSE) -> 85087 | H71: =IF($H$1="USD",tblSalaries[[#This Row],[Salary in USD]],tblSalaries[[#This Row],[Salary in USD]]*VLOOKUP($H$1,USDtoUserChoice,2,FALSE)) -> 697881.8723 | I71: Business Systems Analyst | J71: Analyst | K71: USA | L71: =VLOOKUP(tblSalaries[[#This Row],[Where do you work]],tblCountries[[Actual]:[Mapping]],2,FALSE) -> USA | M71: 2 to 3 hours per day | N71: =NA() ->  | O71: =IF(ISNA(VLOOKUP(tblSalaries[[#This Row],[Years of Experience]],vlookUpExp!$A$1:$B$56,2,FALSE)),"No Response",VLOOKUP(tblSalaries[[#This Row],[Years of Experience]],vlookUpExp!$A$1:$B$56,2,FALSE)) -> No Response
B72: ID0069 | C72: 2012-05-25T07:38:22 | D72: 50000 | E72: 50000 | F72: USD | G72: =tblSalaries[[#This Row],[clean Salary (in local currency)]]*VLOOKUP(tblSalaries[[#This Row],[Currency]],tblXrate[],2,FALSE) -> 50000 | H72: =IF($H$1="USD",tblSalaries[[#This Row],[Salary in USD]],tblSalaries[[#This Row],[Salary in USD]]*VLOOKUP($H$1,USDtoUserChoice,2,FALSE)) -> 410099 | I72: Financial Analyst II | J72: Analyst | K72: USA | L72: =VLOOKUP(tblSalaries[[#This Row],[Where do you work]],tblCountries[[Actual]:[Mapping]],2,FALSE) -> USA | M72: All the 8 hours baby, all the 8! | N72: =NA() ->  | O72: =IF(ISNA(VLOOKUP(tblSalaries[[#This Row],[Years of Experience]],vlookUpExp!$A$1:$B$56,2,FALSE)),"No Response",VLOOKUP(tblSalaries[[#This Row],[Years of Experience]],vlookUpExp!$A$1:$B$56,2,FALSE)) -> No Response
B73: ID0070 | C73: 2012-05-25T07:47:00 | D73: 100000 | E73: 100000 | F73: USD | G73: =tblSalaries[[#This Row],[clean Salary (in local currency)]]*VLOOKUP(tblSalaries[[#This Row],[Currency]],tblXrate[],2,FALSE) -> 100000 | H73: =IF($H$1="USD",tblSalaries[[#This Row],[Salary in USD]],tblSalaries[[#This Row],[Salary in USD]]*VLOOKUP($H$1,USDtoUserChoice,2,FALSE)) -> 820198 | I73: Mngr MI | J73: Manager | K73: RSA | L73: =VLOOKUP(tblSalaries[[#This Row],[Where do you work]],tblCountries[[Actual]:[Mapping]],2,FALSE) -> South Africa | M73: 4 to 6 hours a day | N73: =NA() ->  | O73: =IF(ISNA(VLOOKUP(tblSalaries[[#This Row],[Years of Experience]],vlookUpExp!$A$1:$B$56,2,FALSE)),"No Response",VLOOKUP(tblSalaries[[#This Row],[Years of Experience]],vlookUpExp!$A$1:$B$56,2,FALSE)) -> No Response
B74: ID0071 | C74: 2012-05-25T22:49:00 | D74: 57000 | E74: 57000 | F74: USD | G74: =tblSalaries[[#This Row],[clean Salary (in local currency)]]*VLOOKUP(tblSalaries[[#This Row],[Currency]],tblXrate[],2,FALSE) -> 57000 | H74: =IF($H$1="USD",tblSalaries[[#This Row],[Salary in USD]],tblSalaries[[#This Row],[Salary in USD]]*VLOOKUP($H$1,USDtoUserChoice,2,FALSE)) -> 467512.86 | I74: sales analyst | J74: Analyst | K74: USA | L74: =VLOOKUP(tblSalaries[[#This Row],[Where do you work]],tblCountries[[Actual]:[Mapping]],2,FALSE) -> USA | M74: 4 to 6 hours a day | N74: =NA() ->  | O74: =IF(ISNA(VLOOKUP(tblSalaries[[#This Row],[Years of Experience]],vlookUpExp!$A$1:$B$56,2,FALSE)),"No Response",VLOOKUP(tblSalaries[[#This Row],[Years of Experience]],vlookUpExp!$A$1:$B$56,2,FALSE)) -> No Response
B75: ID0072 | C75: 2012-05-25T22:52:28 | D75: 75000 | E75: 75000 | F75: USD | G75: =tblSalaries[[#This Row],[clean Salary (in local currency)]]*VLOOKUP(tblSalaries[[#This Row],[Currency]],tblXrate[],2,FALSE) -> 75000 | H75: =IF($H$1="USD",tblSalaries[[#This Row],[Salary in USD]],tblSalaries[[#This Row],[Salary in USD]]*VLOOKUP($H$1,USDtoUserChoice,2,FALSE)) -> 615148.5 | I75: Consumer Research Program Manager | J75: Manager | K75: USA | L75: =VLOOKUP(tblSalaries[[#This Row],[Where do you work]],tblCountries[[Actual]:[Mapping]],2,FALSE) -> USA | M75: All the 8 hours baby, all the 8! | N75: =NA() ->  | O75: =IF(ISNA(VLOOKUP(tblSalaries[[#This Row],[Years of Experience]],vlookUpExp!$A$1:$B$56,2,FALSE)),"No Response",VLOOKUP(tblSalaries[[#This Row],[Years of Experience]],vlookUpExp!$A$1:$B$56,2,FALSE)) -> No Response
B76: ID0073 | C76: 2012-05-25T22:59:05 | D76: $AUD100000 | E76: 100000 | F76: AUD | G76: =tblSalaries[[#This Row],[clean Salary (in local currency)]]*VLOOKUP(tblSalaries[[#This Row],[Currency]],tblXrate[],2,FALSE) -> 101990.9656 | H76: =IF($H$1="USD",tblSalaries[[#This Row],[Salary in USD]],tblSalaries[[#This Row],[Salary in USD]]*VLOOKUP($H$1,USDtoUserChoice,2,FALSE)) -> 836527.8604 | I76: technical trainer | J76: Manager | K76: Australia | L76: =VLOOKUP(tblSalaries[[#This Row],[Where do you work]],tblCountries[[Actual]:[Mapping]],2,FALSE) -> Australia | M76: 4 to 6 hours a day | N76: =NA() ->  | O76: =IF(ISNA(VLOOKUP(tblSalaries[[#This Row],[Years of Experience]],vlookUpExp!$A$1:$B$56,2,FALSE)),"No Response",VLOOKUP(tblSalaries[[#This Row],[Years of Experience]],vlookUpExp!$A$1:$B$56,2,FALSE)) -> No Response
B77: ID0074 | C77: 2012-05-25T23:01:20 | D77: 2785 | E77: 33420 | F77: USD | G77: =tblSalaries[[#This Row],[clean Salary (in local currency)]]*VLOOKUP(tblSalaries[[#This Row],[Currency]],tblXrate[],2,FALSE) -> 33420 | H77: =IF($H$1="USD",tblSalaries[[#This Row],[Salary in USD]],tblSalaries[[#This Row],[Salary in USD]]*VLOOKUP($H$1,USDtoUserChoice,2,FALSE)) -> 274110.1716 | I77: Process Flow Coordinator | J77: Manager | K77: United Arab Emirates | L77: =VLOOKUP(tblSalaries[[#This Row],[Where do you work]],tblCountries[[Actual]:[Mapping]],2,FALSE) -> UAE | M77: All the 8 hours baby, all the 8! | N77: =NA() ->  | O77: =IF(ISNA(VLOOKUP(tblSalaries[[#This Row],[Years of Experience]],vlookUpExp!$A$1:$B$56,2,FALSE)),"No Response",VLOOKUP(tblSalaries[[#This Row],[Years of Experience]],vlookUpExp!$A$1:$B$56,2,FALSE)) -> No Response
B78: ID0075 | C78: 2012-05-25T23:03:00 | D78: 59450 | E78: 59450 | F78: CAD | G78: =tblSalaries[[#This Row],[clean Salary (in local currency)]]*VLOOKUP(tblSalaries[[#This Row],[Currency]],tblXrate[],2,FALSE) -> 58460.84254 | H78: =IF($H$1="USD",tblSalaries[[#This Row],[Salary in USD]],tblSalaries[[#This Row],[Salary in USD]]*VLOOKUP($H$1,USDtoUserChoice,2,FALSE)) -> 479494.6613 | I78: Process Improvement Specialist | J78: Specialist | K78: Canada | L78: =VLOOKUP(tblSalaries[[#This Row],[Where do you work]],tblCountries[[Actual]:[Mapping]],2,FALSE) -> Canada | M78: All the 8 hours baby, all the 8! | N78: =NA() ->  | O78: =IF(ISNA(VLOOKUP(tblSalaries[[#This Row],[Years of Experience]],vlookUpExp!$A$1:$B$56,2,FALSE)),"No Response",VLOOKUP(tblSalaries[[#This Row],[Years of Experience]],vlookUpExp!$A$1:$B$56,2,FALSE)) -> No Response
B79: ID0076 | C79: 2012-05-25T23:12:29 | D79: 15000 | E79: 15000 | F79: USD | G79: =tblSalaries[[#This Row],[clean Salary (in local currency)]]*VLOOKUP(tblSalaries[[#This Row],[Currency]],tblXrate[],2,FALSE) -> 15000 | H79: =IF($H$1="USD",tblSalaries[[#This Row],[Salary in USD]],tblSalaries[[#This Row],[Salary in USD]]*VLOOKUP($H$1,USDtoUserChoice,2,FALSE)) -> 123029.7 | I79: Excel Programmer Consultant | J79: Consultant | K79: USA | L79: =VLOOKUP(tblSalaries[[#This Row],[Where do you work]],tblCountries[[Actual]:[Mapping]],2,FALSE) -> USA | M79: All the 8 hours baby, all the 8! | N79: =NA() ->  | O79: =IF(ISNA(VLOOKUP(tblSalaries[[#This Row],[Years of Experience]],vlookUpExp!$A$1:$B$56,2,FALSE)),"No Response",VLOOKUP(tblSalaries[[#This Row],[Years of Experience]],vlookUpExp!$A$1:$B$56,2,FALSE)) -> No Response
B80: ID0077 | C80: 2012-05-25T23:15:34 | D80: US $60,000 | E80: 60000 | F80: USD | G80: =tblSalaries[[#This Row],[clean Salary (in local currency)]]*VLOOKUP(tblSalaries[[#This Row],[Currency]],tblXrate[],2,FALSE) -> 60000 | H80: =IF($H$1="USD",tblSalaries[[#This Row],[Salary in USD]],tblSalaries[[#This Row],[Salary in USD]]*VLOOKUP($H$1,USDtoUserChoice,2,FALSE)) -> 492118.8 | I80: Statistical Analyst | J80: Analyst | K80: Canada | L80: =VLOOKUP(tblSalaries[[#This Row],[Where do you work]],tblCountries[[Actual]:[Mapping]],2,FALSE) -> Canada | M80: 1 or 2 hours a day | N80: =NA() ->  | O80: =IF(ISNA(VLOOKUP(tblSalaries[[#This Row],[Years of Experience]],vlookUpExp!$A$1:$B$56,2,FALSE)),"No Response",VLOOKUP(tblSalaries[[#This Row],[Years of Experience]],vlookUpExp!$A$1:$B$56,2,FALSE)) -> No Response
B81: ID0078 | C81: 2012-05-25T23:18:45 | D81: 100000 | E81: 100000 | F81: GBP | G81: =tblSalaries[[#This Row],[clean Salary (in local currency)]]*VLOOKUP(tblSalaries[[#This Row],[Currency]],tblXrate[],2,FALSE) -> 157617.8272 | H81: =IF($H$1="USD",tblSalaries[[#This Row],[Salary in USD]],tblSalaries[[#This Row],[Salary in USD]]*VLOOKUP($H$1,USDtoUserChoice,2,FALSE)) -> 1292778.266 | I81: Analyst | J81: Analyst | K81: UK | L81: =VLOOKUP(tblSalaries[[#This Row],[Where do you work]],tblCountries[[Actual]:[Mapping]],2,FALSE) -> UK | M81: 2 to 3 hours per day | N81: =NA() ->  | O81: =IF(ISNA(VLOOKUP(tblSalaries[[#This Row],[Years of Experience]],vlookUpExp!$A$1:$B$56,2,FALSE)),"No Response",VLOOKUP(tblSalaries[[#This Row],[Years of Experience]],vlookUpExp!$A$1:$B$56,2,FALSE)) -> No Response
B82: ID0079 | C82: 2012-05-25T23:20:46 | D82: Us$ 18000 | E82: 18000 | F82: USD | G82: =tblSalaries[[#This Row],[clean Salary (in local currency)]]*VLOOKUP(tblSalaries[[#This Row],[Currency]],tblXrate[],2,FALSE) -> 18000 | H82: =IF($H$1="USD",tblSalaries[[#This Row],[Salary in USD]],tblSalaries[[#This Row],[Salary in USD]]*VLOOKUP($H$1,USDtoUserChoice,2,FALSE)) -> 147635.64 | I82: Operational Analyst | J82: Analyst | K82: Saudi Arabia | L82: =VLOOKUP(tblSalaries[[#This Row],[Where do you work]],tblCountries[[Actual]:[Mapping]],2,FALSE) -> Saudi Arabia | M82: All the 8 hours baby, all the 8! | N82: =NA() ->  | O82: =IF(ISNA(VLOOKUP(tblSalaries[[#This Row],[Years of Experience]],vlookUpExp!$A$1:$B$56,2,FALSE)),"No Response",VLOOKUP(tblSalaries[[#This Row],[Years of Experience]],vlookUpExp!$A$1:$B$56,2,FALSE)) -> No Response
B83: ID0080 | C83: 2012-05-25T23:31:16 | D83: 50000 | E83: 50000 | F83: USD | G83: =tblSalaries[[#This Row],[clean Salary (in local currency)]]*VLOOKUP(tblSalaries[[#This Row],[Currency]],tblXrate[],2,FALSE) -> 50000 | H83: =IF($H$1="USD",tblSalaries[[#This Row],[Salary in USD]],tblSalaries[[#This Row],[Salary in USD]]*VLOOKUP($H$1,USDtoUserChoice,2,FALSE)) -> 410099 | I83: Exceler | J83: Manager | K83: USA | L83: =VLOOKUP(tblSalaries[[#This Row],[Where do you work]],tblCountries[[Actual]:[Mapping]],2,FALSE) -> USA | M83: 2 to 3 hours per day | N83: =NA() ->  | O83: =IF(ISNA(VLOOKUP(tblSalaries[[#This Row],[Years of Experience]],vlookUpExp!$A$1:$B$56,2,FALSE)),"No Response",VLOOKUP(tblSalaries[[#This Row],[Years of Experience]],vlookUpExp!$A$1:$B$56,2,FALSE)) -> No Response
B84: ID0081 | C84: 2012-05-25T23:33:15 | D84: 26000 | E84: 26000 | F84: USD | G84: =tblSalaries[[#This Row],[clean Salary (in local currency)]]*VLOOKUP(tblSalaries[[#This Row],[Currency]],tblXrate[],2,FALSE) -> 26000 | H84: =IF($H$1="USD",tblSalaries[[#This Row],[Salary in USD]],tblSalaries[[#This Row],[Salary in USD]]*VLOOKUP($H$1,USDtoUserChoice,2,FALSE)) -> 213251.48 | I84: Marketing Analyst | J84: Analyst | K84: Panama | L84: =VLOOKUP(tblSalaries[[#This Row],[Where do you work]],tblCountries[[Actual]:[Mapping]],2,FALSE) -> Panama | M84: All the 8 hours baby, all the 8! | N84: =NA() ->  | O84: =IF(ISNA(VLOOKUP(tblSalaries[[#This Row],[Years of Experience]],vlookUpExp!$A$1:$B$56,2,FALSE)),"No Response",VLOOKUP(tblSalaries[[#This Row],[Years of Experience]],vlookUpExp!$A$1:$B$56,2,FALSE)) -> No Response
B85: ID0082 | C85: 2012-05-25T23:49:27 | D85: Â£30000 | E85: 30000 | F85: GBP | G85: =tblSalaries[[#This Row],[clean Salary (in local currency)]]*VLOOKUP(tblSalaries[[#This Row],[Currency]],tblXrate[],2,FALSE) -> 47285.34816 | H85: =IF($H$1="USD",tblSalaries[[#This Row],[Salary in USD]],tblSalaries[[#This Row],[Salary in USD]]*VLOOKUP($H$1,USDtoUserChoice,2,FALSE)) -> 387833.4799 | I85: Database Manager | J85: Manager | K85: UK | L85: =VLOOKUP(tblSalaries[[#This Row],[Where do you work]],tblCountries[[Actual]:[Mapping]],2,FALSE) -> UK | M85: 4 to 6 hours a day | N85: =NA() ->  | O85: =IF(ISNA(VLOOKUP(tblSalaries[[#This Row],[Years of Experience]],vlookUpExp!$A$1:$B$56,2,FALSE)),"No Response",VLOOKUP(tblSalaries[[#This Row],[Years of Experience]],vlookUpExp!$A$1:$B$56,2,FALSE)) -> No Response
B86: ID0083 | C86: 2012-05-26T00:00:52 | D86: 150000 | E86: 150000 | F86: USD | G86: =tblSalaries[[#This Row],[clean Salary (in local currency)]]*VLOOKUP(tblSalaries[[#This Row],[Currency]],tblXrate[],2,FALSE) -> 150000 | H86: =IF($H$1="USD",tblSalaries[[#This Row],[Salary in USD]],tblSalaries[[#This Row],[Salary in USD]]*VLOOKUP($H$1,USDtoUserChoice,2,FALSE)) -> 1230297 | I86: Director | J86: CXO or Top Mgmt. | K86: USA | L86: =VLOOKUP(tblSalaries[[#This Row],[Where do you work]],tblCountries[[Actual]:[Mapping]],2,FALSE) -> USA | M86: All the 8 hours baby, all the 8! | N86: =NA() ->  | O86: =IF(ISNA(VLOOKUP(tblSalaries[[#This Row],[Years of Experience]],vlookUpExp!$A$1:$B$56,2,FALSE)),"No Response",VLOOKUP(tblSalaries[[#This Row],[Years of Experience]],vlookUpExp!$A$1:$B$56,2,FALSE)) -> No Response
B87: ID0084 | C87: 2012-05-26T00:05:45 | D87: 120000 | E87: 120000 | F87: USD | G87: =tblSalaries[[#This Row],[clean Salary (in local currency)]]*VLOOKUP(tblSalaries[[#This Row],[Currency]],tblXrate[],2,FALSE) -> 120000 | H87: =IF($H$1="USD",tblSalaries[[#This Row],[Salary in USD]],tblSalaries[[#This Row],[Salary in USD]]*VLOOKUP($H$1,USDtoUserChoice,2,FALSE)) -> 984237.6 | I87: Manager, Forecasts & Budgets | J87: Manager | K87: USA | L87: =VLOOKUP(tblSalaries[[#This Row],[Where do you work]],tblCountries[[Actual]:[Mapping]],2,FALSE) -> USA | M87: 4 to 6 hours a day | N87: =NA() ->  | O87: =IF(ISNA(VLOOKUP(tblSalaries[[#This Row],[Years of Experience]],vlookUpExp!$A$1:$B$56,2,FALSE)),"No Response",VLOOKUP(tblSalaries[[#This Row],[Years of Experience]],vlookUpExp!$A$1:$B$56,2,FALSE)) -> No Response
B88: ID0085 | C88: 2012-05-26T00:10:17 | D88: 500000 | E88: 500000 | F88: INR | G88: =tblSalaries[[#This Row],[clean Salary (in local currency)]]*VLOOKUP(tblSalaries[[#This Row],[Currency]],tblXrate[],2,FALSE) -> 8903.958344 | H88: =IF($H$1="USD",tblSalaries[[#This Row],[Salary in USD]],tblSalaries[[#This Row],[Salary in USD]]*VLOOKUP($H$1,USDtoUserChoice,2,FALSE)) -> 73030.08826 | I88: Senior Consultant | J88: Consultant | K88: India | L88: =VLOOKUP(tblSalaries[[#This Row],[Where do you work]],tblCountries[[Actual]:[Mapping]],2,FALSE) -> India | M88: All the 8 hours baby, all the 8! | N88: =NA() ->  | O88: =IF(ISNA(VLOOKUP(tblSalaries[[#This Row],[Years of Experience]],vlookUpExp!$A$1:$B$56,2,FALSE)),"No Response",VLOOKUP(tblSalaries[[#This Row],[Years of Experience]],vlookUpExp!$A$1:$B$56,2,FALSE)) -> No Response
B89: ID0086 | C89: 2012-05-26T00:11:21 | D89: US $ 31330.00 | E89: 31330 | F89: USD | G89: =tblSalaries[[#This Row],[clean Salary (in local currency)]]*VLOOKUP(tblSalaries[[#This Row],[Currency]],tblXrate[],2,FALSE) -> 31330 | H89: =IF($H$1="USD",tblSalaries[[#This Row],[Salary in USD]],tblSalaries[[#This Row],[Salary in USD]]*VLOOKUP($H$1,USDtoUserChoice,2,FALSE)) -> 256968.0334 | I89: VBA Analyst | J89: Analyst | K89: Brazil | L89: =VLOOKUP(tblSalaries[[#This Row],[Where do you work]],tblCountries[[Actual]:[Mapping]],2,FALSE) -> Brazil | M89: All the 8 hours baby, all the 8! | N89: =NA() ->  | O89: =IF(ISNA(VLOOKUP(tblSalaries[[#This Row],[Years of Experience]],vlookUpExp!$A$1:$B$56,2,FALSE)),"No Response",VLOOKUP(tblSalaries[[#This Row],[Years of Experience]],vlookUpExp!$A$1:$B$56,2,FALSE)) -> No Response
B90: ID0087 | C90: 2012-05-26T00:15:17 | D90: 110000 | E90: 110000 | F90: USD | G90: =tblSalaries[[#This Row],[clean Salary (in local currency)]]*VLOOKUP(tblSalaries[[#This Row],[Currency]],tblXrate[],2,FALSE) -> 110000 | H90: =IF($H$1="USD",tblSalaries[[#This Row],[Salary in USD]],tblSalaries[[#This Row],[Salary in USD]]*VLOOKUP($H$1,USDtoUserChoice,2,FALSE)) -> 902217.8 | I90: Senior Scheduling Engineer | J90: Engineer | K90: USA | L90: =VLOOKUP(tblSalaries[[#This Row],[Where do you work]],tblCountries[[Actual]:[Mapping]],2,FALSE) -> USA | M90: 2 to 3 hours per day | N90: =NA() ->  | O90: =IF(ISNA(VLOOKUP(tblSalaries[[#This Row],[Years of Experience]],vlookUpExp!$A$1:$B$56,2,FALSE)),"No Response",VLOOKUP(tblSalaries[[#This Row],[Years of Experience]],vlookUpExp!$A$1:$B$56,2,FALSE)) -> No Response
B91: ID0088 | C91: 2012-05-26T00:22:49 | D91: 81,000USD | E91: 81000 | F91: USD | G91: =tblSalaries[[#This Row],[clean Salary (in local currency)]]*VLOOKUP(tblSalaries[[#This Row],[Currency]],tblXrate[],2,FALSE) -> 81000 | H91: =IF($H$1="USD",tblSalaries[[#This Row],[Salary in USD]],tblSalaries[[#This Row],[Salary in USD]]*VLOOKUP($H$1,USDtoUserChoice,2,FALSE)) -> 664360.38 | I91: Strategy Consultant | J91: Consultant | K91: UK | L91: =VLOOKUP(tblSalaries[[#This Row],[Where do you work]],tblCountries[[Actual]:[Mapping]],2,FALSE) -> UK | M91: 4 to 6 hours a day | N91: =NA() ->  | O91: =IF(ISNA(VLOOKUP(tblSalaries[[#This Row],[Years of Experience]],vlookUpExp!$A$1:$B$56,2,FALSE)),"No Response",VLOOKUP(tblSalaries[[#This Row],[Years of Experience]],vlookUpExp!$A$1:$B$56,2,FALSE)) -> No Response
B92: ID0089 | C92: 2012-05-26T00:39:04 | D92: 40000 | E92: 40000 | F92: USD | G92: =tblSalaries[[#This Row],[clean Salary (in local currency)]]*VLOOKUP(tblSalaries[[#This Row],[Currency]],tblXrate[],2,FALSE) -> 40000 | H92: =IF($H$1="USD",tblSalaries[[#This Row],[Salary in USD]],tblSalaries[[#This Row],[Salary in USD]]*VLOOKUP($H$1,USDtoUserChoice,2,FALSE)) -> 328079.2 | I92: Admin | J92: Analyst | K92: USA | L92: =VLOOKUP(tblSalaries[[#This Row],[Where do you work]],tblCountries[[Actual]:[Mapping]],2,FALSE) -> USA | M92: 4 to 6 hours a day | N92: =NA() ->  | O92: =IF(ISNA(VLOOKUP(tblSalaries[[#This Row],[Years of Experience]],vlookUpExp!$A$1:$B$56,2,FALSE)),"No Response",VLOOKUP(tblSalaries[[#This Row],[Years of Experience]],vlookUpExp!$A$1:$B$56,2,FALSE)) -> No Response
B93: ID0090 | C93: 2012-05-26T00:39:28 | D93: 42000 | E93: 42000 | F93: CAD | G93: =tblSalaries[[#This Row],[clean Salary (in local currency)]]*VLOOKUP(tblSalaries[[#This Row],[Currency]],tblXrate[],2,FALSE) -> 41301.18397 | H93: =IF($H$1="USD",tblSalaries[[#This Row],[Salary in USD]],tblSalaries[[#This Row],[Salary in USD]]*VLOOKUP($H$1,USDtoUserChoice,2,FALSE)) -> 338751.4849 | I93: IT Asset Administrator | J93: Analyst | K93: Canada | L93: =VLOOKUP(tblSalaries[[#This Row],[Where do you work]],tblCountries[[Actual]:[Mapping]],2,FALSE) -> Canada | M93: 4 to 6 hours a day | N93: =NA() ->  | O93: =IF(ISNA(VLOOKUP(tblSalaries[[#This Row],[Years of Experience]],vlookUpExp!$A$1:$B$56,2,FALSE)),"No Response",VLOOKUP(tblSalaries[[#This Row],[Years of Experience]],vlookUpExp!$A$1:$B$56,2,FALSE)) -> No Response
B94: ID0091 | C94: 2012-05-26T00:39:36 | D94: 125000 | E94: 125000 | F94: USD | G94: =tblSalaries[[#This Row],[clean Salary (in local currency)]]*VLOOKUP(tblSalaries[[#This Row],[Currency]],tblXrate[],2,FALSE) -> 125000 | H94: =IF($H$1="USD",tblSalaries[[#This Row],[Salary in USD]],tblSalaries[[#This Row],[Salary in USD]]*VLOOKUP($H$1,USDtoUserChoice,2,FALSE)) -> 1025247.5 | I94: Director of Marketing | J94: CXO or Top Mgmt. | K94: USA | L94: =VLOOKUP(tblSalaries[[#This Row],[Where do you work]],tblCountries[[Actual]:[Mapping]],2,FALSE) -> USA | M94: 4 to 6 hours a day | N94: =NA() ->  | O94: =IF(ISNA(VLOOKUP(tblSalaries[[#This Row],[Years of Experience]],vlookUpExp!$A$1:$B$56,2,FALSE)),"No Response",VLOOKUP(tblSalaries[[#This Row],[Years of Experience]],vlookUpExp!$A$1:$B$56,2,FALSE)) -> No Response
B95: ID0092 | C95: 2012-05-26T00:39:38 | D95: 36000 | E95: 36000 | F95: USD | G95: =tblSalaries[[#This Row],[clean Salary (in local currency)]]*VLOOKUP(tblSalaries[[#This Row],[Currency]],tblXrate[],2,FALSE) -> 36000 | H95: =IF($H$1="USD",tblSalaries[[#This Row],[Salary in USD]],tblSalaries[[#This Row],[Salary in USD]]*VLOOKUP($H$1,USDtoUserChoice,2,FALSE)) -> 295271.28 | I95: Graphic Design Manager | J95: Manager | K95: USA | L95: =VLOOKUP(tblSalaries[[#This Row],[Where do you work]],tblCountries[[Actual]:[Mapping]],2,FALSE) -> USA | M95: 2 to 3 hours per day | N95: =NA() ->  | O95: =IF(ISNA(VLOOKUP(tblSalaries[[#This Row],[Years of Experience]],vlookUpExp!$A$1:$B$56,2,FALSE)),"No Response",VLOOKUP(tblSalaries[[#This Row],[Years of Experience]],vlookUpExp!$A$1:$B$56,2,FALSE)) -> No Response
B96: ID0093 | C96: 2012-05-26T00:39:54 | D96: Rs. 12,000/- | E96: 144000 | F96: INR | G96: =tblSalaries[[#This Row],[clean Salary (in local currency)]]*VLOOKUP(tblSalaries[[#This Row],[Currency]],tblXrate[],2,FALSE) -> 2564.340003 | H96: =IF($H$1="USD",tblSalaries[[#This Row],[Salary in USD]],tblSalaries[[#This Row],[Salary in USD]]*VLOOKUP($H$1,USDtoUserChoice,2,FALSE)) -> 21032.66542 | I96: Financial Consultant | J96: Consultant | K96: India | L96: =VLOOKUP(tblSalaries[[#This Row],[Where do you work]],tblCountries[[Actual]:[Mapping]],2,FALSE) -> India | M96: 1 or 2 hours a day | N96: =NA() ->  | O96: =IF(ISNA(VLOOKUP(tblSalaries[[#This Row],[Years of Experience]],vlookUpExp!$A$1:$B$56,2,FALSE)),"No Response",VLOOKUP(tblSalaries[[#This Row],[Years of Experience]],vlookUpExp!$A$1:$B$56,2,FALSE)) -> No Response
B97: ID0094 | C97: 2012-05-26T00:40:00 | D97: 75000 | E97: 75000 | F97: USD | G97: =tblSalaries[[#This Row],[clean Salary (in local currency)]]*VLOOKUP(tblSalaries[[#This Row],[Currency]],tblXrate[],2,FALSE) -> 75000 | H97: =IF($H$1="USD",tblSalaries[[#This Row],[Salary in USD]],tblSalaries[[#This Row],[Salary in USD]]*VLOOKUP($H$1,USDtoUserChoice,2,FALSE)) -> 615148.5 | I97: Data Analyst | J97: Analyst | K97: USA | L97: =VLOOKUP(tblSalaries[[#This Row],[Where do you work]],tblCountries[[Actual]:[Mapping]],2,FALSE) -> USA | M97: 1 or 2 hours a day | N97: =NA() ->  | O97: =IF(ISNA(VLOOKUP(tblSalaries[[#This Row],[Years of Experience]],vlookUpExp!$A$1:$B$56,2,FALSE)),"No Response",VLOOKUP(tblSalaries[[#This Row],[Years of Experience]],vlookUpExp!$A$1:$B$56,2,FALSE)) -> No Response
B98: ID0095 | C98: 2012-05-26T00:40:20 | D98: 95000 | E98: 95000 | F98: USD | G98: =tblSalaries[[#This Row],[clean Salary (in local currency)]]*VLOOKUP(tblSalaries[[#This Row],[Currency]],tblXrate[],2,FALSE) -> 95000 | H98: =IF($H$1="USD",tblSalaries[[#This Row],[Salary in USD]],tblSalaries[[#This Row],[Salary in USD]]*VLOOKUP($H$1,USDtoUserChoice,2,FALSE)) -> 779188.1 | I98: CFO | J98: CXO or Top Mgmt. | K98: USA | L98: =VLOOKUP(tblSalaries[[#This Row],[Where do you work]],tblCountries[[Actual]:[Mapping]],2,FALSE) -> USA | M98: 4 to 6 hours a day | N98: =NA() ->  | O98: =IF(ISNA(VLOOKUP(tblSalaries[[#This Row],[Years of Experience]],vlookUpExp!$A$1:$B$56,2,FALSE)),"No Response",VLOOKUP(tblSalaries[[#This Row],[Years of Experience]],vlookUpExp!$A$1:$B$56,2,FALSE)) -> No Response
B99: ID0096 | C99: 2012-05-26T00:40:27 | D99: 24000 | E99: 24000 | F99: USD | G99: =tblSalaries[[#This Row],[clean Salary (in local currency)]]*VLOOKUP(tblSalaries[[#This Row],[Currency]],tblXrate[],2,FALSE) -> 24000 | H99: =IF($H$1="USD",tblSalaries[[#This Row],[Salary in USD]],tblSalaries[[#This Row],[Salary in USD]]*VLOOKUP($H$1,USDtoUserChoice,2,FALSE)) -> 196847.52 | I99: Paraeducator | J99: Manager | K99: USA | L99: =VLOOKUP(tblSalaries[[#This Row],[Where do you work]],tblCountries[[Actual]:[Mapping]],2,FALSE) -> USA | M99: 2 to 3 hours per day | N99: =NA() ->  | O99: =IF(ISNA(VLOOKUP(tblSalaries[[#This Row],[Years of Experience]],vlookUpExp!$A$1:$B$56,2,FALSE)),"No Response",VLOOKUP(tblSalaries[[#This Row],[Years of Experience]],vlookUpExp!$A$1:$B$56,2,FALSE)) -> No Response
B100: ID0097 | C100: 2012-05-26T00:40:31 | D100: 91,000 USD | E100: 91000 | F100: USD | G100: =tblSalaries[[#This Row],[clean Salary (in local currency)]]*VLOOKUP(tblSalaries[[#This Row],[Currency]],tblXrate[],2,FALSE) -> 91000 | H100: =IF($H$1="USD",tblSalaries[[#This Row],[Salary in USD]],tblSalaries[[#This Row],[Salary in USD]]*VLOOKUP($H$1,USDtoUserChoice,2,FALSE)) -> 746380.18 | I100: Channel Marketing Manager | J100: Manager | K100: USA | L100: =VLOOKUP(tblSalaries[[#This Row],[Where do you work]],tblCountries[[Actual]:[Mapping]],2,FALSE) -> USA | M100: 1 or 2 hours a day | N100: =NA() ->  | O100: =IF(ISNA(VLOOKUP(tblSalaries[[#This Row],[Years of Experience]],vlookUpExp!$A$1:$B$56,2,FALSE)),"No Response",VLOOKUP(tblSalaries[[#This Row],[Years of Experience]],vlookUpExp!$A$1:$B$56,2,FALSE)) -> No Response
B101: ID0098 | C101: 2012-05-26T00:40:39 | D101: 40000 | E101: 40000 | F101: USD | G101: =tblSalaries[[#This Row],[clean Salary (in local currency)]]*VLOOKUP(tblSalaries[[#This Row],[Currency]],tblXrate[],2,FALSE) -> 40000 | H101: =IF($H$1="USD",tblSalaries[[#This Row],[Salary in USD]],tblSalaries[[#This Row],[Salary in USD]]*VLOOKUP($H$1,USDtoUserChoice,2,FALSE)) -> 328079.2 | I101: Sales and Marketing Analyst | J101: Analyst | K101: USA | L101: =VLOOKUP(tblSalaries[[#This Row],[Where do you work]],tblCountries[[Actual]:[Mapping]],2,FALSE) -> USA | M101: 4 to 6 hours a day | N101: =NA() ->  | O101: =IF(ISNA(VLOOKUP(tblSalaries[[#This Row],[Years of Experience]],vlookUpExp!$A$1:$B$56,2,FALSE)),"No Response",VLOOKUP(tblSalaries[[#This Row],[Years of Experience]],vlookUpExp!$A$1:$B$56,2,FALSE)) -> No Response
B102: ID0099 | C102: 2012-05-26T00:40:40 | D102: 57000 | E102: 57000 | F102: USD | G102: =tblSalaries[[#This Row],[clean Salary (in local currency)]]*VLOOKUP(tblSalaries[[#This Row],[Currency]],tblXrate[],2,FALSE) -> 57000 | H102: =IF($H$1="USD",tblSalaries[[#This Row],[Salary in USD]],tblSalaries[[#This Row],[Salary in USD]]*VLOOKUP($H$1,USDtoUserChoice,2,FALSE)) -> 467512.86 | I102: Production Scheduler | J102: Manager | K102: USA | L102: =VLOOKUP(tblSalaries[[#This Row],[Where do you work]],tblCountries[[Actual]:[Mapping]],2,FALSE) -> USA | M102: 4 to 6 hours a day | N102: =NA() ->  | O102: =IF(ISNA(VLOOKUP(tblSalaries[[#This Row],[Years of Experience]],vlookUpExp!$A$1:$B$56,2,FALSE)),"No Response",VLOOKUP(tblSalaries[[#This Row],[Years of Experience]],vlookUpExp!$A$1:$B$56,2,FALSE)) -> No Response
B103: ID0100 | C103: 2012-05-26T00:40:41 | D103: 74000 | E103: 74000 | F103: USD | G103: =tblSalaries[[#This Row],[clean Salary (in local currency)]]*VLOOKUP(tblSalaries[[#This Row],[Currency]],tblXrate[],2,FALSE) -> 74000 | H103: =IF($H$1="USD",tblSalaries[[#This Row],[Salary in USD]],tblSalaries[[#This Row],[Salary in USD]]*VLOOKUP($H$1,USDtoUserChoice,2,FALSE)) -> 606946.52 | I103: Senior Consultant | J103: Consultant | K103: USA | L103: =VLOOKUP(tblSalaries[[#This Row],[Where do you work]],tblCountries[[Actual]:[Mapping]],2,FALSE) -> USA | M103: 4 to 6 hours a day | N103: =NA() ->  | O103: =IF(ISNA(VLOOKUP(tblSalaries[[#This Row],[Years of Experience]],vlookUpExp!$A$1:$B$56,2,FALSE)),"No Response",VLOOKUP(tblSalaries[[#This Row],[Years of Experience]],vlookUpExp!$A$1:$B$56,2,FALSE)) -> No Response
B104: ID0101 | C104: 2012-05-26T00:40:42 | D104: 80k | E104: 80000 | F104: USD | G104: =tblSalaries[[#This Row],[clean Salary (in local currency)]]*VLOOKUP(tblSalaries[[#This Row],[Currency]],tblXrate[],2,FALSE) -> 80000 | H104: =IF($H$1="USD",tblSalaries[[#This Row],[Salary in USD]],tblSalaries[[#This Row],[Salary in USD]]*VLOOKUP($H$1,USDtoUserChoice,2,FALSE)) -> 656158.4 | I104: financial analyst | J104: Analyst | K104: USA | L104: =VLOOKUP(tblSalaries[[#This Row],[Where do you work]],tblCountries[[Actual]:[Mapping]],2,FALSE) -> USA | M104: 4 to 6 hours a day | N104: =NA() ->  | O104: =IF(ISNA(VLOOKUP(tblSalaries[[#This Row],[Years of Experience]],vlookUpExp!$A$1:$B$56,2,FALSE)),"No Response",VLOOKUP(tblSalaries[[#This Row],[Years of Experience]],vlookUpExp!$A$1:$B$56,2,FALSE)) -> No Response
B105: ID0102 | C105: 2012-05-26T00:40:46 | D105: 90000 | E105: 90000 | F105: USD | G105: =tblSalaries[[#This Row],[clean Salary (in local currency)]]*VLOOKUP(tblSalaries[[#This Row],[Currency]],tblXrate[],2,FALSE) -> 90000 | H105: =IF($H$1="USD",tblSalaries[[#This Row],[Salary in USD]],tblSalaries[[#This Row],[Salary in USD]]*VLOOKUP($H$1,USDtoUserChoice,2,FALSE)) -> 738178.2 | I105: Product Specialist | J105: Specialist | K105: USA | L105: =VLOOKUP(tblSalaries[[#This Row],[Where do you work]],tblCountries[[Actual]:[Mapping]],2,FALSE) -> USA | M105: 4 to 6 hours a day | N105: =NA() ->  | O105: =IF(ISNA(VLOOKUP(tblSalaries[[#This Row],[Years of Experience]],vlookUpExp!$A$1:$B$56,2,FALSE)),"No Response",VLOOKUP(tblSalaries[[#This Row],[Years of Experience]],vlookUpExp!$A$1:$B$56,2,FALSE)) -> No Response
B106: ID0103 | C106: 2012-05-26T00:40:48 | D106: 21000 | E106: 21000 | F106: USD | G106: =tblSalaries[[#This Row],[clean Salary (in local currency)]]*VLOOKUP(tblSalaries[[#This Row],[Currency]],tblXrate[],2,FALSE) -> 21000 | H106: =IF($H$1="USD",tblSalaries[[#This Row],[Salary in USD]],tblSalaries[[#This Row],[Salary in USD]]*VLOOKUP($H$1,USDtoUserChoice,2,FALSE)) -> 172241.58 | I106: IT support | J106: Analyst | K106: arabian Gulf | L106: =VLOOKUP(tblSalaries[[#This Row],[Where do you work]],tblCountries[[Actual]:[Mapping]],2,FALSE) -> arabian Gulf | M106: 1 or 2 hours a day | N106: =NA() ->  | O106: =IF(ISNA(VLOOKUP(tblSalaries[[#This Row],[Years of Experience]],vlookUpExp!$A$1:$B$56,2,FALSE)),"No Response",VLOOKUP(tblSalaries[[#This Row],[Years of Experience]],vlookUpExp!$A$1:$B$56,2,FALSE)) -> No Response
B107: ID0104 | C107: 2012-05-26T00:40:50 | D107: 52000 | E107: 52000 | F107: USD | G107: =tblSalaries[[#This Row],[clean Salary (in local currency)]]*VLOOKUP(tblSalaries[[#This Row],[Currency]],tblXrate[],2,FALSE) -> 52000 | H107: =IF($H$1="USD",tblSalaries[[#This Row],[Salary in USD]],tblSalaries[[#This Row],[Salary in USD]]*VLOOKUP($H$1,USDtoUserChoice,2,FALSE)) -> 426502.96 | I107: sr. project coordinator | J107: Manager | K107: USA | L107: =VLOOKUP(tblSalaries[[#This Row],[Where do you work]],tblCountries[[Actual]:[Mapping]],2,FALSE) -> USA | M107: 4 to 6 hours a day | N107: =NA() ->  | O107: =IF(ISNA(VLOOKUP(tblSalaries[[#This Row],[Years of Experience]],vlookUpExp!$A$1:$B$56,2,FALSE)),"No Response",VLOOKUP(tblSalaries[[#This Row],[Years of Experience]],vlookUpExp!$A$1:$B$56,2,FALSE)) -> No Response
B108: ID0105 | C108: 2012-05-26T00:40:52 | D108: 19200 | E108: 19200 | F108: USD | G108: =tblSalaries[[#This Row],[clean Salary (in local currency)]]*VLOOKUP(tblSalaries[[#This Row],[Currency]],tblXrate[],2,FALSE) -> 19200 | H108: =IF($H$1="USD",tblSalaries[[#This Row],[Salary in USD]],tblSalaries[[#This Row],[Salary in USD]]*VLOOKUP($H$1,USDtoUserChoice,2,FALSE)) -> 157478.016 | I108: Sr Administrative Assistant | J108: Analyst | K108: Mexico | L108: =VLOOKUP(tblSalaries[[#This Row],[Where do you work]],tblCountries[[Actual]:[Mapping]],2,FALSE) -> Mexico | M108: 4 to 6 hours a day | N108: =NA() ->  | O108: =IF(ISNA(VLOOKUP(tblSalaries[[#This Row],[Years of Experience]],vlookUpExp!$A$1:$B$56,2,FALSE)),"No Response",VLOOKUP(tblSalaries[[#This Row],[Years of Experience]],vlookUpExp!$A$1:$B$56,2,FALSE)) -> No Response
B109: ID0106 | C109: 2012-05-26T00:40:57 | D109: 36000 | E109: 36000 | F109: USD | G109: =tblSalaries[[#This Row],[clean Salary (in local currency)]]*VLOOKUP(tblSalaries[[#This Row],[Currency]],tblXrate[],2,FALSE) -> 36000 | H109: =IF($H$1="USD",tblSalaries[[#This Row],[Salary in USD]],tblSalaries[[#This Row],[Salary in USD]]*VLOOKUP($H$1,USDtoUserChoice,2,FALSE)) -> 295271.28 | I109: Analyst | J109: Analyst | K109: USA | L109: =VLOOKUP(tblSalaries[[#This Row],[Where do you work]],tblCountries[[Actual]:[Mapping]],2,FALSE) -> USA | M109: 4 to 6 hours a day | N109: =NA() ->  | O109: =IF(ISNA(VLOOKUP(tblSalaries[[#This Row],[Years of Experience]],vlookUpExp!$A$1:$B$56,2,FALSE)),"No Response",VLOOKUP(tblSalaries[[#This Row],[Years of Experience]],vlookUpExp!$A$1:$B$56,2,FALSE)) -> No Response
B110: ID0107 | C110: 2012-05-26T00:41:02 | D110: 57400 | E110: 57400 | F110: USD | G110: =tblSalaries[[#This Row],[clean Salary (in local currency)]]*VLOOKUP(tblSalaries[[#This Row],[Currency]],tblXrate[],2,FALSE) -> 57400 | H110: =IF($H$1="USD",tblSalaries[[#This Row],[Salary in USD]],tblSalaries[[#This Row],[Salary in USD]]*VLOOKUP($H$1,USDtoUserChoice,2,FALSE)) -> 470793.652 | I110: IT Analyst | J110: Analyst | K110: USA | L110: =VLOOKUP(tblSalaries[[#This Row],[Where do you work]],tblCountries[[Actual]:[Mapping]],2,FALSE) -> USA | M110: 4 to 6 hours a day | N110: =NA() ->  | O110: =IF(ISNA(VLOOKUP(tblSalaries[[#This Row],[Years of Experience]],vlookUpExp!$A$1:$B$56,2,FALSE)),"No Response",VLOOKUP(tblSalaries[[#This Row],[Years of Experience]],vlookUpExp!$A$1:$B$56,2,FALSE)) -> No Response
B111: ID0108 | C111: 2012-05-26T00:41:03 | D111: 66000 | E111: 66000 | F111: USD | G111: =tblSalaries[[#This Row],[clean Salary (in local currency)]]*VLOOKUP(tblSalaries[[#This Row],[Currency]],tblXrate[],2,FALSE) -> 66000 | H111: =IF($H$1="USD",tblSalaries[[#This Row],[Salary in USD]],tblSalaries[[#This Row],[Salary in USD]]*VLOOKUP($H$1,USDtoUserChoice,2,FALSE)) -> 541330.68 | I111: Analyst | J111: Analyst | K111: USA | L111: =VLOOKUP(tblSalaries[[#This Row],[Where do you work]],tblCountries[[Actual]:[Mapping]],2,FALSE) -> USA | M111: 2 to 3 hours per day | N111: =NA() ->  | O111: =IF(ISNA(VLOOKUP(tblSalaries[[#This Row],[Years of Experience]],vlookUpExp!$A$1:$B$56,2,FALSE)),"No Response",VLOOKUP(tblSalaries[[#This Row],[Years of Experience]],vlookUpExp!$A$1:$B$56,2,FALSE)) -> No Response
B112: ID0109 | C112: 2012-05-26T00:41:06 | D112: 35000 | E112: 35000 | F112: EUR | G112: =tblSalaries[[#This Row],[clean Salary (in local currency)]]*VLOOKUP(tblSalaries[[#This Row],[Currency]],tblXrate[],2,FALSE) -> 44463.98036 | H112: =IF($H$1="USD",tblSalaries[[#This Row],[Salary in USD]],tblSalaries[[#This Row],[Salary in USD]]*VLOOKUP($H$1,USDtoUserChoice,2,FALSE)) -> 364692.6777 | I112: Project manager | J112: Manager | K112: Greece | L112: =VLOOKUP(tblSalaries[[#This Row],[Where do you work]],tblCountries[[Actual]:[Mapping]],2,FALSE) -> Greece | M112: 4 to 6 hours a day | N112: =NA() ->  | O112: =IF(ISNA(VLOOKUP(tblSalaries[[#This Row],[Years of Experience]],vlookUpExp!$A$1:$B$56,2,FALSE)),"No Response",VLOOKUP(tblSalaries[[#This Row],[Years of Experience]],vlookUpExp!$A$1:$B$56,2,FALSE)) -> No Response
B113: ID0111 | C113: 2012-05-26T00:41:16 | D113: $85,000+ | E113: 85000 | F113: USD | G113: =tblSalaries[[#This Row],[clean Salary (in local currency)]]*VLOOKUP(tblSalaries[[#This Row],[Currency]],tblXrate[],2,FALSE) -> 85000 | H113: =IF($H$1="USD",tblSalaries[[#This Row],[Salary in USD]],tblSalaries[[#This Row],[Salary in USD]]*VLOOKUP($H$1,USDtoUserChoice,2,FALSE)) -> 697168.3 | I113: Strategic Analyst | J113: Analyst | K113: USA | L113: =VLOOKUP(tblSalaries[[#This Row],[Where do you work]],tblCountries[[Actual]:[Mapping]],2,FALSE) -> USA | M113: 4 to 6 hours a day | N113: =NA() ->  | O113: =IF(ISNA(VLOOKUP(tblSalaries[[#This Row],[Years of Experience]],vlookUpExp!$A$1:$B$56,2,FALSE)),"No Response",VLOOKUP(tblSalaries[[#This Row],[Years of Experience]],vlookUpExp!$A$1:$B$56,2,FALSE)) -> No Response
B114: ID0112 | C114: 2012-05-26T00:41:22 | D114: 50000 | E114: 50000 | F114: USD | G114: =tblSalaries[[#This Row],[clean Salary (in local currency)]]*VLOOKUP(tblSalaries[[#This Row],[Currency]],tblXrate[],2,FALSE) -> 50000 | H114: =IF($H$1="USD",tblSalaries[[#This Row],[Salary in USD]],tblSalaries[[#This Row],[Salary in USD]]*VLOOKUP($H$1,USDtoUserChoice,2,FALSE)) -> 410099 | I114: Transportation Specialist | J114: Specialist | K114: USA | L114: =VLOOKUP(tblSalaries[[#This Row],[Where do you work]],tblCountries[[Actual]:[Mapping]],2,FALSE) -> USA | M114: 4 to 6 hours a day | N114: =NA() ->  | O114: =IF(ISNA(VLOOKUP(tblSalaries[[#This Row],[Years of Experience]],vlookUpExp!$A$1:$B$56,2,FALSE)),"No Response",VLOOKUP(tblSalaries[[#This Row],[Years of Experience]],vlookUpExp!$A$1:$B$56,2,FALSE)) -> No Response
B115: ID0113 | C115: 2012-05-26T00:41:27 | D115: $58,000 USD | E115: 58000 | F115: USD | G115: =tblSalaries[[#This Row],[clean Salary (in local currency)]]*VLOOKUP(tblSalaries[[#This Row],[Currency]],tblXrate[],2,FALSE) -> 58000 | H115: =IF($H$1="USD",tblSalaries[[#This Row],[Salary in USD]],tblSalaries[[#This Row],[Salary in USD]]*VLOOKUP($H$1,USDtoUserChoice,2,FALSE)) -> 475714.84 | I115: Operations Programs Support | J115: Manager | K115: USA | L115: =VLOOKUP(tblSalaries[[#This Row],[Where do you work]],tblCountries[[Actual]:[Mapping]],2,FALSE) -> USA | M115: 4 to 6 hours a day | N115: =NA() ->  | O115: =IF(ISNA(VLOOKUP(tblSalaries[[#This Row],[Years of Experience]],vlookUpExp!$A$1:$B$56,2,FALSE)),"No Response",VLOOKUP(tblSalaries[[#This Row],[Years of Experience]],vlookUpExp!$A$1:$B$56,2,FALSE)) -> No Response
B116: ID0114 | C116: 2012-05-26T00:41:28 | D116: 37900 | E116: 37900 | F116: USD | G116: =tblSalaries[[#This Row],[clean Salary (in local currency)]]*VLOOKUP(tblSalaries[[#This Row],[Currency]],tblXrate[],2,FALSE) -> 37900 | H116: =IF($H$1="USD",tblSalaries[[#This Row],[Salary in USD]],tblSalaries[[#This Row],[Salary in USD]]*VLOOKUP($H$1,USDtoUserChoice,2,FALSE)) -> 310855.042 | I116: Accounting Coordinator | J116: Accountant | K116: USA | L116: =VLOOKUP(tblSalaries[[#This Row],[Where do you work]],tblCountries[[Actual]:[Mapping]],2,FALSE) -> USA | M116: All the 8 hours baby, all the 8! | N116: =NA() ->  | O116: =IF(ISNA(VLOOKUP(tblSalaries[[#This Row],[Years of Experience]],vlookUpExp!$A$1:$B$56,2,FALSE)),"No Response",VLOOKUP(tblSalaries[[#This Row],[Years of Experience]],vlookUpExp!$A$1:$B$56,2,FALSE)) -> No Response
B117: ID0115 | C117: 2012-05-26T00:41:30 | D117: 4000 | E117: 48000 | F117: USD | G117: =tblSalaries[[#This Row],[clean Salary (in local currency)]]*VLOOKUP(tblSalaries[[#This Row],[Currency]],tblXrate[],2,FALSE) -> 48000 | H117: =IF($H$1="USD",tblSalaries[[#This Row],[Salary in USD]],tblSalaries[[#This Row],[Salary in USD]]*VLOOKUP($H$1,USDtoUserChoice,2,FALSE)) -> 393695.04 | I117: Asst.Manager Finance | J117: Manager | K117: UAE | L117: =VLOOKUP(tblSalaries[[#This Row],[Where do you work]],tblCountries[[Actual]:[Mapping]],2,FALSE) -> UAE | M117: 2 to 3 hours per day | N117: =NA() ->  | O117: =IF(ISNA(VLOOKUP(tblSalaries[[#This Row],[Years of Experience]],vlookUpExp!$A$1:$B$56,2,FALSE)),"No Response",VLOOKUP(tblSalaries[[#This Row],[Years of Experience]],vlookUpExp!$A$1:$B$56,2,FALSE)) -> No Response
B118: ID0116 | C118: 2012-05-26T00:41:32 | D118: 67000 | E118: 67000 | F118: USD | G118: =tblSalaries[[#This Row],[clean Salary (in local currency)]]*VLOOKUP(tblSalaries[[#This Row],[Currency]],tblXrate[],2,FALSE) -> 67000 | H118: =IF($H$1="USD",tblSalaries[[#This Row],[Salary in USD]],tblSalaries[[#This Row],[Salary in USD]]*VLOOKUP($H$1,USDtoUserChoice,2,FALSE)) -> 549532.66 | I118: Operations Cost Analyst | J118: Analyst | K118: USA | L118: =VLOOKUP(tblSalaries[[#This Row],[Where do you work]],tblCountries[[Actual]:[Mapping]],2,FALSE) -> USA | M118: 4 to 6 hours a day | N118: =NA() ->  | O118: =IF(ISNA(VLOOKUP(tblSalaries[[#This Row],[Years of Experience]],vlookUpExp!$A$1:$B$56,2,FALSE)),"No Response",VLOOKUP(tblSalaries[[#This Row],[Years of Experience]],vlookUpExp!$A$1:$B$56,2,FALSE)) -> No Response
B119: ID0117 | C119: 2012-05-26T00:41:35 | D119: 85000 | E119: 85000 | F119: USD | G119: =tblSalaries[[#This Row],[clean Salary (in local currency)]]*VLOOKUP(tblSalaries[[#This Row],[Currency]],tblXrate[],2,FALSE) -> 85000 | H119: =IF($H$1="USD",tblSalaries[[#This Row],[Salary in USD]],tblSalaries[[#This Row],[Salary in USD]]*VLOOKUP($H$1,USDtoUserChoice,2,FALSE)) -> 697168.3 | I119: Financial Controller | J119: Controller | K119: UAE | L119: =VLOOKUP(tblSalaries[[#This Row],[Where do you work]],tblCountries[[Actual]:[Mapping]],2,FALSE) -> UAE | M119: 4 to 6 hours a day | N119: =NA() ->  | O119: =IF(ISNA(VLOOKUP(tblSalaries[[#This Row],[Years of Experience]],vlookUpExp!$A$1:$B$56,2,FALSE)),"No Response",VLOOKUP(tblSalaries[[#This Row],[Years of Experience]],vlookUpExp!$A$1:$B$56,2,FALSE)) -> No Response
B120: ID0118 | C120: 2012-05-26T00:41:35 | D120: 56160 | E120: 56160 | F120: USD | G120: =tblSalaries[[#This Row],[clean Salary (in local currency)]]*VLOOKUP(tblSalaries[[#This Row],[Currency]],tblXrate[],2,FALSE) -> 56160 | H120: =IF($H$1="USD",tblSalaries[[#This Row],[Salary in USD]],tblSalaries[[#This Row],[Salary in USD]]*VLOOKUP($H$1,USDtoUserChoice,2,FALSE)) -> 460623.1968 | I120: Utilization Analyst | J120: Analyst | K120: USA | L120: =VLOOKUP(tblSalaries[[#This Row],[Where do you work]],tblCountries[[Actual]:[Mapping]],2,FALSE) -> USA | M120: 4 to 6 hours a day | N120: =NA() ->  | O120: =IF(ISNA(VLOOKUP(tblSalaries[[#This Row],[Years of Experience]],vlookUpExp!$A$1:$B$56,2,FALSE)),"No Response",VLOOKUP(tblSalaries[[#This Row],[Years of Experience]],vlookUpExp!$A$1:$B$56,2,FALSE)) -> No Response
B121: ID0119 | C121: 2012-05-26T00:41:38 | D121: 2000 | E121: 24000 | F121: USD | G121: =tblSalaries[[#This Row],[clean Salary (in local currency)]]*VLOOKUP(tblSalaries[[#This Row],[Currency]],tblXrate[],2,FALSE) -> 24000 | H121: =IF($H$1="USD",tblSalaries[[#This Row],[Salary in USD]],tblSalaries[[#This Row],[Salary in USD]]*VLOOKUP($H$1,USDtoUserChoice,2,FALSE)) -> 196847.52 | I121: Researcher | J121: Manager | K121: Colombia | L121: =VLOOKUP(tblSalaries[[#This Row],[Where do you work]],tblCountries[[Actual]:[Mapping]],2,FALSE) -> Colombia | M121: All the 8 hours baby, all the 8! | N121: =NA() ->  | O121: =IF(ISNA(VLOOKUP(tblSalaries[[#This Row],[Years of Experience]],vlookUpExp!$A$1:$B$56,2,FALSE)),"No Response",VLOOKUP(tblSalaries[[#This Row],[Years of Experience]],vlookUpExp!$A$1:$B$56,2,FALSE)) -> No Response
B122: ID0120 | C122: 2012-05-26T00:41:38 | D122: 52000 | E122: 52000 | F122: USD | G122: =tblSalaries[[#This Row],[clean Salary (in local currency)]]*VLOOKUP(tblSalaries[[#This Row],[Currency]],tblXrate[],2,FALSE) -> 52000 | H122: =IF($H$1="USD",tblSalaries[[#This Row],[Salary in USD]],tblSalaries[[#This Row],[Salary in USD]]*VLOOKUP($H$1,USDtoUserChoice,2,FALSE)) -> 426502.96 | I122: Market Analyst | J122: Analyst | K122: USA | L122: =VLOOKUP(tblSalaries[[#This Row],[Where do you work]],tblCountries[[Actual]:[Mapping]],2,FALSE) -> USA | M122: Excel ?!? What Excel? | N122: =NA() ->  | O122: =IF(ISNA(VLOOKUP(tblSalaries[[#This Row],[Years of Experience]],vlookUpExp!$A$1:$B$56,2,FALSE)),"No Response",VLOOKUP(tblSalaries[[#This Row],[Years of Experience]],vlookUpExp!$A$1:$B$56,2,FALSE)) -> No Response
B123: ID0121 | C123: 2012-05-26T00:41:41 | D123: 60000 | E123: 60000 | F123: CAD | G123: =tblSalaries[[#This Row],[clean Salary (in local currency)]]*VLOOKUP(tblSalaries[[#This Row],[Currency]],tblXrate[],2,FALSE) -> 59001.69138 | H123: =IF($H$1="USD",tblSalaries[[#This Row],[Salary in USD]],tblSalaries[[#This Row],[Salary in USD]]*VLOOKUP($H$1,USDtoUserChoice,2,FALSE)) -> 483930.6927 | I123: Web Developer | J123: Analyst | K123: Canada | L123: =VLOOKUP(tblSalaries[[#This Row],[Where do you work]],tblCountries[[Actual]:[Mapping]],2,FALSE) -> Canada | M123: Excel ?!? What Excel? | N123: =NA() ->  | O123: =IF(ISNA(VLOOKUP(tblSalaries[[#This Row],[Years of Experience]],vlookUpExp!$A$1:$B$56,2,FALSE)),"No Response",VLOOKUP(tblSalaries[[#This Row],[Years of Experience]],vlookUpExp!$A$1:$B$56,2,FALSE)) -> No Response
B124: ID0122 | C124: 2012-05-26T00:41:43 | D124: 70000 | E124: 70000 | F124: USD | G124: =tblSalaries[[#This Row],[clean Salary (in local currency)]]*VLOOKUP(tblSalaries[[#This Row],[Currency]],tblXrate[],2,FALSE) -> 70000 | H124: =IF($H$1="USD",tblSalaries[[#This Row],[Salary in USD]],tblSalaries[[#This Row],[Salary in USD]]*VLOOKUP($H$1,USDtoUserChoice,2,FALSE)) -> 574138.6 | I124: Sr. Acct | J124: Accountant | K124: USA | L124: =VLOOKUP(tblSalaries[[#This Row],[Where do you work]],tblCountries[[Actual]:[Mapping]],2,FALSE) -> USA | M124: All the 8 hours baby, all the 8! | N124: =NA() ->  | O124: =IF(ISNA(VLOOKUP(tblSalaries[[#This Row],[Years of Experience]],vlookUpExp!$A$1:$B$56,2,FALSE)),"No Response",VLOOKUP(tblSalaries[[#This Row],[Years of Experience]],vlookUpExp!$A$1:$B$56,2,FALSE)) -> No Response
B125: ID0123 | C125: 2012-05-26T00:41:56 | D125: 50000 | E125: 50000 | F125: USD | G125: =tblSalaries[[#This Row],[clean Salary (in local currency)]]*VLOOKUP(tblSalaries[[#This Row],[Currency]],tblXrate[],2,FALSE) -> 50000 | H125: =IF($H$1="USD",tblSalaries[[#This Row],[Salary in USD]],tblSalaries[[#This Row],[Salary in USD]]*VLOOKUP($H$1,USDtoUserChoice,2,FALSE)) -> 410099 | I125: Information Systems Specialist | J125: Specialist | K125: USA | L125: =VLOOKUP(tblSalaries[[#This Row],[Where do you work]],tblCountries[[Actual]:[Mapping]],2,FALSE) -> USA | M125: 4 to 6 hours a day | N125: =NA() ->  | O125: =IF(ISNA(VLOOKUP(tblSalaries[[#This Row],[Years of Experience]],vlookUpExp!$A$1:$B$56,2,FALSE)),"No Response",VLOOKUP(tblSalaries[[#This Row],[Years of Experience]],vlookUpExp!$A$1:$B$56,2,FALSE)) -> No Response
B126: ID0124 | C126: 2012-05-26T00:41:58 | D126: 2300000 | E126: 2300000 | F126: INR | G126: =tblSalaries[[#This Row],[clean Salary (in local currency)]]*VLOOKUP(tblSalaries[[#This Row],[Currency]],tblXrate[],2,FALSE) -> 40958.20838 | H126: =IF($H$1="USD",tblSalaries[[#This Row],[Salary in USD]],tblSalaries[[#This Row],[Salary in USD]]*VLOOKUP($H$1,USDtoUserChoice,2,FALSE)) -> 335938.406 | I126: Analytics lead | J126: Analyst | K126: India | L126: =VLOOKUP(tblSalaries[[#This Row],[Where do you work]],tblCountries[[Actual]:[Mapping]],2,FALSE) -> India | M126: 1 or 2 hours a day | N126: =NA() ->  | O126: =IF(ISNA(VLOOKUP(tblSalaries[[#This Row],[Years of Experience]],vlookUpExp!$A$1:$B$56,2,FALSE)),"No Response",VLOOKUP(tblSalaries[[#This Row],[Years of Experience]],vlookUpExp!$A$1:$B$56,2,FALSE)) -> No Response
B127: ID0125 | C127: 2012-05-26T00:42:00 | D127: 80000 | E127: 80000 | F127: USD | G127: =tblSalaries[[#This Row],[clean Salary (in local currency)]]*VLOOKUP(tblSalaries[[#This Row],[Currency]],tblXrate[],2,FALSE) -> 80000 | H127: =IF($H$1="USD",tblSalaries[[#This Row],[Salary in USD]],tblSalaries[[#This Row],[Salary in USD]]*VLOOKUP($H$1,USDtoUserChoice,2,FALSE)) -> 656158.4 | I127: Financial Analyst | J127: Analyst | K127: USA | L127: =VLOOKUP(tblSalaries[[#This Row],[Where do you work]],tblCountries[[Actual]:[Mapping]],2,FALSE) -> USA | M127: 4 to 6 hours a day | N127: =NA() ->  | O127: =IF(ISNA(VLOOKUP(tblSalaries[[#This Row],[Years of Experience]],vlookUpExp!$A$1:$B$56,2,FALSE)),"No Response",VLOOKUP(tblSalaries[[#This Row],[Years of Experience]],vlookUpExp!$A$1:$B$56,2,FALSE)) -> No Response
B128: ID0126 | C128: 2012-05-26T00:42:08 | D128: 128000 | E128: 128000 | F128: USD | G128: =tblSalaries[[#This Row],[clean Salary (in local currency)]]*VLOOKUP(tblSalaries[[#This Row],[Currency]],tblXrate[],2,FALSE) -> 128000 | H128: =IF($H$1="USD",tblSalaries[[#This Row],[Salary in USD]],tblSalaries[[#This Row],[Salary in USD]]*VLOOKUP($H$1,USDtoUserChoice,2,FALSE)) -> 1049853.44 | I128: Actuary | J128: Manager | K128: USA | L128: =VLOOKUP(tblSalaries[[#This Row],[Where do you work]],tblCountries[[Actual]:[Mapping]],2,FALSE) -> USA | M128: All the 8 hours baby, all the 8! | N128: =NA() ->  | O128: =IF(ISNA(VLOOKUP(tblSalaries[[#This Row],[Years of Experience]],vlookUpExp!$A$1:$B$56,2,FALSE)),"No Response",VLOOKUP(tblSalaries[[#This Row],[Years of Experience]],vlookUpExp!$A$1:$B$56,2,FALSE)) -> No Response
B129: ID0127 | C129: 2012-05-26T00:42:10 | D129: US $44,000 | E129: 44000 | F129: USD | G129: =tblSalaries[[#This Row],[clean Salary (in local currency)]]*VLOOKUP(tblSalaries[[#This Row],[Currency]],tblXrate[],2,FALSE) -> 44000 | H129: =IF($H$1="USD",tblSalaries[[#This Row],[Salary in USD]],tblSalaries[[#This Row],[Salary in USD]]*VLOOKUP($H$1,USDtoUserChoice,2,FALSE)) -> 360887.12 | I129: School Tech Coordinator | J129: Manager | K129: USA | L129: =VLOOKUP(tblSalaries[[#This Row],[Where do you work]],tblCountries[[Actual]:[Mapping]],2,FALSE) -> USA | M129: 1 or 2 hours a day | N129: =NA() ->  | O129: =IF(ISNA(VLOOKUP(tblSalaries[[#This Row],[Years of Experience]],vlookUpExp!$A$1:$B$56,2,FALSE)),"No Response",VLOOKUP(tblSalaries[[#This Row],[Years of Experience]],vlookUpExp!$A$1:$B$56,2,FALSE)) -> No Response
B130: ID0128 | C130: 2012-05-26T00:42:11 | D130: 65000 | E130: 65000 | F130: USD | G130: =tblSalaries[[#This Row],[clean Salary (in local currency)]]*VLOOKUP(tblSalaries[[#This Row],[Currency]],tblXrate[],2,FALSE) -> 65000 | H130: =IF($H$1="USD",tblSalaries[[#This Row],[Salary in USD]],tblSalaries[[#This Row],[Salary in USD]]*VLOOKUP($H$1,USDtoUserChoice,2,FALSE)) -> 533128.7 | I130: sr accountant | J130: Accountant | K130: USA | L130: =VLOOKUP(tblSalaries[[#This Row],[Where do you work]],tblCountries[[Actual]:[Mapping]],2,FALSE) -> USA | M130: All the 8 hours baby, all the 8! | N130: =NA() ->  | O130: =IF(ISNA(VLOOKUP(tblSalaries[[#This Row],[Years of Experience]],vlookUpExp!$A$1:$B$56,2,FALSE)),"No Response",VLOOKUP(tblSalaries[[#This Row],[Years of Experience]],vlookUpExp!$A$1:$B$56,2,FALSE)) -> No Response
B131: ID0129 | C131: 2012-05-26T00:42:32 | D131: 36000 usd | E131: 36000 | F131: USD | G131: =tblSalaries[[#This Row],[clean Salary (in local currency)]]*VLOOKUP(tblSalaries[[#This Row],[Currency]],tblXrate[],2,FALSE) -> 36000 | H131: =IF($H$1="USD",tblSalaries[[#This Row],[Salary in USD]],tblSalaries[[#This Row],[Salary in USD]]*VLOOKUP($H$1,USDtoUserChoice,2,FALSE)) -> 295271.28 | I131: senior accountant | J131: Accountant | K131: Turkey | L131: =VLOOKUP(tblSalaries[[#This Row],[Where do you work]],tblCountries[[Actual]:[Mapping]],2,FALSE) -> Turkey | M131: 4 to 6 hours a day | N131: =NA() ->  | O131: =IF(ISNA(VLOOKUP(tblSalaries[[#This Row],[Years of Experience]],vlookUpExp!$A$1:$B$56,2,FALSE)),"No Response",VLOOKUP(tblSalaries[[#This Row],[Years of Experience]],vlookUpExp!$A$1:$B$56,2,FALSE)) -> No Response
B132: ID0130 | C132: 2012-05-26T00:42:34 | D132: 1000 | E132: 12000 | F132: USD | G132: =tblSalaries[[#This Row],[clean Salary (in local currency)]]*VLOOKUP(tblSalaries[[#This Row],[Currency]],tblXrate[],2,FALSE) -> 12000 | H132: =IF($H$1="USD",tblSalaries[[#This Row],[Salary in USD]],tblSalaries[[#This Row],[Salary in USD]]*VLOOKUP($H$1,USDtoUserChoice,2,FALSE)) -> 98423.76 | I132: Freelance | J132: Consultant | K132: Pakistan | L132: =VLOOKUP(tblSalaries[[#This Row],[Where do you work]],tblCountries[[Actual]:[Mapping]],2,FALSE) -> Pakistan | M132: 1 or 2 hours a day | N132: =NA() ->  | O132: =IF(ISNA(VLOOKUP(tblSalaries[[#This Row],[Years of Experience]],vlookUpExp!$A$1:$B$56,2,FALSE)),"No Response",VLOOKUP(tblSalaries[[#This Row],[Years of Experience]],vlookUpExp!$A$1:$B$56,2,FALSE)) -> No Response
B133: ID0131 | C133: 2012-05-26T00:42:41 | D133: 28159.2 | E133: 28159 | F133: GBP | G133: =tblSalaries[[#This Row],[clean Salary (in local currency)]]*VLOOKUP(tblSalaries[[#This Row],[Currency]],tblXrate[],2,FALSE) -> 44383.60396 | H133: =IF($H$1="USD",tblSalaries[[#This Row],[Salary in USD]],tblSalaries[[#This Row],[Salary in USD]]*VLOOKUP($H$1,USDtoUserChoice,2,FALSE)) -> 364033.432 | I133: Data Analyst | J133: Analyst | K133: UK | L133: =VLOOKUP(tblSalaries[[#This Row],[Where do you work]],tblCountries[[Actual]:[Mapping]],2,FALSE) -> UK | M133: All the 8 hours baby, all the 8! | N133: =NA() ->  | O133: =IF(ISNA(VLOOKUP(tblSalaries[[#This Row],[Years of Experience]],vlookUpExp!$A$1:$B$56,2,FALSE)),"No Response",VLOOKUP(tblSalaries[[#This Row],[Years of Experience]],vlookUpExp!$A$1:$B$56,2,FALSE)) -> No Response
B134: ID0132 | C134: 2012-05-26T00:42:46 | D134: 45000 | E134: 45000 | F134: USD | G134: =tblSalaries[[#This Row],[clean Salary (in local currency)]]*VLOOKUP(tblSalaries[[#This Row],[Currency]],tblXrate[],2,FALSE) -> 45000 | H134: =IF($H$1="USD",tblSalaries[[#This Row],[Salary in USD]],tblSalaries[[#This Row],[Salary in USD]]*VLOOKUP($H$1,USDtoUserChoice,2,FALSE)) -> 369089.1 | I134: DBA | J134: Analyst | K134: USA | L134: =VLOOKUP(tblSalaries[[#This Row],[Where do you work]],tblCountries[[Actual]:[Mapping]],2,FALSE) -> USA | M134: 4 to 6 hours a day | N134: =NA() ->  | O134: =IF(ISNA(VLOOKUP(tblSalaries[[#This Row],[Years of Experience]],vlookUpExp!$A$1:$B$56,2,FALSE)),"No Response",VLOOKUP(tblSalaries[[#This Row],[Years of Experience]],vlookUpExp!$A$1:$B$56,2,FALSE)) -> No Response
B135: ID0133 | C135: 2012-05-26T00:42:58 | D135: 54000 | E135: 54000 | F135: USD | G135: =tblSalaries[[#This Row],[clean Salary (in local currency)]]*VLOOKUP(tblSalaries[[#This Row],[Currency]],tblXrate[],2,FALSE) -> 54000 | H135: =IF($H$1="USD",tblSalaries[[#This Row],[Salary in USD]],tblSalaries[[#This Row],[Salary in USD]]*VLOOKUP($H$1,USDtoUserChoice,2,FALSE)) -> 442906.92 | I135: Research Analyst | J135: Analyst | K135: USA | L135: =VLOOKUP(tblSalaries[[#This Row],[Where do you work]],tblCountries[[Actual]:[Mapping]],2,FALSE) -> USA | M135: 2 to 3 hours per day | N135: =NA() ->  | O135: =IF(ISNA(VLOOKUP(tblSalaries[[#This Row],[Years of Experience]],vlookUpExp!$A$1:$B$56,2,FALSE)),"No Response",VLOOKUP(tblSalaries[[#This Row],[Years of Experience]],vlookUpExp!$A$1:$B$56,2,FALSE)) -> No Response
B136: ID0134 | C136: 2012-05-26T00:43:03 | D136: 70000 | E136: 70000 | F136: GBP | G136: =tblSalaries[[#This Row],[clean Salary (in local currency)]]*VLOOKUP(tblSalaries[[#This Row],[Currency]],tblXrate[],2,FALSE) -> 110332.479 | H136: =IF($H$1="USD",tblSalaries[[#This Row],[Salary in USD]],tblSalaries[[#This Row],[Salary in USD]]*VLOOKUP($H$1,USDtoUserChoice,2,FALSE)) -> 904944.7865 | I136: Project Manager | J136: Manager | K136: UK | L136: =VLOOKUP(tblSalaries[[#This Row],[Where do you work]],tblCountries[[Actual]:[Mapping]],2,FALSE) -> UK | M136: 2 to 3 hours per day | N136: =NA() ->  | O136: =IF(ISNA(VLOOKUP(tblSalaries[[#This Row],[Years of Experience]],vlookUpExp!$A$1:$B$56,2,FALSE)),"No Response",VLOOKUP(tblSalaries[[#This Row],[Years of Experience]],vlookUpExp!$A$1:$B$56,2,FALSE)) -> No Response
B137: ID0135 | C137: 2012-05-26T00:43:07 | D137: 71000 | E137: 71000 | F137: USD | G137: =tblSalaries[[#This Row],[clean Salary (in local currency)]]*VLOOKUP(tblSalaries[[#This Row],[Currency]],tblXrate[],2,FALSE) -> 71000 | H137: =IF($H$1="USD",tblSalaries[[#This Row],[Salary in USD]],tblSalaries[[#This Row],[Salary in USD]]*VLOOKUP($H$1,USDtoUserChoice,2,FALSE)) -> 582340.58 | I137: Market Research Analyst | J137: Analyst | K137: USA | L137: =VLOOKUP(tblSalaries[[#This Row],[Where do you work]],tblCountries[[Actual]:[Mapping]],2,FALSE) -> USA | M137: 4 to 6 hours a day | N137: =NA() ->  | O137: =IF(ISNA(VLOOKUP(tblSalaries[[#This Row],[Years of Experience]],vlookUpExp!$A$1:$B$56,2,FALSE)),"No Response",VLOOKUP(tblSalaries[[#This Row],[Years of Experience]],vlookUpExp!$A$1:$B$56,2,FALSE)) -> No Response
B138: ID0136 | C138: 2012-05-26T00:43:08 | D138: 800000 | E138: 800000 | F138: INR | G138: =tblSalaries[[#This Row],[clean Salary (in local currency)]]*VLOOKUP(tblSalaries[[#This Row],[Currency]],tblXrate[],2,FALSE) -> 14246.33335 | H138: =IF($H$1="USD",tblSalaries[[#This Row],[Salary in USD]],tblSalaries[[#This Row],[Salary in USD]]*VLOOKUP($H$1,USDtoUserChoice,2,FALSE)) -> 116848.1412 | I138: Manager : Accounts | J138: Manager | K138: India | L138: =VLOOKUP(tblSalaries[[#This Row],[Where do you work]],tblCountries[[Actual]:[Mapping]],2,FALSE) -> India | M138: 2 to 3 hours per day | N138: =NA() ->  | O138: =IF(ISNA(VLOOKUP(tblSalaries[[#This Row],[Years of Experience]],vlookUpExp!$A$1:$B$56,2,FALSE)),"No Response",VLOOKUP(tblSalaries[[#This Row],[Years of Experience]],vlookUpExp!$A$1:$B$56,2,FALSE)) -> No Response
B139: ID0137 | C139: 2012-05-26T00:43:17 | D139: 70000 | E139: 70000 | F139: CAD | G139: =tblSalaries[[#This Row],[clean Salary (in local currency)]]*VLOOKUP(tblSalaries[[#This Row],[Currency]],tblXrate[],2,FALSE) -> 68835.30661 | H139: =IF($H$1="USD",tblSalaries[[#This Row],[Salary in USD]],tblSalaries[[#This Row],[Salary in USD]]*VLOOKUP($H$1,USDtoUserChoice,2,FALSE)) -> 564585.8081 | I139: project manager | J139: Manager | K139: canada | L139: =VLOOKUP(tblSalaries[[#This Row],[Where do you work]],tblCountries[[Actual]:[Mapping]],2,FALSE) -> Canada | M139: 4 to 6 hours a day | N139: =NA() ->  | O139: =IF(ISNA(VLOOKUP(tblSalaries[[#This Row],[Years of Experience]],vlookUpExp!$A$1:$B$56,2,FALSE)),"No Response",VLOOKUP(tblSalaries[[#This Row],[Years of Experience]],vlookUpExp!$A$1:$B$56,2,FALSE)) -> No Response
B140: ID0138 | C140: 2012-05-26T00:43:25 | D140: 50000 | E140: 50000 | F140: CAD | G140: =tblSalaries[[#This Row],[clean Salary (in local currency)]]*VLOOKUP(tblSalaries[[#This Row],[Currency]],tblXrate[],2,FALSE) -> 49168.07615 | H140: =IF($H$1="USD",tblSalaries[[#This Row],[Salary in USD]],tblSalaries[[#This Row],[Salary in USD]]*VLOOKUP($H$1,USDtoUserChoice,2,FALSE)) -> 403275.5772 | I140: Inventory manger | J140: Manager | K140: Canada | L140: =VLOOKUP(tblSalaries[[#This Row],[Where do you work]],tblCountries[[Actual]:[Mapping]],2,FALSE) -> Canada | M140: 4 to 6 hours a day | N140: =NA() ->  | O140: =IF(ISNA(VLOOKUP(tblSalaries[[#This Row],[Years of Experience]],vlookUpExp!$A$1:$B$56,2,FALSE)),"No Response",VLOOKUP(tblSalaries[[#This Row],[Years of Experience]],vlookUpExp!$A$1:$B$56,2,FALSE)) -> No Response
B141: ID0139 | C141: 2012-05-26T00:43:27 | D141: 40000 | E141: 40000 | F141: USD | G141: =tblSalaries[[#This Row],[clean Salary (in local currency)]]*VLOOKUP(tblSalaries[[#This Row],[Currency]],tblXrate[],2,FALSE) -> 40000 | H141: =IF($H$1="USD",tblSalaries[[#This Row],[Salary in USD]],tblSalaries[[#This Row],[Salary in USD]]*VLOOKUP($H$1,USDtoUserChoice,2,FALSE)) -> 328079.2 | I141: Business Analyst | J141: Analyst | K141: USA | L141: =VLOOKUP(tblSalaries[[#This Row],[Where do you work]],tblCountries[[Actual]:[Mapping]],2,FALSE) -> USA | M141: 4 to 6 hours a day | N141: =NA() ->  | O141: =IF(ISNA(VLOOKUP(tblSalaries[[#This Row],[Years of Experience]],vlookUpExp!$A$1:$B$56,2,FALSE)),"No Response",VLOOKUP(tblSalaries[[#This Row],[Years of Experience]],vlookUpExp!$A$1:$B$56,2,FALSE)) -> No Response
B142: ID0140 | C142: 2012-05-26T00:43:34 | D142: $62,000 CND | E142: 62000 | F142: CAD | G142: =tblSalaries[[#This Row],[clean Salary (in local currency)]]*VLOOKUP(tblSalaries[[#This Row],[Currency]],tblXrate[],2,FALSE) -> 60968.41443 | H142: =IF($H$1="USD",tblSalaries[[#This Row],[Salary in USD]],tblSalaries[[#This Row],[Salary in USD]]*VLOOKUP($H$1,USDtoUserChoice,2,FALSE)) -> 500061.7158 | I142: Process Technician | J142: Analyst | K142: Canada | L142: =VLOOKUP(tblSalaries[[#This Row],[Where do you work]],tblCountries[[Actual]:[Mapping]],2,FALSE) -> Canada | M142: 2 to 3 hours per day | N142: =NA() ->  | O142: =IF(ISNA(VLOOKUP(tblSalaries[[#This Row],[Years of Experience]],vlookUpExp!$A$1:$B$56,2,FALSE)),"No Response",VLOOKUP(tblSalaries[[#This Row],[Years of Experience]],vlookUpExp!$A$1:$B$56,2,FALSE)) -> No Response
B143: ID0141 | C143: 2012-05-26T00:43:36 | D143: 28000rs | E143: 336000 | F143: INR | G143: =tblSalaries[[#This Row],[clean Salary (in local currency)]]*VLOOKUP(tblSalaries[[#This Row],[Currency]],tblXrate[],2,FALSE) -> 5983.460007 | H143: =IF($H$1="USD",tblSalaries[[#This Row],[Salary in USD]],tblSalaries[[#This Row],[Salary in USD]]*VLOOKUP($H$1,USDtoUserChoice,2,FALSE)) -> 49076.21931 | I143: MIS Team Leader | J143: Reporting | K143: India | L143: =VLOOKUP(tblSalaries[[#This Row],[Where do you work]],tblCountries[[Actual]:[Mapping]],2,FALSE) -> India | M143: 4 to 6 hours a day | N143: =NA() ->  | O143: =IF(ISNA(VLOOKUP(tblSalaries[[#This Row],[Years of Experience]],vlookUpExp!$A$1:$B$56,2,FALSE)),"No Response",VLOOKUP(tblSalaries[[#This Row],[Years of Experience]],vlookUpExp!$A$1:$B$56,2,FALSE)) -> No Response
B144: ID0142 | C144: 2012-05-26T00:43:36 | D144: 53000 | E144: 53000 | F144: USD | G144: =tblSalaries[[#This Row],[clean Salary (in local currency)]]*VLOOKUP(tblSalaries[[#This Row],[Currency]],tblXrate[],2,FALSE) -> 53000 | H144: =IF($H$1="USD",tblSalaries[[#This Row],[Salary in USD]],tblSalaries[[#This Row],[Salary in USD]]*VLOOKUP($H$1,USDtoUserChoice,2,FALSE)) -> 434704.94 | I144: Data Analyst | J144: Analyst | K144: USA | L144: =VLOOKUP(tblSalaries[[#This Row],[Where do you work]],tblCountries[[Actual]:[Mapping]],2,FALSE) -> USA | M144: 4 to 6 hours a day | N144: =NA() ->  | O144: =IF(ISNA(VLOOKUP(tblSalaries[[#This Row],[Years of Experience]],vlookUpExp!$A$1:$B$56,2,FALSE)),"No Response",VLOOKUP(tblSalaries[[#This Row],[Years of Experience]],vlookUpExp!$A$1:$B$56,2,FALSE)) -> No Response
B145: ID0143 | C145: 2012-05-26T00:43:49 | D145: 104000 | E145: 104000 | F145: USD | G145: =tblSalaries[[#This Row],[clean Salary (in local currency)]]*VLOOKUP(tblSalaries[[#This Row],[Currency]],tblXrate[],2,FALSE) -> 104000 | H145: =IF($H$1="USD",tblSalaries[[#This Row],[Salary in USD]],tblSalaries[[#This Row],[Salary in USD]]*VLOOKUP($H$1,USDtoUserChoice,2,FALSE)) -> 853005.92 | I145: Finance Director | J145: CXO or Top Mgmt. | K145: USA | L145: =VLOOKUP(tblSalaries[[#This Row],[Where do you work]],tblCountries[[Actual]:[Mapping]],2,FALSE) -> USA | M145: 2 to 3 hours per day | N145: =NA() ->  | O145: =IF(ISNA(VLOOKUP(tblSalaries[[#This Row],[Years of Experience]],vlookUpExp!$A$1:$B$56,2,FALSE)),"No Response",VLOOKUP(tblSalaries[[#This Row],[Years of Experience]],vlookUpExp!$A$1:$B$56,2,FALSE)) -> No Response
B146: ID0144 | C146: 2012-05-26T00:44:02 | D146: 57000 | E146: 57000 | F146: USD | G146: =tblSalaries[[#This Row],[clean Salary (in local currency)]]*VLOOKUP(tblSalaries[[#This Row],[Currency]],tblXrate[],2,FALSE) -> 57000 | H146: =IF($H$1="USD",tblSalaries[[#This Row],[Salary in USD]],tblSalaries[[#This Row],[Salary in USD]]*VLOOKUP($H$1,USDtoUserChoice,2,FALSE)) -> 467512.86 | I146: Industrial Engineer | J146: Engineer | K146: USA | L146: =VLOOKUP(tblSalaries[[#This Row],[Where do you work]],tblCountries[[Actual]:[Mapping]],2,FALSE) -> USA | M146: 4 to 6 hours a day | N146: =NA() ->  | O146: =IF(ISNA(VLOOKUP(tblSalaries[[#This Row],[Years of Experience]],vlookUpExp!$A$1:$B$56,2,FALSE)),"No Response",VLOOKUP(tblSalaries[[#This Row],[Years of Experience]],vlookUpExp!$A$1:$B$56,2,FALSE)) -> No Response
B147: ID0145 | C147: 2012-05-26T00:44:09 | D147: 45000 | E147: 45000 | F147: USD | G147: =tblSalaries[[#This Row],[clean Salary (in local currency)]]*VLOOKUP(tblSalaries[[#This Row],[Currency]],tblXrate[],2,FALSE) -> 45000 | H147: =IF($H$1="USD",tblSalaries[[#This Row],[Salary in USD]],tblSalaries[[#This Row],[Salary in USD]]*VLOOKUP($H$1,USDtoUserChoice,2,FALSE)) -> 369089.1 | I147: data analyst | J147: Analyst | K147: USA | L147: =VLOOKUP(tblSalaries[[#This Row],[Where do you work]],tblCountries[[Actual]:[Mapping]],2,FALSE) -> USA | M147: 2 to 3 hours per day | N147: =NA() ->  | O147: =IF(ISNA(VLOOKUP(tblSalaries[[#This Row],[Years of Experience]],vlookUpExp!$A$1:$B$56,2,FALSE)),"No Response",VLOOKUP(tblSalaries[[#This Row],[Years of Experience]],vlookUpExp!$A$1:$B$56,2,FALSE)) -> No Response
B148: ID0146 | C148: 2012-05-26T00:44:15 | D148: 92000 | E148: 92000 | F148: USD | G148: =tblSalaries[[#This Row],[clean Salary (in local currency)]]*VLOOKUP(tblSalaries[[#This Row],[Currency]],tblXrate[],2,FALSE) -> 92000 | H148: =IF($H$1="USD",tblSalaries[[#This Row],[Salary in USD]],tblSalaries[[#This Row],[Salary in USD]]*VLOOKUP($H$1,USDtoUserChoice,2,FALSE)) -> 754582.16 | I148: Senior Financial & Systems Analyst | J148: Analyst | K148: USA | L148: =VLOOKUP(tblSalaries[[#This Row],[Where do you work]],tblCountries[[Actual]:[Mapping]],2,FALSE) -> USA | M148: 4 to 6 hours a day | N148: =NA() ->  | O148: =IF(ISNA(VLOOKUP(tblSalaries[[#This Row],[Years of Experience]],vlookUpExp!$A$1:$B$56,2,FALSE)),"No Response",VLOOKUP(tblSalaries[[#This Row],[Years of Experience]],vlookUpExp!$A$1:$B$56,2,FALSE)) -> No Response
B149: ID0147 | C149: 2012-05-26T00:44:18 | D149: 88000 | E149: 88000 | F149: USD | G149: =tblSalaries[[#This Row],[clean Salary (in local currency)]]*VLOOKUP(tblSalaries[[#This Row],[Currency]],tblXrate[],2,FALSE) -> 88000 | H149: =IF($H$1="USD",tblSalaries[[#This Row],[Salary in USD]],tblSalaries[[#This Row],[Salary in USD]]*VLOOKUP($H$1,USDtoUserChoice,2,FALSE)) -> 721774.24 | I149: project manager - metrics | J149: Manager | K149: USA | L149: =VLOOKUP(tblSalaries[[#This Row],[Where do you work]],tblCountries[[Actual]:[Mapping]],2,FALSE) -> USA | M149: 4 to 6 hours a day | N149: =NA() ->  | O149: =IF(ISNA(VLOOKUP(tblSalaries[[#This Row],[Years of Experience]],vlookUpExp!$A$1:$B$56,2,FALSE)),"No Response",VLOOKUP(tblSalaries[[#This Row],[Years of Experience]],vlookUpExp!$A$1:$B$56,2,FALSE)) -> No Response
B150: ID0148 | C150: 2012-05-26T00:44:20 | D150: 80000 | E150: 80000 | F150: USD | G150: =tblSalaries[[#This Row],[clean Salary (in local currency)]]*VLOOKUP(tblSalaries[[#This Row],[Currency]],tblXrate[],2,FALSE) -> 80000 | H150: =IF($H$1="USD",tblSalaries[[#This Row],[Salary in USD]],tblSalaries[[#This Row],[Salary in USD]]*VLOOKUP($H$1,USDtoUserChoice,2,FALSE)) -> 656158.4 | I150: Informatics Research Analyst | J150: Analyst | K150: USA | L150: =VLOOKUP(tblSalaries[[#This Row],[Where do you work]],tblCountries[[Actual]:[Mapping]],2,FALSE) -> USA | M150: 2 to 3 hours per day | N150: =NA() ->  | O150: =IF(ISNA(VLOOKUP(tblSalaries[[#This Row],[Years of Experience]],vlookUpExp!$A$1:$B$56,2,FALSE)),"No Response",VLOOKUP(tblSalaries[[#This Row],[Years of Experience]],vlookUpExp!$A$1:$B$56,2,FALSE)) -> No Response
B151: ID0149 | C151: 2012-05-26T00:44:22 | D151: 69000 | E151: 69000 | F151: USD | G151: =tblSalaries[[#This Row],[clean Salary (in local currency)]]*VLOOKUP(tblSalaries[[#This Row],[Currency]],tblXrate[],2,FALSE) -> 69000 | H151: =IF($H$1="USD",tblSalaries[[#This Row],[Salary in USD]],tblSalaries[[#This Row],[Salary in USD]]*VLOOKUP($H$1,USDtoUserChoice,2,FALSE)) -> 565936.62 | I151: Business Technical Consultant | J151: Consultant | K151: USA | L151: =VLOOKUP(tblSalaries[[#This Row],[Where do you work]],tblCountries[[Actual]:[Mapping]],2,FALSE) -> USA | M151: 4 to 6 hours a day | N151: =NA() ->  | O151: =IF(ISNA(VLOOKUP(tblSalaries[[#This Row],[Years of Experience]],vlookUpExp!$A$1:$B$56,2,FALSE)),"No Response",VLOOKUP(tblSalaries[[#This Row],[Years of Experience]],vlookUpExp!$A$1:$B$56,2,FALSE)) -> No Response
B152: ID0150 | C152: 2012-05-26T00:44:23 | D152: 50000 | E152: 50000 | F152: USD | G152: =tblSalaries[[#This Row],[clean Salary (in local currency)]]*VLOOKUP(tblSalaries[[#This Row],[Currency]],tblXrate[],2,FALSE) -> 50000 | H152: =IF($H$1="USD",tblSalaries[[#This Row],[Salary in USD]],tblSalaries[[#This Row],[Salary in USD]]*VLOOKUP($H$1,USDtoUserChoice,2,FALSE)) -> 410099 | I152: Business Operations Reporting Analyst | J152: Analyst | K152: Mexico | L152: =VLOOKUP(tblSalaries[[#This Row],[Where do you work]],tblCountries[[Actual]:[Mapping]],2,FALSE) -> Mexico | M152: All the 8 hours baby, all the 8! | N152: =NA() ->  | O152: =IF(ISNA(VLOOKUP(tblSalaries[[#This Row],[Years of Experience]],vlookUpExp!$A$1:$B$56,2,FALSE)),"No Response",VLOOKUP(tblSalaries[[#This Row],[Years of Experience]],vlookUpExp!$A$1:$B$56,2,FALSE)) -> No Response
B153: ID0151 | C153: 2012-05-26T00:44:40 | D153: 35000 | E153: 35000 | F153: USD | G153: =tblSalaries[[#This Row],[clean Salary (in local currency)]]*VLOOKUP(tblSalaries[[#This Row],[Currency]],tblXrate[],2,FALSE) -> 35000 | H153: =IF($H$1="USD",tblSalaries[[#This Row],[Salary in USD]],tblSalaries[[#This Row],[Salary in USD]]*VLOOKUP($H$1,USDtoUserChoice,2,FALSE)) -> 287069.3 | I153: Program Services Coordinator | J153: Manager | K153: USA | L153: =VLOOKUP(tblSalaries[[#This Row],[Where do you work]],tblCountries[[Actual]:[Mapping]],2,FALSE) -> USA | M153: 2 to 3 hours per day | N153: =NA() ->  | O153: =IF(ISNA(VLOOKUP(tblSalaries[[#This Row],[Years of Experience]],vlookUpExp!$A$1:$B$56,2,FALSE)),"No Response",VLOOKUP(tblSalaries[[#This Row],[Years of Experience]],vlookUpExp!$A$1:$B$56,2,FALSE)) -> No Response
B154: ID0152 | C154: 2012-05-26T00:44:59 | D154: 96000 | E154: 96000 | F154: USD | G154: =tblSalaries[[#This Row],[clean Salary (in local currency)]]*VLOOKUP(tblSalaries[[#This Row],[Currency]],tblXrate[],2,FALSE) -> 96000 | H154: =IF($H$1="USD",tblSalaries[[#This Row],[Salary in USD]],tblSalaries[[#This Row],[Salary in USD]]*VLOOKUP($H$1,USDtoUserChoice,2,FALSE)) -> 787390.08 | I154: Specialist - Finance Planning and Analysis | J154: Analyst | K154: USA | L154: =VLOOKUP(tblSalaries[[#This Row],[Where do you work]],tblCountries[[Actual]:[Mapping]],2,FALSE) -> USA | M154: 4 to 6 hours a day | N154: =NA() ->  | O154: =IF(ISNA(VLOOKUP(tblSalaries[[#This Row],[Years of Experience]],vlookUpExp!$A$1:$B$56,2,FALSE)),"No Response",VLOOKUP(tblSalaries[[#This Row],[Years of Experience]],vlookUpExp!$A$1:$B$56,2,FALSE)) -> No Response
B155: ID0153 | C155: 2012-05-26T00:45:00 | D155: 65000 | E155: 65000 | F155: USD | G155: =tblSalaries[[#This Row],[clean Salary (in local currency)]]*VLOOKUP(tblSalaries[[#This Row],[Currency]],tblXrate[],2,FALSE) -> 65000 | H155: =IF($H$1="USD",tblSalaries[[#This Row],[Salary in USD]],tblSalaries[[#This Row],[Salary in USD]]*VLOOKUP($H$1,USDtoUserChoice,2,FALSE)) -> 533128.7 | I155: Sr Accountant | J155: Accountant | K155: USA | L155: =VLOOKUP(tblSalaries[[#This Row],[Where do you work]],tblCountries[[Actual]:[Mapping]],2,FALSE) -> USA | M155: All the 8 hours baby, all the 8! | N155: =NA() ->  | O155: =IF(ISNA(VLOOKUP(tblSalaries[[#This Row],[Years of Experience]],vlookUpExp!$A$1:$B$56,2,FALSE)),"No Response",VLOOKUP(tblSalaries[[#This Row],[Years of Experience]],vlookUpExp!$A$1:$B$56,2,FALSE)) -> No Response
B156: ID0154 | C156: 2012-05-26T00:45:06 | D156: 37440 | E156: 37440 | F156: USD | G156: =tblSalaries[[#This Row],[clean Salary (in local currency)]]*VLOOKUP(tblSalaries[[#This Row],[Currency]],tblXrate[],2,FALSE) -> 37440 | H156: =IF($H$1="USD",tblSalaries[[#This Row],[Salary in USD]],tblSalaries[[#This Row],[Salary in USD]]*VLOOKUP($H$1,USDtoUserChoice,2,FALSE)) -> 307082.1312 | I156: sales analyst | J156: Analyst | K156: USA | L156: =VLOOKUP(tblSalaries[[#This Row],[Where do you work]],tblCountries[[Actual]:[Mapping]],2,FALSE) -> USA | M156: All the 8 hours baby, all the 8! | N156: =NA() ->  | O156: =IF(ISNA(VLOOKUP(tblSalaries[[#This Row],[Years of Experience]],vlookUpExp!$A$1:$B$56,2,FALSE)),"No Response",VLOOKUP(tblSalaries[[#This Row],[Years of Experience]],vlookUpExp!$A$1:$B$56,2,FALSE)) -> No Response
B157: ID0155 | C157: 2012-05-26T00:45:11 | D157: 15500 | E157: 15500 | F157: USD | G157: =tblSalaries[[#This Row],[clean Salary (in local currency)]]*VLOOKUP(tblSalaries[[#This Row],[Currency]],tblXrate[],2,FALSE) -> 15500 | H157: =IF($H$1="USD",tblSalaries[[#This Row],[Salary in USD]],tblSalaries[[#This Row],[Salary in USD]]*VLOOKUP($H$1,USDtoUserChoice,2,FALSE)) -> 127130.69 | I157: Proces auditor | J157: Accountant | K157: Mexico | L157: =VLOOKUP(tblSalaries[[#This Row],[Where do you work]],tblCountries[[Actual]:[Mapping]],2,FALSE) -> Mexico | M157: All the 8 hours baby, all the 8! | N157: =NA() ->  | O157: =IF(ISNA(VLOOKUP(tblSalaries[[#This Row],[Years of Experience]],vlookUpExp!$A$1:$B$56,2,FALSE)),"No Response",VLOOKUP(tblSalaries[[#This Row],[Years of Experience]],vlookUpExp!$A$1:$B$56,2,FALSE)) -> No Response
B158: ID0156 | C158: 2012-05-26T00:45:17 | D158: 90000 USD | E158: 90000 | F158: USD | G158: =tblSalaries[[#This Row],[clean Salary (in local currency)]]*VLOOKUP(tblSalaries[[#This Row],[Currency]],tblXrate[],2,FALSE) -> 90000 | H158: =IF($H$1="USD",tblSalaries[[#This Row],[Salary in USD]],tblSalaries[[#This Row],[Salary in USD]]*VLOOKUP($H$1,USDtoUserChoice,2,FALSE)) -> 738178.2 | I158: Senior Data Quality Analyst | J158: Analyst | K158: USA | L158: =VLOOKUP(tblSalaries[[#This Row],[Where do you work]],tblCountries[[Actual]:[Mapping]],2,FALSE) -> USA | M158: 2 to 3 hours per day | N158: =NA() ->  | O158: =IF(ISNA(VLOOKUP(tblSalaries[[#This Row],[Years of Experience]],vlookUpExp!$A$1:$B$56,2,FALSE)),"No Response",VLOOKUP(tblSalaries[[#This Row],[Years of Experience]],vlookUpExp!$A$1:$B$56,2,FALSE)) -> No Response
B159: ID0157 | C159: 2012-05-26T00:45:46 | D159: 66500 | E159: 66500 | F159: USD | G159: =tblSalaries[[#This Row],[clean Salary (in local currency)]]*VLOOKUP(tblSalaries[[#This Row],[Currency]],tblXrate[],2,FALSE) -> 66500 | H159: =IF($H$1="USD",tblSalaries[[#This Row],[Salary in USD]],tblSalaries[[#This Row],[Salary in USD]]*VLOOKUP($H$1,USDtoUserChoice,2,FALSE)) -> 545431.67 | I159: Sr Business Analyst | J159: Analyst | K159: USA | L159: =VLOOKUP(tblSalaries[[#This Row],[Where do you work]],tblCountries[[Actual]:[Mapping]],2,FALSE) -> USA | M159: All the 8 hours baby, all the 8! | N159: =NA() ->  | O159: =IF(ISNA(VLOOKUP(tblSalaries[[#This Row],[Years of Experience]],vlookUpExp!$A$1:$B$56,2,FALSE)),"No Response",VLOOKUP(tblSalaries[[#This Row],[Years of Experience]],vlookUpExp!$A$1:$B$56,2,FALSE)) -> No Response
B160: ID0158 | C160: 2012-05-26T00:45:49 | D160: 100000 | E160: 100000 | F160: USD | G160: =tblSalaries[[#This Row],[clean Salary (in local currency)]]*VLOOKUP(tblSalaries[[#This Row],[Currency]],tblXrate[],2,FALSE) -> 100000 | H160: =IF($H$1="USD",tblSalaries[[#This Row],[Salary in USD]],tblSalaries[[#This Row],[Salary in USD]]*VLOOKUP($H$1,USDtoUserChoice,2,FALSE)) -> 820198 | I160: COST ACCOUNTANT | J160: Accountant | K160: USA | L160: =VLOOKUP(tblSalaries[[#This Row],[Where do you work]],tblCountries[[Actual]:[Mapping]],2,FALSE) -> USA | M160: All the 8 hours baby, all the 8! | N160: =NA() ->  | O160: =IF(ISNA(VLOOKUP(tblSalaries[[#This Row],[Years of Experience]],vlookUpExp!$A$1:$B$56,2,FALSE)),"No Response",VLOOKUP(tblSalaries[[#This Row],[Years of Experience]],vlookUpExp!$A$1:$B$56,2,FALSE)) -> No Response
B161: ID0159 | C161: 2012-05-26T00:45:51 | D161: Â£32250 | E161: 32250 | F161: GBP | G161: =tblSalaries[[#This Row],[clean Salary (in local currency)]]*VLOOKUP(tblSalaries[[#This Row],[Currency]],tblXrate[],2,FALSE) -> 50831.74927 | H161: =IF($H$1="USD",tblSalaries[[#This Row],[Salary in USD]],tblSalaries[[#This Row],[Salary in USD]]*VLOOKUP($H$1,USDtoUserChoice,2,FALSE)) -> 416920.9909 | I161: project Support | J161: Manager | K161: UK | L161: =VLOOKUP(tblSalaries[[#This Row],[Where do you work]],tblCountries[[Actual]:[Mapping]],2,FALSE) -> UK | M161: 4 to 6 hours a day | N161: =NA() ->  | O161: =IF(ISNA(VLOOKUP(tblSalaries[[#This Row],[Years of Experience]],vlookUpExp!$A$1:$B$56,2,FALSE)),"No Response",VLOOKUP(tblSalaries[[#This Row],[Years of Experience]],vlookUpExp!$A$1:$B$56,2,FALSE)) -> No Response
B162: ID0160 | C162: 2012-05-26T00:45:53 | D162: 420000 | E162: 420000 | F162: INR | G162: =tblSalaries[[#This Row],[clean Salary (in local currency)]]*VLOOKUP(tblSalaries[[#This Row],[Currency]],tblXrate[],2,FALSE) -> 7479.325009 | H162: =IF($H$1="USD",tblSalaries[[#This Row],[Salary in USD]],tblSalaries[[#This Row],[Salary in USD]]*VLOOKUP($H$1,USDtoUserChoice,2,FALSE)) -> 61345.27414 | I162: managerial | J162: Manager | K162: India | L162: =VLOOKUP(tblSalaries[[#This Row],[Where do you work]],tblCountries[[Actual]:[Mapping]],2,FALSE) -> India | M162: 1 or 2 hours a day | N162: =NA() ->  | O162: =IF(ISNA(VLOOKUP(tblSalaries[[#This Row],[Years of Experience]],vlookUpExp!$A$1:$B$56,2,FALSE)),"No Response",VLOOKUP(tblSalaries[[#This Row],[Years of Experience]],vlookUpExp!$A$1:$B$56,2,FALSE)) -> No Response
B163: ID0161 | C163: 2012-05-26T00:46:00 | D163: 75000 | E163: 75000 | F163: USD | G163: =tblSalaries[[#This Row],[clean Salary (in local currency)]]*VLOOKUP(tblSalaries[[#This Row],[Currency]],tblXrate[],2,FALSE) -> 75000 | H163: =IF($H$1="USD",tblSalaries[[#This Row],[Salary in USD]],tblSalaries[[#This Row],[Salary in USD]]*VLOOKUP($H$1,USDtoUserChoice,2,FALSE)) -> 615148.5 | I163: Program Analyst | J163: Analyst | K163: USA | L163: =VLOOKUP(tblSalaries[[#This Row],[Where do you work]],tblCountries[[Actual]:[Mapping]],2,FALSE) -> USA | M163: 1 or 2 hours a day | N163: =NA() ->  | O163: =IF(ISNA(VLOOKUP(tblSalaries[[#This Row],[Years of Experience]],vlookUpExp!$A$1:$B$56,2,FALSE)),"No Response",VLOOKUP(tblSalaries[[#This Row],[Years of Experience]],vlookUpExp!$A$1:$B$56,2,FALSE)) -> No Response
B164: ID0162 | C164: 2012-05-26T00:46:25 | D164: 58 | E164: 58000 | F164: USD | G164: =tblSalaries[[#This Row],[clean Salary (in local currency)]]*VLOOKUP(tblSalaries[[#This Row],[Currency]],tblXrate[],2,FALSE) -> 58000 | H164: =IF($H$1="USD",tblSalaries[[#This Row],[Salary in USD]],tblSalaries[[#This Row],[Salary in USD]]*VLOOKUP($H$1,USDtoUserChoice,2,FALSE)) -> 475714.84 | I164: Team Lead - Computer Discounts | J164: Manager | K164: Canada | L164: =VLOOKUP(tblSalaries[[#This Row],[Where do you work]],tblCountries[[Actual]:[Mapping]],2,FALSE) -> Canada | M164: 1 or 2 hours a day | N164: =NA() ->  | O164: =IF(ISNA(VLOOKUP(tblSalaries[[#This Row],[Years of Experience]],vlookUpExp!$A$1:$B$56,2,FALSE)),"No Response",VLOOKUP(tblSalaries[[#This Row],[Years of Experience]],vlookUpExp!$A$1:$B$56,2,FALSE)) -> No Response
B165: ID0163 | C165: 2012-05-26T00:46:29 | D165: 55000 | E165: 55000 | F165: USD | G165: =tblSalaries[[#This Row],[clean Salary (in local currency)]]*VLOOKUP(tblSalaries[[#This Row],[Currency]],tblXrate[],2,FALSE) -> 55000 | H165: =IF($H$1="USD",tblSalaries[[#This Row],[Salary in USD]],tblSalaries[[#This Row],[Salary in USD]]*VLOOKUP($H$1,USDtoUserChoice,2,FALSE)) -> 451108.9 | I165: Change Architect | J165: Manager | K165: USA | L165: =VLOOKUP(tblSalaries[[#This Row],[Where do you work]],tblCountries[[Actual]:[Mapping]],2,FALSE) -> USA | M165: 2 to 3 hours per day | N165: =NA() ->  | O165: =IF(ISNA(VLOOKUP(tblSalaries[[#This Row],[Years of Experience]],vlookUpExp!$A$1:$B$56,2,FALSE)),"No Response",VLOOKUP(tblSalaries[[#This Row],[Years of Experience]],vlookUpExp!$A$1:$B$56,2,FALSE)) -> No Response
B166: ID0164 | C166: 2012-05-26T00:47:42 | D166: 60000 | E166: 60000 | F166: USD | G166: =tblSalaries[[#This Row],[clean Salary (in local currency)]]*VLOOKUP(tblSalaries[[#This Row],[Currency]],tblXrate[],2,FALSE) -> 60000 | H166: =IF($H$1="USD",tblSalaries[[#This Row],[Salary in USD]],tblSalaries[[#This Row],[Salary in USD]]*VLOOKUP($H$1,USDtoUserChoice,2,FALSE)) -> 492118.8 | I166: Telecom Technician | J166: Analyst | K166: USA | L166: =VLOOKUP(tblSalaries[[#This Row],[Where do you work]],tblCountries[[Actual]:[Mapping]],2,FALSE) -> USA | M166: 4 to 6 hours a day | N166: =NA() ->  | O166: =IF(ISNA(VLOOKUP(tblSalaries[[#This Row],[Years of Experience]],vlookUpExp!$A$1:$B$56,2,FALSE)),"No Response",VLOOKUP(tblSalaries[[#This Row],[Years of Experience]],vlookUpExp!$A$1:$B$56,2,FALSE)) -> No Response
B167: ID0165 | C167: 2012-05-26T00:47:45 | D167: Rs. 1300000 | E167: 1300000 | F167: INR | G167: =tblSalaries[[#This Row],[clean Salary (in local currency)]]*VLOOKUP(tblSalaries[[#This Row],[Currency]],tblXrate[],2,FALSE) -> 23150.29169 | H167: =IF($H$1="USD",tblSalaries[[#This Row],[Salary in USD]],tblSalaries[[#This Row],[Salary in USD]]*VLOOKUP($H$1,USDtoUserChoice,2,FALSE)) -> 189878.2295 | I167: Manager | J167: Manager | K167: India | L167: =VLOOKUP(tblSalaries[[#This Row],[Where do you work]],tblCountries[[Actual]:[Mapping]],2,FALSE) -> India | M167: 4 to 6 hours a day | N167: =NA() ->  | O167: =IF(ISNA(VLOOKUP(tblSalaries[[#This Row],[Years of Experience]],vlookUpExp!$A$1:$B$56,2,FALSE)),"No Response",VLOOKUP(tblSalaries[[#This Row],[Years of Experience]],vlookUpExp!$A$1:$B$56,2,FALSE)) -> No Response
B168: ID0166 | C168: 2012-05-26T00:47:50 | D168: 107000 | E168: 107000 | F168: CAD | G168: =tblSalaries[[#This Row],[clean Salary (in local currency)]]*VLOOKUP(tblSalaries[[#This Row],[Currency]],tblXrate[],2,FALSE) -> 105219.683 | H168: =IF($H$1="USD",tblSalaries[[#This Row],[Salary in USD]],tblSalaries[[#This Row],[Salary in USD]]*VLOOKUP($H$1,USDtoUserChoice,2,FALSE)) -> 863009.7353 | I168: Manager, Asset Optimization | J168: Manager | K168: Canada | L168: =VLOOKUP(tblSalaries[[#This Row],[Where do you work]],tblCountries[[Actual]:[Mapping]],2,FALSE) -> Canada | M168: 2 to 3 hours per day | N168: =NA() ->  | O168: =IF(ISNA(VLOOKUP(tblSalaries[[#This Row],[Years of Experience]],vlookUpExp!$A$1:$B$56,2,FALSE)),"No Response",VLOOKUP(tblSalaries[[#This Row],[Years of Experience]],vlookUpExp!$A$1:$B$56,2,FALSE)) -> No Response
B169: ID0167 | C169: 2012-05-26T00:47:57 | D169: 145000 | E169: 145000 | F169: USD | G169: =tblSalaries[[#This Row],[clean Salary (in local currency)]]*VLOOKUP(tblSalaries[[#This Row],[Currency]],tblXrate[],2,FALSE) -> 145000 | H169: =IF($H$1="USD",tblSalaries[[#This Row],[Salary in USD]],tblSalaries[[#This Row],[Salary in USD]]*VLOOKUP($H$1,USDtoUserChoice,2,FALSE)) -> 1189287.1 | I169: Financialcontroller | J169: Controller | K169: Switzerland | L169: =VLOOKUP(tblSalaries[[#This Row],[Where do you work]],tblCountries[[Actual]:[Mapping]],2,FALSE) -> Switzerland | M169: All the 8 hours baby, all the 8! | N169: =NA() ->  | O169: =IF(ISNA(VLOOKUP(tblSalaries[[#This Row],[Years of Experience]],vlookUpExp!$A$1:$B$56,2,FALSE)),"No Response",VLOOKUP(tblSalaries[[#This Row],[Years of Experience]],vlookUpExp!$A$1:$B$56,2,FALSE)) -> No Response
B170: ID0168 | C170: 2012-05-26T00:48:04 | D170: 22880 | E170: 22880 | F170: USD | G170: =tblSalaries[[#This Row],[clean Salary (in local currency)]]*VLOOKUP(tblSalaries[[#This Row],[Currency]],tblXrate[],2,FALSE) -> 22880 | H170: =IF($H$1="USD",tblSalaries[[#This Row],[Salary in USD]],tblSalaries[[#This Row],[Salary in USD]]*VLOOKUP($H$1,USDtoUserChoice,2,FALSE)) -> 187661.3024 | I170: Accounting | J170: Accountant | K170: USA | L170: =VLOOKUP(tblSalaries[[#This Row],[Where do you work]],tblCountries[[Actual]:[Mapping]],2,FALSE) -> USA | M170: 4 to 6 hours a day | N170: =NA() ->  | O170: =IF(ISNA(VLOOKUP(tblSalaries[[#This Row],[Years of Experience]],vlookUpExp!$A$1:$B$56,2,FALSE)),"No Response",VLOOKUP(tblSalaries[[#This Row],[Years of Experience]],vlookUpExp!$A$1:$B$56,2,FALSE)) -> No Response
B171: ID0169 | C171: 2012-05-26T00:48:07 | D171: 80000 | E171: 80000 | F171: USD | G171: =tblSalaries[[#This Row],[clean Salary (in local currency)]]*VLOOKUP(tblSalaries[[#This Row],[Currency]],tblXrate[],2,FALSE) -> 80000 | H171: =IF($H$1="USD",tblSalaries[[#This Row],[Salary in USD]],tblSalaries[[#This Row],[Salary in USD]]*VLOOKUP($H$1,USDtoUserChoice,2,FALSE)) -> 656158.4 | I171: Consultant, HR Services & Governance | J171: Consultant | K171: USA | L171: =VLOOKUP(tblSalaries[[#This Row],[Where do you work]],tblCountries[[Actual]:[Mapping]],2,FALSE) -> USA | M171: 4 to 6 hours a day | N171: =NA() ->  | O171: =IF(ISNA(VLOOKUP(tblSalaries[[#This Row],[Years of Experience]],vlookUpExp!$A$1:$B$56,2,FALSE)),"No Response",VLOOKUP(tblSalaries[[#This Row],[Years of Experience]],vlookUpExp!$A$1:$B$56,2,FALSE)) -> No Response
B172: ID0170 | C172: 2012-05-26T00:48:11 | D172: Rs 5 lakh | E172: 500000 | F172: INR | G172: =tblSalaries[[#This Row],[clean Salary (in local currency)]]*VLOOKUP(tblSalaries[[#This Row],[Currency]],tblXrate[],2,FALSE) -> 8903.958344 | H172: =IF($H$1="USD",tblSalaries[[#This Row],[Salary in USD]],tblSalaries[[#This Row],[Salary in USD]]*VLOOKUP($H$1,USDtoUserChoice,2,FALSE)) -> 73030.08826 | I172: QA Executive | J172: Analyst | K172: India | L172: =VLOOKUP(tblSalaries[[#This Row],[Where do you work]],tblCountries[[Actual]:[Mapping]],2,FALSE) -> India | M172: 2 to 3 hours per day | N172: =NA() ->  | O172: =IF(ISNA(VLOOKUP(tblSalaries[[#This Row],[Years of Experience]],vlookUpExp!$A$1:$B$56,2,FALSE)),"No Response",VLOOKUP(tblSalaries[[#This Row],[Years of Experience]],vlookUpExp!$A$1:$B$56,2,FALSE)) -> No Response
B173: ID0171 | C173: 2012-05-26T00:48:46 | D173: 90000 | E173: 90000 | F173: CAD | G173: =tblSalaries[[#This Row],[clean Salary (in local currency)]]*VLOOKUP(tblSalaries[[#This Row],[Currency]],tblXrate[],2,FALSE) -> 88502.53707 | H173: =IF($H$1="USD",tblSalaries[[#This Row],[Salary in USD]],tblSalaries[[#This Row],[Salary in USD]]*VLOOKUP($H$1,USDtoUserChoice,2,FALSE)) -> 725896.039 | I173: Senior Actuarial Analyst | J173: Analyst | K173: Canada | L173: =VLOOKUP(tblSalaries[[#This Row],[Where do you work]],tblCountries[[Actual]:[Mapping]],2,FALSE) -> Canada | M173: 4 to 6 hours a day | N173: =NA() ->  | O173: =IF(ISNA(VLOOKUP(tblSalaries[[#This Row],[Years of Experience]],vlookUpExp!$A$1:$B$56,2,FALSE)),"No Response",VLOOKUP(tblSalaries[[#This Row],[Years of Experience]],vlookUpExp!$A$1:$B$56,2,FALSE)) -> No Response
B174: ID0172 | C174: 2012-05-26T00:48:48 | D174: 180000 | E174: 180000 | F174: INR | G174: =tblSalaries[[#This Row],[clean Salary (in local currency)]]*VLOOKUP(tblSalaries[[#This Row],[Currency]],tblXrate[],2,FALSE) -> 3205.425004 | H174: =IF($H$1="USD",tblSalaries[[#This Row],[Salary in USD]],tblSalaries[[#This Row],[Salary in USD]]*VLOOKUP($H$1,USDtoUserChoice,2,FALSE)) -> 26290.83177 | I174: Sr. Associate | J174: Analyst | K174: India | L174: =VLOOKUP(tblSalaries[[#This Row],[Where do you work]],tblCountries[[Actual]:[Mapping]],2,FALSE) -> India | M174: 4 to 6 hours a day | N174: =NA() ->  | O174: =IF(ISNA(VLOOKUP(tblSalaries[[#This Row],[Years of Experience]],vlookUpExp!$A$1:$B$56,2,FALSE)),"No Response",VLOOKUP(tblSalaries[[#This Row],[Years of Experience]],vlookUpExp!$A$1:$B$56,2,FALSE)) -> No Response
B175: ID0173 | C175: 2012-05-26T00:48:48 | D175: 46584 | E175: 46584 | F175: USD | G175: =tblSalaries[[#This Row],[clean Salary (in local currency)]]*VLOOKUP(tblSalaries[[#This Row],[Currency]],tblXrate[],2,FALSE) -> 46584 | H175: =IF($H$1="USD",tblSalaries[[#This Row],[Salary in USD]],tblSalaries[[#This Row],[Salary in USD]]*VLOOKUP($H$1,USDtoUserChoice,2,FALSE)) -> 382081.0363 | I175: Budget Analyst | J175: Analyst | K175: USA | L175: =VLOOKUP(tblSalaries[[#This Row],[Where do you work]],tblCountries[[Actual]:[Mapping]],2,FALSE) -> USA | M175: 4 to 6 hours a day | N175: =NA() ->  | O175: =IF(ISNA(VLOOKUP(tblSalaries[[#This Row],[Years of Experience]],vlookUpExp!$A$1:$B$56,2,FALSE)),"No Response",VLOOKUP(tblSalaries[[#This Row],[Years of Experience]],vlookUpExp!$A$1:$B$56,2,FALSE)) -> No Response
B176: ID0174 | C176: 2012-05-26T00:48:48 | D176: 67000 | E176: 67000 | F176: USD | G176: =tblSalaries[[#This Row],[clean Salary (in local currency)]]*VLOOKUP(tblSalaries[[#This Row],[Currency]],tblXrate[],2,FALSE) -> 67000 | H176: =IF($H$1="USD",tblSalaries[[#This Row],[Salary in USD]],tblSalaries[[#This Row],[Salary in USD]]*VLOOKUP($H$1,USDtoUserChoice,2,FALSE)) -> 549532.66 | I176: B.I. Data Analyst II | J176: Analyst | K176: USA | L176: =VLOOKUP(tblSalaries[[#This Row],[Where do you work]],tblCountries[[Actual]:[Mapping]],2,FALSE) -> USA | M176: 4 to 6 hours a day | N176: =NA() ->  | O176: =IF(ISNA(VLOOKUP(tblSalaries[[#This Row],[Years of Experience]],vlookUpExp!$A$1:$B$56,2,FALSE)),"No Response",VLOOKUP(tblSalaries[[#This Row],[Years of Experience]],vlookUpExp!$A$1:$B$56,2,FALSE)) -> No Response
B177: ID0175 | C177: 2012-05-26T00:48:57 | D177: Rd. 11 lakhs | E177: 1100000 | F177: INR | G177: =tblSalaries[[#This Row],[clean Salary (in local currency)]]*VLOOKUP(tblSalaries[[#This Row],[Currency]],tblXrate[],2,FALSE) -> 19588.70836 | H177: =IF($H$1="USD",tblSalaries[[#This Row],[Salary in USD]],tblSalaries[[#This Row],[Salary in USD]]*VLOOKUP($H$1,USDtoUserChoice,2,FALSE)) -> 160666.1942 | I177: Asst manager investor relations and business analytics | J177: Manager | K177: India | L177: =VLOOKUP(tblSalaries[[#This Row],[Where do you work]],tblCountries[[Actual]:[Mapping]],2,FALSE) -> India | M177: 4 to 6 hours a day | N177: =NA() ->  | O177: =IF(ISNA(VLOOKUP(tblSalaries[[#This Row],[Years of Experience]],vlookUpExp!$A$1:$B$56,2,FALSE)),"No Response",VLOOKUP(tblSalaries[[#This Row],[Years of Experience]],vlookUpExp!$A$1:$B$56,2,FALSE)) -> No Response
B178: ID0176 | C178: 2012-05-26T00:49:18 | D178: 92000 | E178: 92000 | F178: USD | G178: =tblSalaries[[#This Row],[clean Salary (in local currency)]]*VLOOKUP(tblSalaries[[#This Row],[Currency]],tblXrate[],2,FALSE) -> 92000 | H178: =IF($H$1="USD",tblSalaries[[#This Row],[Salary in USD]],tblSalaries[[#This Row],[Salary in USD]]*VLOOKUP($H$1,USDtoUserChoice,2,FALSE)) -> 754582.16 | I178: Industrial Engineer (Fed) | J178: Engineer | K178: USA | L178: =VLOOKUP(tblSalaries[[#This Row],[Where do you work]],tblCountries[[Actual]:[Mapping]],2,FALSE) -> USA | M178: 4 to 6 hours a day | N178: =NA() ->  | O178: =IF(ISNA(VLOOKUP(tblSalaries[[#This Row],[Years of Experience]],vlookUpExp!$A$1:$B$56,2,FALSE)),"No Response",VLOOKUP(tblSalaries[[#This Row],[Years of Experience]],vlookUpExp!$A$1:$B$56,2,FALSE)) -> No Response
B179: ID0177 | C179: 2012-05-26T00:49:21 | D179: 75000 | E179: 75000 | F179: USD | G179: =tblSalaries[[#This Row],[clean Salary (in local currency)]]*VLOOKUP(tblSalaries[[#This Row],[Currency]],tblXrate[],2,FALSE) -> 75000 | H179: =IF($H$1="USD",tblSalaries[[#This Row],[Salary in USD]],tblSalaries[[#This Row],[Salary in USD]]*VLOOKUP($H$1,USDtoUserChoice,2,FALSE)) -> 615148.5 | I179: Informatics specialist | J179: Specialist | K179: USA | L179: =VLOOKUP(tblSalaries[[#This Row],[Where do you work]],tblCountries[[Actual]:[Mapping]],2,FALSE) -> USA | M179: All the 8 hours baby, all the 8! | N179: =NA() ->  | O179: =IF(ISNA(VLOOKUP(tblSalaries[[#This Row],[Years of Experience]],vlookUpExp!$A$1:$B$56,2,FALSE)),"No Response",VLOOKUP(tblSalaries[[#This Row],[Years of Experience]],vlookUpExp!$A$1:$B$56,2,FALSE)) -> No Response
B180: ID0178 | C180: 2012-05-26T00:49:35 | D180: 180000 | E180: 180000 | F180: INR | G180: =tblSalaries[[#This Row],[clean Salary (in local currency)]]*VLOOKUP(tblSalaries[[#This Row],[Currency]],tblXrate[],2,FALSE) -> 3205.425004 | H180: =IF($H$1="USD",tblSalaries[[#This Row],[Salary in USD]],tblSalaries[[#This Row],[Salary in USD]]*VLOOKUP($H$1,USDtoUserChoice,2,FALSE)) -> 26290.83177 | I180: Sr. Associate | J180: Analyst | K180: India | L180: =VLOOKUP(tblSalaries[[#This Row],[Where do you work]],tblCountries[[Actual]:[Mapping]],2,FALSE) -> India | M180: 4 to 6 hours a day | N180: =NA() ->  | O180: =IF(ISNA(VLOOKUP(tblSalaries[[#This Row],[Years of Experience]],vlookUpExp!$A$1:$B$56,2,FALSE)),"No Response",VLOOKUP(tblSalaries[[#This Row],[Years of Experience]],vlookUpExp!$A$1:$B$56,2,FALSE)) -> No Response
B181: ID0179 | C181: 2012-05-26T00:49:48 | D181: 18500 | E181: 18500 | F181: GBP | G181: =tblSalaries[[#This Row],[clean Salary (in local currency)]]*VLOOKUP(tblSalaries[[#This Row],[Currency]],tblXrate[],2,FALSE) -> 29159.29803 | H181: =IF($H$1="USD",tblSalaries[[#This Row],[Salary in USD]],tblSalaries[[#This Row],[Salary in USD]]*VLOOKUP($H$1,USDtoUserChoice,2,FALSE)) -> 239163.9793 | I181: Trainee Management Accountant | J181: Manager | K181: UK | L181: =VLOOKUP(tblSalaries[[#This Row],[Where do you work]],tblCountries[[Actual]:[Mapping]],2,FALSE) -> UK | M181: All the 8 hours baby, all the 8! | N181: =NA() ->  | O181: =IF(ISNA(VLOOKUP(tblSalaries[[#This Row],[Years of Experience]],vlookUpExp!$A$1:$B$56,2,FALSE)),"No Response",VLOOKUP(tblSalaries[[#This Row],[Years of Experience]],vlookUpExp!$A$1:$B$56,2,FALSE)) -> No Response
B182: ID0180 | C182: 2012-05-26T00:49:50 | D182: 40000 | E182: 40000 | F182: USD | G182: =tblSalaries[[#This Row],[clean Salary (in local currency)]]*VLOOKUP(tblSalaries[[#This Row],[Currency]],tblXrate[],2,FALSE) -> 40000 | H182: =IF($H$1="USD",tblSalaries[[#This Row],[Salary in USD]],tblSalaries[[#This Row],[Salary in USD]]*VLOOKUP($H$1,USDtoUserChoice,2,FALSE)) -> 328079.2 | I182: Senior analyst | J182: Analyst | K182: USA | L182: =VLOOKUP(tblSalaries[[#This Row],[Where do you work]],tblCountries[[Actual]:[Mapping]],2,FALSE) -> USA | M182: All the 8 hours baby, all the 8! | N182: =NA() ->  | O182: =IF(ISNA(VLOOKUP(tblSalaries[[#This Row],[Years of Experience]],vlookUpExp!$A$1:$B$56,2,FALSE)),"No Response",VLOOKUP(tblSalaries[[#This Row],[Years of Experience]],vlookUpExp!$A$1:$B$56,2,FALSE)) -> No Response
B183: ID0181 | C183: 2012-05-26T00:49:59 | D183: 111680 | E183: 111680 | F183: USD | G183: =tblSalaries[[#This Row],[clean Salary (in local currency)]]*VLOOKUP(tblSalaries[[#This Row],[Currency]],tblXrate[],2,FALSE) -> 111680 | H183: =IF($H$1="USD",tblSalaries[[#This Row],[Salary in USD]],tblSalaries[[#This Row],[Salary in USD]]*VLOOKUP($H$1,USDtoUserChoice,2,FALSE)) -> 915997.1264 | I183: Director of Analytics | J183: Analyst | K183: USA | L183: =VLOOKUP(tblSalaries[[#This Row],[Where do you work]],tblCountries[[Actual]:[Mapping]],2,FALSE) -> USA | M183: 2 to 3 hours per day | N183: =NA() ->  | O183: =IF(ISNA(VLOOKUP(tblSalaries[[#This Row],[Years of Experience]],vlookUpExp!$A$1:$B$56,2,FALSE)),"No Response",VLOOKUP(tblSalaries[[#This Row],[Years of Experience]],vlookUpExp!$A$1:$B$56,2,FALSE)) -> No Response
B184: ID0182 | C184: 2012-05-26T00:50:11 | D184: 41.406 | E184: 41406 | F184: USD | G184: =tblSalaries[[#This Row],[clean Salary (in local currency)]]*VLOOKUP(tblSalaries[[#This Row],[Currency]],tblXrate[],2,FALSE) -> 41406 | H184: =IF($H$1="USD",tblSalaries[[#This Row],[Salary in USD]],tblSalaries[[#This Row],[Salary in USD]]*VLOOKUP($H$1,USDtoUserChoice,2,FALSE)) -> 339611.1839 | I184: Executive Assistant | J184: Analyst | K184: Canada | L184: =VLOOKUP(tblSalaries[[#This Row],[Where do you work]],tblCountries[[Actual]:[Mapping]],2,FALSE) -> Canada | M184: 1 or 2 hours a day | N184: =NA() ->  | O184: =IF(ISNA(VLOOKUP(tblSalaries[[#This Row],[Years of Experience]],vlookUpExp!$A$1:$B$56,2,FALSE)),"No Response",VLOOKUP(tblSalaries[[#This Row],[Years of Experience]],vlookUpExp!$A$1:$B$56,2,FALSE)) -> No Response
B185: ID0183 | C185: 2012-05-26T00:50:15 | D185: 70000 | E185: 70000 | F185: USD | G185: =tblSalaries[[#This Row],[clean Salary (in local currency)]]*VLOOKUP(tblSalaries[[#This Row],[Currency]],tblXrate[],2,FALSE) -> 70000 | H185: =IF($H$1="USD",tblSalaries[[#This Row],[Salary in USD]],tblSalaries[[#This Row],[Salary in USD]]*VLOOKUP($H$1,USDtoUserChoice,2,FALSE)) -> 574138.6 | I185: Project Speciast | J185: Manager | K185: USA | L185: =VLOOKUP(tblSalaries[[#This Row],[Where do you work]],tblCountries[[Actual]:[Mapping]],2,FALSE) -> USA | M185: 4 to 6 hours a day | N185: =NA() ->  | O185: =IF(ISNA(VLOOKUP(tblSalaries[[#This Row],[Years of Experience]],vlookUpExp!$A$1:$B$56,2,FALSE)),"No Response",VLOOKUP(tblSalaries[[#This Row],[Years of Experience]],vlookUpExp!$A$1:$B$56,2,FALSE)) -> No Response
B186: ID0184 | C186: 2012-05-26T00:50:31 | D186: 40700 | E186: 40700 | F186: USD | G186: =tblSalaries[[#This Row],[clean Salary (in local currency)]]*VLOOKUP(tblSalaries[[#This Row],[Currency]],tblXrate[],2,FALSE) -> 40700 | H186: =IF($H$1="USD",tblSalaries[[#This Row],[Salary in USD]],tblSalaries[[#This Row],[Salary in USD]]*VLOOKUP($H$1,USDtoUserChoice,2,FALSE)) -> 333820.586 | I186: Sales Coordinator & Analytical Support | J186: Analyst | K186: USA | L186: =VLOOKUP(tblSalaries[[#This Row],[Where do you work]],tblCountries[[Actual]:[Mapping]],2,FALSE) -> USA | M186: 1 or 2 hours a day | N186: =NA() ->  | O186: =IF(ISNA(VLOOKUP(tblSalaries[[#This Row],[Years of Experience]],vlookUpExp!$A$1:$B$56,2,FALSE)),"No Response",VLOOKUP(tblSalaries[[#This Row],[Years of Experience]],vlookUpExp!$A$1:$B$56,2,FALSE)) -> No Response
B187: ID0185 | C187: 2012-05-26T00:50:32 | D187: 40000 | E187: 40000 | F187: USD | G187: =tblSalaries[[#This Row],[clean Salary (in local currency)]]*VLOOKUP(tblSalaries[[#This Row],[Currency]],tblXrate[],2,FALSE) -> 40000 | H187: =IF($H$1="USD",tblSalaries[[#This Row],[Salary in USD]],tblSalaries[[#This Row],[Salary in USD]]*VLOOKUP($H$1,USDtoUserChoice,2,FALSE)) -> 328079.2 | I187: analyst | J187: Analyst | K187: USA | L187: =VLOOKUP(tblSalaries[[#This Row],[Where do you work]],tblCountries[[Actual]:[Mapping]],2,FALSE) -> USA | M187: 4 to 6 hours a day | N187: =NA() ->  | O187: =IF(ISNA(VLOOKUP(tblSalaries[[#This Row],[Years of Experience]],vlookUpExp!$A$1:$B$56,2,FALSE)),"No Response",VLOOKUP(tblSalaries[[#This Row],[Years of Experience]],vlookUpExp!$A$1:$B$56,2,FALSE)) -> No Response
B188: ID0186 | C188: 2012-05-26T00:50:38 | D188: 60000 | E188: 60000 | F188: USD | G188: =tblSalaries[[#This Row],[clean Salary (in local currency)]]*VLOOKUP(tblSalaries[[#This Row],[Currency]],tblXrate[],2,FALSE) -> 60000 | H188: =IF($H$1="USD",tblSalaries[[#This Row],[Salary in USD]],tblSalaries[[#This Row],[Salary in USD]]*VLOOKUP($H$1,USDtoUserChoice,2,FALSE)) -> 492118.8 | I188: Senior Staff Accountant | J188: Accountant | K188: USA | L188: =VLOOKUP(tblSalaries[[#This Row],[Where do you work]],tblCountries[[Actual]:[Mapping]],2,FALSE) -> USA | M188: 4 to 6 hours a day | N188: =NA() ->  | O188: =IF(ISNA(VLOOKUP(tblSalaries[[#This Row],[Years of Experience]],vlookUpExp!$A$1:$B$56,2,FALSE)),"No Response",VLOOKUP(tblSalaries[[#This Row],[Years of Experience]],vlookUpExp!$A$1:$B$56,2,FALSE)) -> No Response
B189: ID0187 | C189: 2012-05-26T00:50:41 | D189: 92000 | E189: 92000 | F189: CAD | G189: =tblSalaries[[#This Row],[clean Salary (in local currency)]]*VLOOKUP(tblSalaries[[#This Row],[Currency]],tblXrate[],2,FALSE) -> 90469.26012 | H189: =IF($H$1="USD",tblSalaries[[#This Row],[Salary in USD]],tblSalaries[[#This Row],[Salary in USD]]*VLOOKUP($H$1,USDtoUserChoice,2,FALSE)) -> 742027.0621 | I189: Consultant - Retail Mkts | J189: Consultant | K189: Canada | L189: =VLOOKUP(tblSalaries[[#This Row],[Where do you work]],tblCountries[[Actual]:[Mapping]],2,FALSE) -> Canada | M189: All the 8 hours baby, all the 8! | N189: =NA() ->  | O189: =IF(ISNA(VLOOKUP(tblSalaries[[#This Row],[Years of Experience]],vlookUpExp!$A$1:$B$56,2,FALSE)),"No Response",VLOOKUP(tblSalaries[[#This Row],[Years of Experience]],vlookUpExp!$A$1:$B$56,2,FALSE)) -> No Response
B190: ID0188 | C190: 2012-05-26T00:50:43 | D190: 13636.36 | E190: 13636 | F190: USD | G190: =tblSalaries[[#This Row],[clean Salary (in local currency)]]*VLOOKUP(tblSalaries[[#This Row],[Currency]],tblXrate[],2,FALSE) -> 13636 | H190: =IF($H$1="USD",tblSalaries[[#This Row],[Salary in USD]],tblSalaries[[#This Row],[Salary in USD]]*VLOOKUP($H$1,USDtoUserChoice,2,FALSE)) -> 111842.1993 | I190: Process Manager | J190: Manager | K190: India | L190: =VLOOKUP(tblSalaries[[#This Row],[Where do you work]],tblCountries[[Actual]:[Mapping]],2,FALSE) -> India | M190: All the 8 hours baby, all the 8! | N190: =NA() ->  | O190: =IF(ISNA(VLOOKUP(tblSalaries[[#This Row],[Years of Experience]],vlookUpExp!$A$1:$B$56,2,FALSE)),"No Response",VLOOKUP(tblSalaries[[#This Row],[Years of Experience]],vlookUpExp!$A$1:$B$56,2,FALSE)) -> No Response
B191: ID0189 | C191: 2012-05-26T00:50:43 | D191: 80000 | E191: 80000 | F191: USD | G191: =tblSalaries[[#This Row],[clean Salary (in local currency)]]*VLOOKUP(tblSalaries[[#This Row],[Currency]],tblXrate[],2,FALSE) -> 80000 | H191: =IF($H$1="USD",tblSalaries[[#This Row],[Salary in USD]],tblSalaries[[#This Row],[Salary in USD]]*VLOOKUP($H$1,USDtoUserChoice,2,FALSE)) -> 656158.4 | I191: Project Manager (Process Owner) | J191: Manager | K191: USA | L191: =VLOOKUP(tblSalaries[[#This Row],[Where do you work]],tblCountries[[Actual]:[Mapping]],2,FALSE) -> USA | M191: 2 to 3 hours per day | N191: =NA() ->  | O191: =IF(ISNA(VLOOKUP(tblSalaries[[#This Row],[Years of Experience]],vlookUpExp!$A$1:$B$56,2,FALSE)),"No Response",VLOOKUP(tblSalaries[[#This Row],[Years of Experience]],vlookUpExp!$A$1:$B$56,2,FALSE)) -> No Response
B192: ID0190 | C192: 2012-05-26T00:51:00 | D192: 60000 CAD$ | E192: 60000 | F192: CAD | G192: =tblSalaries[[#This Row],[clean Salary (in local currency)]]*VLOOKUP(tblSalaries[[#This Row],[Currency]],tblXrate[],2,FALSE) -> 59001.69138 | H192: =IF($H$1="USD",tblSalaries[[#This Row],[Salary in USD]],tblSalaries[[#This Row],[Salary in USD]]*VLOOKUP($H$1,USDtoUserChoice,2,FALSE)) -> 483930.6927 | I192: Demographer | J192: Analyst | K192: Canada | L192: =VLOOKUP(tblSalaries[[#This Row],[Where do you work]],tblCountries[[Actual]:[Mapping]],2,FALSE) -> Canada | M192: 2 to 3 hours per day | N192: =NA() ->  | O192: =IF(ISNA(VLOOKUP(tblSalaries[[#This Row],[Years of Experience]],vlookUpExp!$A$1:$B$56,2,FALSE)),"No Response",VLOOKUP(tblSalaries[[#This Row],[Years of Experience]],vlookUpExp!$A$1:$B$56,2,FALSE)) -> No Response
B193: ID0192 | C193: 2012-05-26T00:51:43 | D193: 28000 | E193: 28000 | F193: USD | G193: =tblSalaries[[#This Row],[clean Salary (in local currency)]]*VLOOKUP(tblSalaries[[#This Row],[Currency]],tblXrate[],2,FALSE) -> 28000 | H193: =IF($H$1="USD",tblSalaries[[#This Row],[Salary in USD]],tblSalaries[[#This Row],[Salary in USD]]*VLOOKUP($H$1,USDtoUserChoice,2,FALSE)) -> 229655.44 | I193: Administrative Assistant | J193: Analyst | K193: USA | L193: =VLOOKUP(tblSalaries[[#This Row],[Where do you work]],tblCountries[[Actual]:[Mapping]],2,FALSE) -> USA | M193: 4 to 6 hours a day | N193: =NA() ->  | O193: =IF(ISNA(VLOOKUP(tblSalaries[[#This Row],[Years of Experience]],vlookUpExp!$A$1:$B$56,2,FALSE)),"No Response",VLOOKUP(tblSalaries[[#This Row],[Years of Experience]],vlookUpExp!$A$1:$B$56,2,FALSE)) -> No Response
B194: ID0193 | C194: 2012-05-26T00:51:55 | D194: 60000 | E194: 60000 | F194: USD | G194: =tblSalaries[[#This Row],[clean Salary (in local currency)]]*VLOOKUP(tblSalaries[[#This Row],[Currency]],tblXrate[],2,FALSE) -> 60000 | H194: =IF($H$1="USD",tblSalaries[[#This Row],[Salary in USD]],tblSalaries[[#This Row],[Salary in USD]]*VLOOKUP($H$1,USDtoUserChoice,2,FALSE)) -> 492118.8 | I194: Accounting/Financial Analyst | J194: Analyst | K194: USA | L194: =VLOOKUP(tblSalaries[[#This Row],[Where do you work]],tblCountries[[Actual]:[Mapping]],2,FALSE) -> USA | M194: 4 to 6 hours a day | N194: =NA() ->  | O194: =IF(ISNA(VLOOKUP(tblSalaries[[#This Row],[Years of Experience]],vlookUpExp!$A$1:$B$56,2,FALSE)),"No Response",VLOOKUP(tblSalaries[[#This Row],[Years of Experience]],vlookUpExp!$A$1:$B$56,2,FALSE)) -> No Response
B195: ID0194 | C195: 2012-05-26T00:51:59 | D195: 96000 | E195: 96000 | F195: USD | G195: =tblSalaries[[#This Row],[clean Salary (in local currency)]]*VLOOKUP(tblSalaries[[#This Row],[Currency]],tblXrate[],2,FALSE) -> 96000 | H195: =IF($H$1="USD",tblSalaries[[#This Row],[Salary in USD]],tblSalaries[[#This Row],[Salary in USD]]*VLOOKUP($H$1,USDtoUserChoice,2,FALSE)) -> 787390.08 | I195: Business Process Specialist | J195: Specialist | K195: USA | L195: =VLOOKUP(tblSalaries[[#This Row],[Where do you work]],tblCountries[[Actual]:[Mapping]],2,FALSE) -> USA | M195: 2 to 3 hours per day | N195: =NA() ->  | O195: =IF(ISNA(VLOOKUP(tblSalaries[[#This Row],[Years of Experience]],vlookUpExp!$A$1:$B$56,2,FALSE)),"No Response",VLOOKUP(tblSalaries[[#This Row],[Years of Experience]],vlookUpExp!$A$1:$B$56,2,FALSE)) -> No Response
B196: ID0195 | C196: 2012-05-26T00:52:21 | D196: 67000 | E196: 67000 | F196: USD | G196: =tblSalaries[[#This Row],[clean Salary (in local currency)]]*VLOOKUP(tblSalaries[[#This Row],[Currency]],tblXrate[],2,FALSE) -> 67000 | H196: =IF($H$1="USD",tblSalaries[[#This Row],[Salary in USD]],tblSalaries[[#This Row],[Salary in USD]]*VLOOKUP($H$1,USDtoUserChoice,2,FALSE)) -> 549532.66 | I196: Financial Analyst | J196: Analyst | K196: USA | L196: =VLOOKUP(tblSalaries[[#This Row],[Where do you work]],tblCountries[[Actual]:[Mapping]],2,FALSE) -> USA | M196: 4 to 6 hours a day | N196: =NA() ->  | O196: =IF(ISNA(VLOOKUP(tblSalaries[[#This Row],[Years of Experience]],vlookUpExp!$A$1:$B$56,2,FALSE)),"No Response",VLOOKUP(tblSalaries[[#This Row],[Years of Experience]],vlookUpExp!$A$1:$B$56,2,FALSE)) -> No Response
B197: ID0196 | C197: 2012-05-26T00:52:25 | D197: 70000 | E197: 70000 | F197: USD | G197: =tblSalaries[[#This Row],[clean Salary (in local currency)]]*VLOOKUP(tblSalaries[[#This Row],[Currency]],tblXrate[],2,FALSE) -> 70000 | H197: =IF($H$1="USD",tblSalaries[[#This Row],[Salary in USD]],tblSalaries[[#This Row],[Salary in USD]]*VLOOKUP($H$1,USDtoUserChoice,2,FALSE)) -> 574138.6 | I197: Sr Financial Analyst | J197: Analyst | K197: USA | L197: =VLOOKUP(tblSalaries[[#This Row],[Where do you work]],tblCountries[[Actual]:[Mapping]],2,FALSE) -> USA | M197: 4 to 6 hours a day | N197: =NA() ->  | O197: =IF(ISNA(VLOOKUP(tblSalaries[[#This Row],[Years of Experience]],vlookUpExp!$A$1:$B$56,2,FALSE)),"No Response",VLOOKUP(tblSalaries[[#This Row],[Years of Experience]],vlookUpExp!$A$1:$B$56,2,FALSE)) -> No Response
B198: ID0197 | C198: 2012-05-26T00:52:30 | D198: 233000 | E198: 233000 | F198: INR | G198: =tblSalaries[[#This Row],[clean Salary (in local currency)]]*VLOOKUP(tblSalaries[[#This Row],[Currency]],tblXrate[],2,FALSE) -> 4149.244588 | H198: =IF($H$1="USD",tblSalaries[[#This Row],[Salary in USD]],tblSalaries[[#This Row],[Salary in USD]]*VLOOKUP($H$1,USDtoUserChoice,2,FALSE)) -> 34032.02113 | I198: Asst. Manager (MIS) | J198: Manager | K198: India | L198: =VLOOKUP(tblSalaries[[#This Row],[Where do you work]],tblCountries[[Actual]:[Mapping]],2,FALSE) -> India | M198: All the 8 hours baby, all the 8! | N198: =NA() ->  | O198: =IF(ISNA(VLOOKUP(tblSalaries[[#This Row],[Years of Experience]],vlookUpExp!$A$1:$B$56,2,FALSE)),"No Response",VLOOKUP(tblSalaries[[#This Row],[Years of Experience]],vlookUpExp!$A$1:$B$56,2,FALSE)) -> No Response
B199: ID0198 | C199: 2012-05-26T00:52:37 | D199: US$ 99000 | E199: 99000 | F199: USD | G199: =tblSalaries[[#This Row],[clean Salary (in local currency)]]*VLOOKUP(tblSalaries[[#This Row],[Currency]],tblXrate[],2,FALSE) -> 99000 | H199: =IF($H$1="USD",tblSalaries[[#This Row],[Salary in USD]],tblSalaries[[#This Row],[Salary in USD]]*VLOOKUP($H$1,USDtoUserChoice,2,FALSE)) -> 811996.02 | I199: Business Controller | J199: Controller | K199: USA | L199: =VLOOKUP(tblSalaries[[#This Row],[Where do you work]],tblCountries[[Actual]:[Mapping]],2,FALSE) -> USA | M199: 4 to 6 hours a day | N199: =NA() ->  | O199: =IF(ISNA(VLOOKUP(tblSalaries[[#This Row],[Years of Experience]],vlookUpExp!$A$1:$B$56,2,FALSE)),"No Response",VLOOKUP(tblSalaries[[#This Row],[Years of Experience]],vlookUpExp!$A$1:$B$56,2,FALSE)) -> No Response
B200: ID0200 | C200: 2012-05-26T00:53:00 | D200: 90000 | E200: 90000 | F200: USD | G200: =tblSalaries[[#This Row],[clean Salary (in local currency)]]*VLOOKUP(tblSalaries[[#This Row],[Currency]],tblXrate[],2,FALSE) -> 90000 | H200: =IF($H$1="USD",tblSalaries[[#This Row],[Salary in USD]],tblSalaries[[#This Row],[Salary in USD]]*VLOOKUP($H$1,USDtoUserChoice,2,FALSE)) -> 738178.2 | I200: Project Manager | J200: Manager | K200: USA | L200: =VLOOKUP(tblSalaries[[#This Row],[Where do you work]],tblCountries[[Actual]:[Mapping]],2,FALSE) -> USA | M200: 2 to 3 hours per day | N200: =NA() ->  | O200: =IF(ISNA(VLOOKUP(tblSalaries[[#This Row],[Years of Experience]],vlookUpExp!$A$1:$B$56,2,FALSE)),"No Response",VLOOKUP(tblSalaries[[#This Row],[Years of Experience]],vlookUpExp!$A$1:$B$56,2,FALSE)) -> No Response
B201: ID0201 | C201: 2012-05-26T00:53:02 | D201: Rs. 275000 | E201: 275000 | F201: INR | G201: =tblSalaries[[#This Row],[clean Salary (in local currency)]]*VLOOKUP(tblSalaries[[#This Row],[Currency]],tblXrate[],2,FALSE) -> 4897.177089 | H201: =IF($H$1="USD",tblSalaries[[#This Row],[Salary in USD]],tblSalaries[[#This Row],[Salary in USD]]*VLOOKUP($H$1,USDtoUserChoice,2,FALSE)) -> 40166.54854 | I201: low level monitoring | J201: Analyst | K201: India | L201: =VLOOKUP(tblSalaries[[#This Row],[Where do you work]],tblCountries[[Actual]:[Mapping]],2,FALSE) -> India | M201: 2 to 3 hours per day | N201: =NA() ->  | O201: =IF(ISNA(VLOOKUP(tblSalaries[[#This Row],[Years of Experience]],vlookUpExp!$A$1:$B$56,2,FALSE)),"No Response",VLOOKUP(tblSalaries[[#This Row],[Years of Experience]],vlookUpExp!$A$1:$B$56,2,FALSE)) -> No Response
B202: ID0202 | C202: 2012-05-26T00:53:18 | D202: INR 16000 | E202: 192000 | F202: INR | G202: =tblSalaries[[#This Row],[clean Salary (in local currency)]]*VLOOKUP(tblSalaries[[#This Row],[Currency]],tblXrate[],2,FALSE) -> 3419.120004 | H202: =IF($H$1="USD",tblSalaries[[#This Row],[Salary in USD]],tblSalaries[[#This Row],[Salary in USD]]*VLOOKUP($H$1,USDtoUserChoice,2,FALSE)) -> 28043.55389 | I202: Administrative | J202: Analyst | K202: India | L202: =VLOOKUP(tblSalaries[[#This Row],[Where do you work]],tblCountries[[Actual]:[Mapping]],2,FALSE) -> India | M202: All the 8 hours baby, all the 8! | N202: =NA() ->  | O202: =IF(ISNA(VLOOKUP(tblSalaries[[#This Row],[Years of Experience]],vlookUpExp!$A$1:$B$56,2,FALSE)),"No Response",VLOOKUP(tblSalaries[[#This Row],[Years of Experience]],vlookUpExp!$A$1:$B$56,2,FALSE)) -> No Response
... 1686 more rows

Sheet Dashboard Option 1
B46: ="" -> 
B48: =" Given your combination of currency ("&Data!H1&") and your position ("&vLUPivot&"):" -> Given your combination of currency (ZAR) and your position (Reporting):
B49: =" 1. The average salary for all countries is "&'SalarybyHour & Exp'!$G$24 -> 1. The average salary for all countries is 160,547
B50: =" 2.The country with the largest community is " & BubblePlotData!H14 &" (" & BubblePlotData!H11 & " respondents)." -> 2.The country with the largest community is India (60 respondents).
B51: =" 3. The country with the highest average salary is "& BubblePlotData!H7 &", averaging " & BubblePlotData!H5 & "." -> 3. The country with the highest average salary is Netherlands, averaging 2,083,958.
B52: =" 4. " & 'SalarybyHour & Exp'!B24 & " of the professionals in your position said they work " & CHAR(34) & 'SalarybyHour & Exp'!A24 & "." & CHAR(34) -> 4. 49% of the professionals in your position said they work "All the 8 hours baby, all the 8!."

Sheet Dashboard Option 2
B37: =" Given your combination of currency ("&Data!H1&") and your position ("&vLUPivot&"):" -> Given your combination of currency (ZAR) and your position (Reporting):
B38: =" 1. The average salary for all countries is "&'SalarybyHour & Exp'!$G$24 -> 1. The average salary for all countries is 160,547
B39: =" 2.The country with the largest community is " & BubblePlotData!H14 &" (" & BubblePlotData!H11 & " respondents)." -> 2.The country with the largest community is India (60 respondents).
B40: =" 3. The country with the highest average salary is "& BubblePlotData!H7 &", averaging " & BubblePlotData!H5 & "." -> 3. The country with the highest average salary is Netherlands, averaging 2,083,958.
B41: =" 4. " & 'SalarybyHour & Exp'!B24 & " of the professionals in your position said they work " & CHAR(34) & 'SalarybyHour & Exp'!A24 & "." & CHAR(34) -> 4. 49% of the professionals in your position said they work "All the 8 hours baby, all the 8!."
B47: ="" -> 

Sheet Dashboard Option 3
B46: ="" -> 
B48: =" Given your combination of currency ("&Data!H1&") and your position ("&vLUPivot&"):" -> Given your combination of currency (ZAR) and your position (Reporting):
B49: =" 1. The average salary for all countries is "&'SalarybyHour & Exp'!$G$24 -> 1. The average salary for all countries is 160,547
B50: =" 2.The country with the largest community is " & BubblePlotData!H14 &" (" & BubblePlotData!H11 & " respondents)." -> 2.The country with the largest community is India (60 respondents).
B51: =" 3. The country with the highest average salary is "& BubblePlotData!H7 &", averaging " & BubblePlotData!H5 & "." -> 3. The country with the highest average salary is Netherlands, averaging 2,083,958.
B52: =" 4. " & 'SalarybyHour & Exp'!B24 & " of the professionals in your position said they work " & CHAR(34) & 'SalarybyHour & Exp'!A24 & "." & CHAR(34) -> 4. 49% of the professionals in your position said they work "All the 8 hours baby, all the 8!."
